{"text_format":"1","workbook":"xlsx","n_sheets":2,"sheets":["TABLA","Hoja1"],"not_rendered":{"charts":0,"images":1,"macros":1,"external_links":0,"defined_names":5,"comments":0,"pivot_tables":0},"unopened":[],"bounds":{"document_bytes":16777216,"sheet_cells":100000,"rows_first":2000,"rows_last":500,"rows_between":2000,"halvings":0,"cell_chars":16384,"cell_head_chars":4096},"cells_cut":0,"cells_raw":0,"read":"whole","date_system":"1900"}

{"sheet":"TABLA","index":0,"n_rows":1006,"n_cols":16,"rows_kept":1006,"cut":false,"hidden":false,"merged":[[4,0,4,13],[5,0,5,2]]}
[]
[]
[]
[]
["Tabla coste horario de personal propio"]
["Datos generales del trabajador",null,null,null,null,null,null,"Datos de dedicación a la propuesta de actividades"]
["Nº Orden ","NIF del trabajador","Apellidos y nombre del trabajador","Grupo profesional del trabajador","% de jornada","% aportación SS empresa","Tarifa horaria con SS o sin SS (EUR/h)","Nº de horas dedicadas a la propuesta","Coste total imputado","Actividades realizadas por el trabajador","Tipología de la actividad","Límite anexo","Mes de realización de la actividad (MM/AAAA)","Observaciones"]
[null,null,null,null,null,null,null,null,null,null,null,null,null,null,{"$f":"IFERROR(VLOOKUP(D8,Hoja1!$A$3:$B$7,2,FALSE),\"\")","v":""},{"$f":"IFERROR(VLOOKUP(K8,Hoja1!$A$10:$B$12,2,FALSE),\"\")","v":""}]
[null,null,null,null,null,null,null,null,null,null,null,null,null,null,{"$f":"IFERROR(VLOOKUP(D9,Hoja1!$A$3:$B$7,2,FALSE),\"\")","v":""},{"$f":"IFERROR(VLOOKUP(K9,Hoja1!$A$10:$B$12,2,FALSE),\"\")","v":""}]
[null,null,null,null,null,null,null,null,null,null,null,null,null,null,{"$f":"IFERROR(VLOOKUP(D10,Hoja1!$A$3:$B$7,2,FALSE),\"\")","v":""},{"$f":"IFERROR(VLOOKUP(K10,Hoja1!$A$10:$B$12,2,FALSE),\"\")","v":""}]
[null,null,null,null,null,null,null,null,null,null,null,null,null,null,{"$f":"IFERROR(VLOOKUP(D11,Hoja1!$A$3:$B$7,2,FALSE),\"\")","v":""},{"$f":"IFERROR(VLOOKUP(K11,Hoja1!$A$10:$B$12,2,FALSE),\"\")","v":""}]
[null,null,null,null,null,null,null,null,null,null,null,null,null,null,{"$f":"IFERROR(VLOOKUP(D12,Hoja1!$A$3:$B$7,2,FALSE),\"\")","v":""},{"$f":"IFERROR(VLOOKUP(K12,Hoja1!$A$10:$B$12,2,FALSE),\"\")","v":""}]
[null,null,null,null,null,null,null,null,null,null,null,null,null,null,{"$f":"IFERROR(VLOOKUP(D13,Hoja1!$A$3:$B$7,2,FALSE),\"\")","v":""},{"$f":"IFERROR(VLOOKUP(K13,Hoja1!$A$10:$B$12,2,FALSE),\"\")","v":""}]
[null,null,null,null,null,null,null,null,null,null,null,null,null,null,{"$f":"IFERROR(VLOOKUP(D14,Hoja1!$A$3:$B$7,2,FALSE),\"\")","v":""},{"$f":"IFERROR(VLOOKUP(K14,Hoja1!$A$10:$B$12,2,FALSE),\"\")","v":""}]
[null,null,null,null,null,null,null,null,null,null,null,null,null,null,{"$f":"IFERROR(VLOOKUP(D15,Hoja1!$A$3:$B$7,2,FALSE),\"\")","v":""},{"$f":"IFERROR(VLOOKUP(K15,Hoja1!$A$10:$B$12,2,FALSE),\"\")","v":""}]
[null,null,null,null,null,null,null,null,null,null,null,null,null,null,{"$f":"IFERROR(VLOOKUP(D16,Hoja1!$A$3:$B$7,2,FALSE),\"\")","v":""},{"$f":"IFERROR(VLOOKUP(K16,Hoja1!$A$10:$B$12,2,FALSE),\"\")","v":""}]
[null,null,null,null,null,null,null,null,null,null,null,null,null,null,{"$f":"IFERROR(VLOOKUP(D17,Hoja1!$A$3:$B$7,2,FALSE),\"\")","v":""},{"$f":"IFERROR(VLOOKUP(K17,Hoja1!$A$10:$B$12,2,FALSE),\"\")","v":""}]
[null,null,null,null,null,null,null,null,null,null,null,null,null,null,{"$f":"IFERROR(VLOOKUP(D18,Hoja1!$A$3:$B$7,2,FALSE),\"\")","v":""},{"$f":"IFERROR(VLOOKUP(K18,Hoja1!$A$10:$B$12,2,FALSE),\"\")","v":""}]
[null,null,null,null,null,null,null,null,null,null,null,null,null,null,{"$f":"IFERROR(VLOOKUP(D19,Hoja1!$A$3:$B$7,2,FALSE),\"\")","v":""},{"$f":"IFERROR(VLOOKUP(K19,Hoja1!$A$10:$B$12,2,FALSE),\"\")","v":""}]
[null,null,null,null,null,null,null,null,null,null,null,null,null,null,{"$f":"IFERROR(VLOOKUP(D20,Hoja1!$A$3:$B$7,2,FALSE),\"\")","v":""},{"$f":"IFERROR(VLOOKUP(K20,Hoja1!$A$10:$B$12,2,FALSE),\"\")","v":""}]
[null,null,null,null,null,null,null,null,null,null,null,null,null,null,{"$f":"IFERROR(VLOOKUP(D21,Hoja1!$A$3:$B$7,2,FALSE),\"\")","v":""},{"$f":"IFERROR(VLOOKUP(K21,Hoja1!$A$10:$B$12,2,FALSE),\"\")","v":""}]
[null,null,null,null,null,null,null,null,null,null,null,null,null,null,{"$f":"IFERROR(VLOOKUP(D22,Hoja1!$A$3:$B$7,2,FALSE),\"\")","v":""},{"$f":"IFERROR(VLOOKUP(K22,Hoja1!$A$10:$B$12,2,FALSE),\"\")","v":""}]
[null,null,null,null,null,null,null,null,null,null,null,null,null,null,{"$f":"IFERROR(VLOOKUP(D23,Hoja1!$A$3:$B$7,2,FALSE),\"\")","v":""},{"$f":"IFERROR(VLOOKUP(K23,Hoja1!$A$10:$B$12,2,FALSE),\"\")","v":""}]
[null,null,null,null,null,null,null,null,null,null,null,null,null,null,{"$f":"IFERROR(VLOOKUP(D24,Hoja1!$A$3:$B$7,2,FALSE),\"\")","v":""},{"$f":"IFERROR(VLOOKUP(K24,Hoja1!$A$10:$B$12,2,FALSE),\"\")","v":""}]
[null,null,null,null,null,null,null,null,null,null,null,null,null,null,{"$f":"IFERROR(VLOOKUP(D25,Hoja1!$A$3:$B$7,2,FALSE),\"\")","v":""},{"$f":"IFERROR(VLOOKUP(K25,Hoja1!$A$10:$B$12,2,FALSE),\"\")","v":""}]
[null,null,null,null,null,null,null,null,null,null,null,null,null,null,{"$f":"IFERROR(VLOOKUP(D26,Hoja1!$A$3:$B$7,2,FALSE),\"\")","v":""},{"$f":"IFERROR(VLOOKUP(K26,Hoja1!$A$10:$B$12,2,FALSE),\"\")","v":""}]
[null,null,null,null,null,null,null,null,null,null,null,null,null,null,{"$f":"IFERROR(VLOOKUP(D27,Hoja1!$A$3:$B$7,2,FALSE),\"\")","v":""},{"$f":"IFERROR(VLOOKUP(K27,Hoja1!$A$10:$B$12,2,FALSE),\"\")","v":""}]
[null,null,null,null,null,null,null,null,null,null,null,null,null,null,{"$f":"IFERROR(VLOOKUP(D28,Hoja1!$A$3:$B$7,2,FALSE),\"\")","v":""},{"$f":"IFERROR(VLOOKUP(K28,Hoja1!$A$10:$B$12,2,FALSE),\"\")","v":""}]
[null,null,null,null,null,null,null,null,null,null,null,null,null,null,{"$f":"IFERROR(VLOOKUP(D29,Hoja1!$A$3:$B$7,2,FALSE),\"\")","v":""},{"$f":"IFERROR(VLOOKUP(K29,Hoja1!$A$10:$B$12,2,FALSE),\"\")","v":""}]
[null,null,null,null,null,null,null,null,null,null,null,null,null,null,{"$f":"IFERROR(VLOOKUP(D30,Hoja1!$A$3:$B$7,2,FALSE),\"\")","v":""},{"$f":"IFERROR(VLOOKUP(K30,Hoja1!$A$10:$B$12,2,FALSE),\"\")","v":""}]
[null,null,null,null,null,null,null,null,null,null,null,null,null,null,{"$f":"IFERROR(VLOOKUP(D31,Hoja1!$A$3:$B$7,2,FALSE),\"\")","v":""},{"$f":"IFERROR(VLOOKUP(K31,Hoja1!$A$10:$B$12,2,FALSE),\"\")","v":""}]
[null,null,null,null,null,null,null,null,null,null,null,null,null,null,{"$f":"IFERROR(VLOOKUP(D32,Hoja1!$A$3:$B$7,2,FALSE),\"\")","v":""},{"$f":"IFERROR(VLOOKUP(K32,Hoja1!$A$10:$B$12,2,FALSE),\"\")","v":""}]
[null,null,null,null,null,null,null,null,null,null,null,null,null,null,{"$f":"IFERROR(VLOOKUP(D33,Hoja1!$A$3:$B$7,2,FALSE),\"\")","v":""},{"$f":"IFERROR(VLOOKUP(K33,Hoja1!$A$10:$B$12,2,FALSE),\"\")","v":""}]
[null,null,null,null,null,null,null,null,null,null,null,null,null,null,{"$f":"IFERROR(VLOOKUP(D34,Hoja1!$A$3:$B$7,2,FALSE),\"\")","v":""},{"$f":"IFERROR(VLOOKUP(K34,Hoja1!$A$10:$B$12,2,FALSE),\"\")","v":""}]
[null,null,null,null,null,null,null,null,null,null,null,null,null,null,{"$f":"IFERROR(VLOOKUP(D35,Hoja1!$A$3:$B$7,2,FALSE),\"\")","v":""},{"$f":"IFERROR(VLOOKUP(K35,Hoja1!$A$10:$B$12,2,FALSE),\"\")","v":""}]
[null,null,null,null,null,null,null,null,null,null,null,null,null,null,{"$f":"IFERROR(VLOOKUP(D36,Hoja1!$A$3:$B$7,2,FALSE),\"\")","v":""},{"$f":"IFERROR(VLOOKUP(K36,Hoja1!$A$10:$B$12,2,FALSE),\"\")","v":""}]
[null,null,null,null,null,null,null,null,null,null,null,null,null,null,{"$f":"IFERROR(VLOOKUP(D37,Hoja1!$A$3:$B$7,2,FALSE),\"\")","v":""},{"$f":"IFERROR(VLOOKUP(K37,Hoja1!$A$10:$B$12,2,FALSE),\"\")","v":""}]
[null,null,null,null,null,null,null,null,null,null,null,null,null,null,{"$f":"IFERROR(VLOOKUP(D38,Hoja1!$A$3:$B$7,2,FALSE),\"\")","v":""},{"$f":"IFERROR(VLOOKUP(K38,Hoja1!$A$10:$B$12,2,FALSE),\"\")","v":""}]
[null,null,null,null,null,null,null,null,null,null,null,null,null,null,{"$f":"IFERROR(VLOOKUP(D39,Hoja1!$A$3:$B$7,2,FALSE),\"\")","v":""},{"$f":"IFERROR(VLOOKUP(K39,Hoja1!$A$10:$B$12,2,FALSE),\"\")","v":""}]
[null,null,null,null,null,null,null,null,null,null,null,null,null,null,{"$f":"IFERROR(VLOOKUP(D40,Hoja1!$A$3:$B$7,2,FALSE),\"\")","v":""},{"$f":"IFERROR(VLOOKUP(K40,Hoja1!$A$10:$B$12,2,FALSE),\"\")","v":""}]
[null,null,null,null,null,null,null,null,null,null,null,null,null,null,{"$f":"IFERROR(VLOOKUP(D41,Hoja1!$A$3:$B$7,2,FALSE),\"\")","v":""},{"$f":"IFERROR(VLOOKUP(K41,Hoja1!$A$10:$B$12,2,FALSE),\"\")","v":""}]
[null,null,null,null,null,null,null,null,null,null,null,null,null,null,{"$f":"IFERROR(VLOOKUP(D42,Hoja1!$A$3:$B$7,2,FALSE),\"\")","v":""},{"$f":"IFERROR(VLOOKUP(K42,Hoja1!$A$10:$B$12,2,FALSE),\"\")","v":""}]
[null,null,null,null,null,null,null,null,null,null,null,null,null,null,{"$f":"IFERROR(VLOOKUP(D43,Hoja1!$A$3:$B$7,2,FALSE),\"\")","v":""},{"$f":"IFERROR(VLOOKUP(K43,Hoja1!$A$10:$B$12,2,FALSE),\"\")","v":""}]
[null,null,null,null,null,null,null,null,null,null,null,null,null,null,{"$f":"IFERROR(VLOOKUP(D44,Hoja1!$A$3:$B$7,2,FALSE),\"\")","v":""},{"$f":"IFERROR(VLOOKUP(K44,Hoja1!$A$10:$B$12,2,FALSE),\"\")","v":""}]
[null,null,null,null,null,null,null,null,null,null,null,null,null,null,{"$f":"IFERROR(VLOOKUP(D45,Hoja1!$A$3:$B$7,2,FALSE),\"\")","v":""},{"$f":"IFERROR(VLOOKUP(K45,Hoja1!$A$10:$B$12,2,FALSE),\"\")","v":""}]
[null,null,null,null,null,null,null,null,null,null,null,null,null,null,{"$f":"IFERROR(VLOOKUP(D46,Hoja1!$A$3:$B$7,2,FALSE),\"\")","v":""},{"$f":"IFERROR(VLOOKUP(K46,Hoja1!$A$10:$B$12,2,FALSE),\"\")","v":""}]
[null,null,null,null,null,null,null,null,null,null,null,null,null,null,{"$f":"IFERROR(VLOOKUP(D47,Hoja1!$A$3:$B$7,2,FALSE),\"\")","v":""},{"$f":"IFERROR(VLOOKUP(K47,Hoja1!$A$10:$B$12,2,FALSE),\"\")","v":""}]
[null,null,null,null,null,null,null,null,null,null,null,null,null,null,{"$f":"IFERROR(VLOOKUP(D48,Hoja1!$A$3:$B$7,2,FALSE),\"\")","v":""},{"$f":"IFERROR(VLOOKUP(K48,Hoja1!$A$10:$B$12,2,FALSE),\"\")","v":""}]
[null,null,null,null,null,null,null,null,null,null,null,null,null,null,{"$f":"IFERROR(VLOOKUP(D49,Hoja1!$A$3:$B$7,2,FALSE),\"\")","v":""},{"$f":"IFERROR(VLOOKUP(K49,Hoja1!$A$10:$B$12,2,FALSE),\"\")","v":""}]
[null,null,null,null,null,null,null,null,null,null,null,null,null,null,{"$f":"IFERROR(VLOOKUP(D50,Hoja1!$A$3:$B$7,2,FALSE),\"\")","v":""},{"$f":"IFERROR(VLOOKUP(K50,Hoja1!$A$10:$B$12,2,FALSE),\"\")","v":""}]
[null,null,null,null,null,null,null,null,null,null,null,null,null,null,{"$f":"IFERROR(VLOOKUP(D51,Hoja1!$A$3:$B$7,2,FALSE),\"\")","v":""},{"$f":"IFERROR(VLOOKUP(K51,Hoja1!$A$10:$B$12,2,FALSE),\"\")","v":""}]
[null,null,null,null,null,null,null,null,null,null,null,null,null,null,{"$f":"IFERROR(VLOOKUP(D52,Hoja1!$A$3:$B$7,2,FALSE),\"\")","v":""},{"$f":"IFERROR(VLOOKUP(K52,Hoja1!$A$10:$B$12,2,FALSE),\"\")","v":""}]
[null,null,null,null,null,null,null,null,null,null,null,null,null,null,{"$f":"IFERROR(VLOOKUP(D53,Hoja1!$A$3:$B$7,2,FALSE),\"\")","v":""},{"$f":"IFERROR(VLOOKUP(K53,Hoja1!$A$10:$B$12,2,FALSE),\"\")","v":""}]
[null,null,null,null,null,null,null,null,null,null,null,null,null,null,{"$f":"IFERROR(VLOOKUP(D54,Hoja1!$A$3:$B$7,2,FALSE),\"\")","v":""},{"$f":"IFERROR(VLOOKUP(K54,Hoja1!$A$10:$B$12,2,FALSE),\"\")","v":""}]
[null,null,null,null,null,null,null,null,null,null,null,null,null,null,{"$f":"IFERROR(VLOOKUP(D55,Hoja1!$A$3:$B$7,2,FALSE),\"\")","v":""},{"$f":"IFERROR(VLOOKUP(K55,Hoja1!$A$10:$B$12,2,FALSE),\"\")","v":""}]
[null,null,null,null,null,null,null,null,null,null,null,null,null,null,{"$f":"IFERROR(VLOOKUP(D56,Hoja1!$A$3:$B$7,2,FALSE),\"\")","v":""},{"$f":"IFERROR(VLOOKUP(K56,Hoja1!$A$10:$B$12,2,FALSE),\"\")","v":""}]
[null,null,null,null,null,null,null,null,null,null,null,null,null,null,{"$f":"IFERROR(VLOOKUP(D57,Hoja1!$A$3:$B$7,2,FALSE),\"\")","v":""},{"$f":"IFERROR(VLOOKUP(K57,Hoja1!$A$10:$B$12,2,FALSE),\"\")","v":""}]
[null,null,null,null,null,null,null,null,null,null,null,null,null,null,{"$f":"IFERROR(VLOOKUP(D58,Hoja1!$A$3:$B$7,2,FALSE),\"\")","v":""},{"$f":"IFERROR(VLOOKUP(K58,Hoja1!$A$10:$B$12,2,FALSE),\"\")","v":""}]
[null,null,null,null,null,null,null,null,null,null,null,null,null,null,{"$f":"IFERROR(VLOOKUP(D59,Hoja1!$A$3:$B$7,2,FALSE),\"\")","v":""},{"$f":"IFERROR(VLOOKUP(K59,Hoja1!$A$10:$B$12,2,FALSE),\"\")","v":""}]
[null,null,null,null,null,null,null,null,null,null,null,null,null,null,{"$f":"IFERROR(VLOOKUP(D60,Hoja1!$A$3:$B$7,2,FALSE),\"\")","v":""},{"$f":"IFERROR(VLOOKUP(K60,Hoja1!$A$10:$B$12,2,FALSE),\"\")","v":""}]
[null,null,null,null,null,null,null,null,null,null,null,null,null,null,{"$f":"IFERROR(VLOOKUP(D61,Hoja1!$A$3:$B$7,2,FALSE),\"\")","v":""},{"$f":"IFERROR(VLOOKUP(K61,Hoja1!$A$10:$B$12,2,FALSE),\"\")","v":""}]
[null,null,null,null,null,null,null,null,null,null,null,null,null,null,{"$f":"IFERROR(VLOOKUP(D62,Hoja1!$A$3:$B$7,2,FALSE),\"\")","v":""},{"$f":"IFERROR(VLOOKUP(K62,Hoja1!$A$10:$B$12,2,FALSE),\"\")","v":""}]
[null,null,null,null,null,null,null,null,null,null,null,null,null,null,{"$f":"IFERROR(VLOOKUP(D63,Hoja1!$A$3:$B$7,2,FALSE),\"\")","v":""},{"$f":"IFERROR(VLOOKUP(K63,Hoja1!$A$10:$B$12,2,FALSE),\"\")","v":""}]
[null,null,null,null,null,null,null,null,null,null,null,null,null,null,{"$f":"IFERROR(VLOOKUP(D64,Hoja1!$A$3:$B$7,2,FALSE),\"\")","v":""},{"$f":"IFERROR(VLOOKUP(K64,Hoja1!$A$10:$B$12,2,FALSE),\"\")","v":""}]
[null,null,null,null,null,null,null,null,null,null,null,null,null,null,{"$f":"IFERROR(VLOOKUP(D65,Hoja1!$A$3:$B$7,2,FALSE),\"\")","v":""},{"$f":"IFERROR(VLOOKUP(K65,Hoja1!$A$10:$B$12,2,FALSE),\"\")","v":""}]
[null,null,null,null,null,null,null,null,null,null,null,null,null,null,{"$f":"IFERROR(VLOOKUP(D66,Hoja1!$A$3:$B$7,2,FALSE),\"\")","v":""},{"$f":"IFERROR(VLOOKUP(K66,Hoja1!$A$10:$B$12,2,FALSE),\"\")","v":""}]
[null,null,null,null,null,null,null,null,null,null,null,null,null,null,{"$f":"IFERROR(VLOOKUP(D67,Hoja1!$A$3:$B$7,2,FALSE),\"\")","v":""},{"$f":"IFERROR(VLOOKUP(K67,Hoja1!$A$10:$B$12,2,FALSE),\"\")","v":""}]
[null,null,null,null,null,null,null,null,null,null,null,null,null,null,{"$f":"IFERROR(VLOOKUP(D68,Hoja1!$A$3:$B$7,2,FALSE),\"\")","v":""},{"$f":"IFERROR(VLOOKUP(K68,Hoja1!$A$10:$B$12,2,FALSE),\"\")","v":""}]
[null,null,null,null,null,null,null,null,null,null,null,null,null,null,{"$f":"IFERROR(VLOOKUP(D69,Hoja1!$A$3:$B$7,2,FALSE),\"\")","v":""},{"$f":"IFERROR(VLOOKUP(K69,Hoja1!$A$10:$B$12,2,FALSE),\"\")","v":""}]
[null,null,null,null,null,null,null,null,null,null,null,null,null,null,{"$f":"IFERROR(VLOOKUP(D70,Hoja1!$A$3:$B$7,2,FALSE),\"\")","v":""},{"$f":"IFERROR(VLOOKUP(K70,Hoja1!$A$10:$B$12,2,FALSE),\"\")","v":""}]
[null,null,null,null,null,null,null,null,null,null,null,null,null,null,{"$f":"IFERROR(VLOOKUP(D71,Hoja1!$A$3:$B$7,2,FALSE),\"\")","v":""},{"$f":"IFERROR(VLOOKUP(K71,Hoja1!$A$10:$B$12,2,FALSE),\"\")","v":""}]
[null,null,null,null,null,null,null,null,null,null,null,null,null,null,{"$f":"IFERROR(VLOOKUP(D72,Hoja1!$A$3:$B$7,2,FALSE),\"\")","v":""},{"$f":"IFERROR(VLOOKUP(K72,Hoja1!$A$10:$B$12,2,FALSE),\"\")","v":""}]
[null,null,null,null,null,null,null,null,null,null,null,null,null,null,{"$f":"IFERROR(VLOOKUP(D73,Hoja1!$A$3:$B$7,2,FALSE),\"\")","v":""},{"$f":"IFERROR(VLOOKUP(K73,Hoja1!$A$10:$B$12,2,FALSE),\"\")","v":""}]
[null,null,null,null,null,null,null,null,null,null,null,null,null,null,{"$f":"IFERROR(VLOOKUP(D74,Hoja1!$A$3:$B$7,2,FALSE),\"\")","v":""},{"$f":"IFERROR(VLOOKUP(K74,Hoja1!$A$10:$B$12,2,FALSE),\"\")","v":""}]
[null,null,null,null,null,null,null,null,null,null,null,null,null,null,{"$f":"IFERROR(VLOOKUP(D75,Hoja1!$A$3:$B$7,2,FALSE),\"\")","v":""},{"$f":"IFERROR(VLOOKUP(K75,Hoja1!$A$10:$B$12,2,FALSE),\"\")","v":""}]
[null,null,null,null,null,null,null,null,null,null,null,null,null,null,{"$f":"IFERROR(VLOOKUP(D76,Hoja1!$A$3:$B$7,2,FALSE),\"\")","v":""},{"$f":"IFERROR(VLOOKUP(K76,Hoja1!$A$10:$B$12,2,FALSE),\"\")","v":""}]
[null,null,null,null,null,null,null,null,null,null,null,null,null,null,{"$f":"IFERROR(VLOOKUP(D77,Hoja1!$A$3:$B$7,2,FALSE),\"\")","v":""},{"$f":"IFERROR(VLOOKUP(K77,Hoja1!$A$10:$B$12,2,FALSE),\"\")","v":""}]
[null,null,null,null,null,null,null,null,null,null,null,null,null,null,{"$f":"IFERROR(VLOOKUP(D78,Hoja1!$A$3:$B$7,2,FALSE),\"\")","v":""},{"$f":"IFERROR(VLOOKUP(K78,Hoja1!$A$10:$B$12,2,FALSE),\"\")","v":""}]
[null,null,null,null,null,null,null,null,null,null,null,null,null,null,{"$f":"IFERROR(VLOOKUP(D79,Hoja1!$A$3:$B$7,2,FALSE),\"\")","v":""},{"$f":"IFERROR(VLOOKUP(K79,Hoja1!$A$10:$B$12,2,FALSE),\"\")","v":""}]
[null,null,null,null,null,null,null,null,null,null,null,null,null,null,{"$f":"IFERROR(VLOOKUP(D80,Hoja1!$A$3:$B$7,2,FALSE),\"\")","v":""},{"$f":"IFERROR(VLOOKUP(K80,Hoja1!$A$10:$B$12,2,FALSE),\"\")","v":""}]
[null,null,null,null,null,null,null,null,null,null,null,null,null,null,{"$f":"IFERROR(VLOOKUP(D81,Hoja1!$A$3:$B$7,2,FALSE),\"\")","v":""},{"$f":"IFERROR(VLOOKUP(K81,Hoja1!$A$10:$B$12,2,FALSE),\"\")","v":""}]
[null,null,null,null,null,null,null,null,null,null,null,null,null,null,{"$f":"IFERROR(VLOOKUP(D82,Hoja1!$A$3:$B$7,2,FALSE),\"\")","v":""},{"$f":"IFERROR(VLOOKUP(K82,Hoja1!$A$10:$B$12,2,FALSE),\"\")","v":""}]
[null,null,null,null,null,null,null,null,null,null,null,null,null,null,{"$f":"IFERROR(VLOOKUP(D83,Hoja1!$A$3:$B$7,2,FALSE),\"\")","v":""},{"$f":"IFERROR(VLOOKUP(K83,Hoja1!$A$10:$B$12,2,FALSE),\"\")","v":""}]
[null,null,null,null,null,null,null,null,null,null,null,null,null,null,{"$f":"IFERROR(VLOOKUP(D84,Hoja1!$A$3:$B$7,2,FALSE),\"\")","v":""},{"$f":"IFERROR(VLOOKUP(K84,Hoja1!$A$10:$B$12,2,FALSE),\"\")","v":""}]
[null,null,null,null,null,null,null,null,null,null,null,null,null,null,{"$f":"IFERROR(VLOOKUP(D85,Hoja1!$A$3:$B$7,2,FALSE),\"\")","v":""},{"$f":"IFERROR(VLOOKUP(K85,Hoja1!$A$10:$B$12,2,FALSE),\"\")","v":""}]
[null,null,null,null,null,null,null,null,null,null,null,null,null,null,{"$f":"IFERROR(VLOOKUP(D86,Hoja1!$A$3:$B$7,2,FALSE),\"\")","v":""},{"$f":"IFERROR(VLOOKUP(K86,Hoja1!$A$10:$B$12,2,FALSE),\"\")","v":""}]
[null,null,null,null,null,null,null,null,null,null,null,null,null,null,{"$f":"IFERROR(VLOOKUP(D87,Hoja1!$A$3:$B$7,2,FALSE),\"\")","v":""},{"$f":"IFERROR(VLOOKUP(K87,Hoja1!$A$10:$B$12,2,FALSE),\"\")","v":""}]
[null,null,null,null,null,null,null,null,null,null,null,null,null,null,{"$f":"IFERROR(VLOOKUP(D88,Hoja1!$A$3:$B$7,2,FALSE),\"\")","v":""},{"$f":"IFERROR(VLOOKUP(K88,Hoja1!$A$10:$B$12,2,FALSE),\"\")","v":""}]
[null,null,null,null,null,null,null,null,null,null,null,null,null,null,{"$f":"IFERROR(VLOOKUP(D89,Hoja1!$A$3:$B$7,2,FALSE),\"\")","v":""},{"$f":"IFERROR(VLOOKUP(K89,Hoja1!$A$10:$B$12,2,FALSE),\"\")","v":""}]
[null,null,null,null,null,null,null,null,null,null,null,null,null,null,{"$f":"IFERROR(VLOOKUP(D90,Hoja1!$A$3:$B$7,2,FALSE),\"\")","v":""},{"$f":"IFERROR(VLOOKUP(K90,Hoja1!$A$10:$B$12,2,FALSE),\"\")","v":""}]
[null,null,null,null,null,null,null,null,null,null,null,null,null,null,{"$f":"IFERROR(VLOOKUP(D91,Hoja1!$A$3:$B$7,2,FALSE),\"\")","v":""},{"$f":"IFERROR(VLOOKUP(K91,Hoja1!$A$10:$B$12,2,FALSE),\"\")","v":""}]
[null,null,null,null,null,null,null,null,null,null,null,null,null,null,{"$f":"IFERROR(VLOOKUP(D92,Hoja1!$A$3:$B$7,2,FALSE),\"\")","v":""},{"$f":"IFERROR(VLOOKUP(K92,Hoja1!$A$10:$B$12,2,FALSE),\"\")","v":""}]
[null,null,null,null,null,null,null,null,null,null,null,null,null,null,{"$f":"IFERROR(VLOOKUP(D93,Hoja1!$A$3:$B$7,2,FALSE),\"\")","v":""},{"$f":"IFERROR(VLOOKUP(K93,Hoja1!$A$10:$B$12,2,FALSE),\"\")","v":""}]
[null,null,null,null,null,null,null,null,null,null,null,null,null,null,{"$f":"IFERROR(VLOOKUP(D94,Hoja1!$A$3:$B$7,2,FALSE),\"\")","v":""},{"$f":"IFERROR(VLOOKUP(K94,Hoja1!$A$10:$B$12,2,FALSE),\"\")","v":""}]
[null,null,null,null,null,null,null,null,null,null,null,null,null,null,{"$f":"IFERROR(VLOOKUP(D95,Hoja1!$A$3:$B$7,2,FALSE),\"\")","v":""},{"$f":"IFERROR(VLOOKUP(K95,Hoja1!$A$10:$B$12,2,FALSE),\"\")","v":""}]
[null,null,null,null,null,null,null,null,null,null,null,null,null,null,{"$f":"IFERROR(VLOOKUP(D96,Hoja1!$A$3:$B$7,2,FALSE),\"\")","v":""},{"$f":"IFERROR(VLOOKUP(K96,Hoja1!$A$10:$B$12,2,FALSE),\"\")","v":""}]
[null,null,null,null,null,null,null,null,null,null,null,null,null,null,{"$f":"IFERROR(VLOOKUP(D97,Hoja1!$A$3:$B$7,2,FALSE),\"\")","v":""},{"$f":"IFERROR(VLOOKUP(K97,Hoja1!$A$10:$B$12,2,FALSE),\"\")","v":""}]
[null,null,null,null,null,null,null,null,null,null,null,null,null,null,{"$f":"IFERROR(VLOOKUP(D98,Hoja1!$A$3:$B$7,2,FALSE),\"\")","v":""},{"$f":"IFERROR(VLOOKUP(K98,Hoja1!$A$10:$B$12,2,FALSE),\"\")","v":""}]
[null,null,null,null,null,null,null,null,null,null,null,null,null,null,{"$f":"IFERROR(VLOOKUP(D99,Hoja1!$A$3:$B$7,2,FALSE),\"\")","v":""},{"$f":"IFERROR(VLOOKUP(K99,Hoja1!$A$10:$B$12,2,FALSE),\"\")","v":""}]
[null,null,null,null,null,null,null,null,null,null,null,null,null,null,{"$f":"IFERROR(VLOOKUP(D100,Hoja1!$A$3:$B$7,2,FALSE),\"\")","v":""},{"$f":"IFERROR(VLOOKUP(K100,Hoja1!$A$10:$B$12,2,FALSE),\"\")","v":""}]
[null,null,null,null,null,null,null,null,null,null,null,null,null,null,{"$f":"IFERROR(VLOOKUP(D101,Hoja1!$A$3:$B$7,2,FALSE),\"\")","v":""},{"$f":"IFERROR(VLOOKUP(K101,Hoja1!$A$10:$B$12,2,FALSE),\"\")","v":""}]
[null,null,null,null,null,null,null,null,null,null,null,null,null,null,{"$f":"IFERROR(VLOOKUP(D102,Hoja1!$A$3:$B$7,2,FALSE),\"\")","v":""},{"$f":"IFERROR(VLOOKUP(K102,Hoja1!$A$10:$B$12,2,FALSE),\"\")","v":""}]
[null,null,null,null,null,null,null,null,null,null,null,null,null,null,{"$f":"IFERROR(VLOOKUP(D103,Hoja1!$A$3:$B$7,2,FALSE),\"\")","v":""},{"$f":"IFERROR(VLOOKUP(K103,Hoja1!$A$10:$B$12,2,FALSE),\"\")","v":""}]
[null,null,null,null,null,null,null,null,null,null,null,null,null,null,{"$f":"IFERROR(VLOOKUP(D104,Hoja1!$A$3:$B$7,2,FALSE),\"\")","v":""},{"$f":"IFERROR(VLOOKUP(K104,Hoja1!$A$10:$B$12,2,FALSE),\"\")","v":""}]
[null,null,null,null,null,null,null,null,null,null,null,null,null,null,{"$f":"IFERROR(VLOOKUP(D105,Hoja1!$A$3:$B$7,2,FALSE),\"\")","v":""},{"$f":"IFERROR(VLOOKUP(K105,Hoja1!$A$10:$B$12,2,FALSE),\"\")","v":""}]
[null,null,null,null,null,null,null,null,null,null,null,null,null,null,{"$f":"IFERROR(VLOOKUP(D106,Hoja1!$A$3:$B$7,2,FALSE),\"\")","v":""},{"$f":"IFERROR(VLOOKUP(K106,Hoja1!$A$10:$B$12,2,FALSE),\"\")","v":""}]
[null,null,null,null,null,null,null,null,null,null,null,null,null,null,{"$f":"IFERROR(VLOOKUP(D107,Hoja1!$A$3:$B$7,2,FALSE),\"\")","v":""},{"$f":"IFERROR(VLOOKUP(K107,Hoja1!$A$10:$B$12,2,FALSE),\"\")","v":""}]
[null,null,null,null,null,null,null,null,null,null,null,null,null,null,{"$f":"IFERROR(VLOOKUP(D108,Hoja1!$A$3:$B$7,2,FALSE),\"\")","v":""},{"$f":"IFERROR(VLOOKUP(K108,Hoja1!$A$10:$B$12,2,FALSE),\"\")","v":""}]
[null,null,null,null,null,null,null,null,null,null,null,null,null,null,{"$f":"IFERROR(VLOOKUP(D109,Hoja1!$A$3:$B$7,2,FALSE),\"\")","v":""},{"$f":"IFERROR(VLOOKUP(K109,Hoja1!$A$10:$B$12,2,FALSE),\"\")","v":""}]
[null,null,null,null,null,null,null,null,null,null,null,null,null,null,{"$f":"IFERROR(VLOOKUP(D110,Hoja1!$A$3:$B$7,2,FALSE),\"\")","v":""},{"$f":"IFERROR(VLOOKUP(K110,Hoja1!$A$10:$B$12,2,FALSE),\"\")","v":""}]
[null,null,null,null,null,null,null,null,null,null,null,null,null,null,{"$f":"IFERROR(VLOOKUP(D111,Hoja1!$A$3:$B$7,2,FALSE),\"\")","v":""},{"$f":"IFERROR(VLOOKUP(K111,Hoja1!$A$10:$B$12,2,FALSE),\"\")","v":""}]
[null,null,null,null,null,null,null,null,null,null,null,null,null,null,{"$f":"IFERROR(VLOOKUP(D112,Hoja1!$A$3:$B$7,2,FALSE),\"\")","v":""},{"$f":"IFERROR(VLOOKUP(K112,Hoja1!$A$10:$B$12,2,FALSE),\"\")","v":""}]
[null,null,null,null,null,null,null,null,null,null,null,null,null,null,{"$f":"IFERROR(VLOOKUP(D113,Hoja1!$A$3:$B$7,2,FALSE),\"\")","v":""},{"$f":"IFERROR(VLOOKUP(K113,Hoja1!$A$10:$B$12,2,FALSE),\"\")","v":""}]
[null,null,null,null,null,null,null,null,null,null,null,null,null,null,{"$f":"IFERROR(VLOOKUP(D114,Hoja1!$A$3:$B$7,2,FALSE),\"\")","v":""},{"$f":"IFERROR(VLOOKUP(K114,Hoja1!$A$10:$B$12,2,FALSE),\"\")","v":""}]
[null,null,null,null,null,null,null,null,null,null,null,null,null,null,{"$f":"IFERROR(VLOOKUP(D115,Hoja1!$A$3:$B$7,2,FALSE),\"\")","v":""},{"$f":"IFERROR(VLOOKUP(K115,Hoja1!$A$10:$B$12,2,FALSE),\"\")","v":""}]
[null,null,null,null,null,null,null,null,null,null,null,null,null,null,{"$f":"IFERROR(VLOOKUP(D116,Hoja1!$A$3:$B$7,2,FALSE),\"\")","v":""},{"$f":"IFERROR(VLOOKUP(K116,Hoja1!$A$10:$B$12,2,FALSE),\"\")","v":""}]
[null,null,null,null,null,null,null,null,null,null,null,null,null,null,{"$f":"IFERROR(VLOOKUP(D117,Hoja1!$A$3:$B$7,2,FALSE),\"\")","v":""},{"$f":"IFERROR(VLOOKUP(K117,Hoja1!$A$10:$B$12,2,FALSE),\"\")","v":""}]
[null,null,null,null,null,null,null,null,null,null,null,null,null,null,{"$f":"IFERROR(VLOOKUP(D118,Hoja1!$A$3:$B$7,2,FALSE),\"\")","v":""},{"$f":"IFERROR(VLOOKUP(K118,Hoja1!$A$10:$B$12,2,FALSE),\"\")","v":""}]
[null,null,null,null,null,null,null,null,null,null,null,null,null,null,{"$f":"IFERROR(VLOOKUP(D119,Hoja1!$A$3:$B$7,2,FALSE),\"\")","v":""},{"$f":"IFERROR(VLOOKUP(K119,Hoja1!$A$10:$B$12,2,FALSE),\"\")","v":""}]
[null,null,null,null,null,null,null,null,null,null,null,null,null,null,{"$f":"IFERROR(VLOOKUP(D120,Hoja1!$A$3:$B$7,2,FALSE),\"\")","v":""},{"$f":"IFERROR(VLOOKUP(K120,Hoja1!$A$10:$B$12,2,FALSE),\"\")","v":""}]
[null,null,null,null,null,null,null,null,null,null,null,null,null,null,{"$f":"IFERROR(VLOOKUP(D121,Hoja1!$A$3:$B$7,2,FALSE),\"\")","v":""},{"$f":"IFERROR(VLOOKUP(K121,Hoja1!$A$10:$B$12,2,FALSE),\"\")","v":""}]
[null,null,null,null,null,null,null,null,null,null,null,null,null,null,{"$f":"IFERROR(VLOOKUP(D122,Hoja1!$A$3:$B$7,2,FALSE),\"\")","v":""},{"$f":"IFERROR(VLOOKUP(K122,Hoja1!$A$10:$B$12,2,FALSE),\"\")","v":""}]
[null,null,null,null,null,null,null,null,null,null,null,null,null,null,{"$f":"IFERROR(VLOOKUP(D123,Hoja1!$A$3:$B$7,2,FALSE),\"\")","v":""},{"$f":"IFERROR(VLOOKUP(K123,Hoja1!$A$10:$B$12,2,FALSE),\"\")","v":""}]
[null,null,null,null,null,null,null,null,null,null,null,null,null,null,{"$f":"IFERROR(VLOOKUP(D124,Hoja1!$A$3:$B$7,2,FALSE),\"\")","v":""},{"$f":"IFERROR(VLOOKUP(K124,Hoja1!$A$10:$B$12,2,FALSE),\"\")","v":""}]
[null,null,null,null,null,null,null,null,null,null,null,null,null,null,{"$f":"IFERROR(VLOOKUP(D125,Hoja1!$A$3:$B$7,2,FALSE),\"\")","v":""},{"$f":"IFERROR(VLOOKUP(K125,Hoja1!$A$10:$B$12,2,FALSE),\"\")","v":""}]
[null,null,null,null,null,null,null,null,null,null,null,null,null,null,{"$f":"IFERROR(VLOOKUP(D126,Hoja1!$A$3:$B$7,2,FALSE),\"\")","v":""},{"$f":"IFERROR(VLOOKUP(K126,Hoja1!$A$10:$B$12,2,FALSE),\"\")","v":""}]
[null,null,null,null,null,null,null,null,null,null,null,null,null,null,{"$f":"IFERROR(VLOOKUP(D127,Hoja1!$A$3:$B$7,2,FALSE),\"\")","v":""},{"$f":"IFERROR(VLOOKUP(K127,Hoja1!$A$10:$B$12,2,FALSE),\"\")","v":""}]
[null,null,null,null,null,null,null,null,null,null,null,null,null,null,{"$f":"IFERROR(VLOOKUP(D128,Hoja1!$A$3:$B$7,2,FALSE),\"\")","v":""},{"$f":"IFERROR(VLOOKUP(K128,Hoja1!$A$10:$B$12,2,FALSE),\"\")","v":""}]
[null,null,null,null,null,null,null,null,null,null,null,null,null,null,{"$f":"IFERROR(VLOOKUP(D129,Hoja1!$A$3:$B$7,2,FALSE),\"\")","v":""},{"$f":"IFERROR(VLOOKUP(K129,Hoja1!$A$10:$B$12,2,FALSE),\"\")","v":""}]
[null,null,null,null,null,null,null,null,null,null,null,null,null,null,{"$f":"IFERROR(VLOOKUP(D130,Hoja1!$A$3:$B$7,2,FALSE),\"\")","v":""},{"$f":"IFERROR(VLOOKUP(K130,Hoja1!$A$10:$B$12,2,FALSE),\"\")","v":""}]
[null,null,null,null,null,null,null,null,null,null,null,null,null,null,{"$f":"IFERROR(VLOOKUP(D131,Hoja1!$A$3:$B$7,2,FALSE),\"\")","v":""},{"$f":"IFERROR(VLOOKUP(K131,Hoja1!$A$10:$B$12,2,FALSE),\"\")","v":""}]
[null,null,null,null,null,null,null,null,null,null,null,null,null,null,{"$f":"IFERROR(VLOOKUP(D132,Hoja1!$A$3:$B$7,2,FALSE),\"\")","v":""},{"$f":"IFERROR(VLOOKUP(K132,Hoja1!$A$10:$B$12,2,FALSE),\"\")","v":""}]
[null,null,null,null,null,null,null,null,null,null,null,null,null,null,{"$f":"IFERROR(VLOOKUP(D133,Hoja1!$A$3:$B$7,2,FALSE),\"\")","v":""},{"$f":"IFERROR(VLOOKUP(K133,Hoja1!$A$10:$B$12,2,FALSE),\"\")","v":""}]
[null,null,null,null,null,null,null,null,null,null,null,null,null,null,{"$f":"IFERROR(VLOOKUP(D134,Hoja1!$A$3:$B$7,2,FALSE),\"\")","v":""},{"$f":"IFERROR(VLOOKUP(K134,Hoja1!$A$10:$B$12,2,FALSE),\"\")","v":""}]
[null,null,null,null,null,null,null,null,null,null,null,null,null,null,{"$f":"IFERROR(VLOOKUP(D135,Hoja1!$A$3:$B$7,2,FALSE),\"\")","v":""},{"$f":"IFERROR(VLOOKUP(K135,Hoja1!$A$10:$B$12,2,FALSE),\"\")","v":""}]
[null,null,null,null,null,null,null,null,null,null,null,null,null,null,{"$f":"IFERROR(VLOOKUP(D136,Hoja1!$A$3:$B$7,2,FALSE),\"\")","v":""},{"$f":"IFERROR(VLOOKUP(K136,Hoja1!$A$10:$B$12,2,FALSE),\"\")","v":""}]
[null,null,null,null,null,null,null,null,null,null,null,null,null,null,{"$f":"IFERROR(VLOOKUP(D137,Hoja1!$A$3:$B$7,2,FALSE),\"\")","v":""},{"$f":"IFERROR(VLOOKUP(K137,Hoja1!$A$10:$B$12,2,FALSE),\"\")","v":""}]
[null,null,null,null,null,null,null,null,null,null,null,null,null,null,{"$f":"IFERROR(VLOOKUP(D138,Hoja1!$A$3:$B$7,2,FALSE),\"\")","v":""},{"$f":"IFERROR(VLOOKUP(K138,Hoja1!$A$10:$B$12,2,FALSE),\"\")","v":""}]
[null,null,null,null,null,null,null,null,null,null,null,null,null,null,{"$f":"IFERROR(VLOOKUP(D139,Hoja1!$A$3:$B$7,2,FALSE),\"\")","v":""},{"$f":"IFERROR(VLOOKUP(K139,Hoja1!$A$10:$B$12,2,FALSE),\"\")","v":""}]
[null,null,null,null,null,null,null,null,null,null,null,null,null,null,{"$f":"IFERROR(VLOOKUP(D140,Hoja1!$A$3:$B$7,2,FALSE),\"\")","v":""},{"$f":"IFERROR(VLOOKUP(K140,Hoja1!$A$10:$B$12,2,FALSE),\"\")","v":""}]
[null,null,null,null,null,null,null,null,null,null,null,null,null,null,{"$f":"IFERROR(VLOOKUP(D141,Hoja1!$A$3:$B$7,2,FALSE),\"\")","v":""},{"$f":"IFERROR(VLOOKUP(K141,Hoja1!$A$10:$B$12,2,FALSE),\"\")","v":""}]
[null,null,null,null,null,null,null,null,null,null,null,null,null,null,{"$f":"IFERROR(VLOOKUP(D142,Hoja1!$A$3:$B$7,2,FALSE),\"\")","v":""},{"$f":"IFERROR(VLOOKUP(K142,Hoja1!$A$10:$B$12,2,FALSE),\"\")","v":""}]
[null,null,null,null,null,null,null,null,null,null,null,null,null,null,{"$f":"IFERROR(VLOOKUP(D143,Hoja1!$A$3:$B$7,2,FALSE),\"\")","v":""},{"$f":"IFERROR(VLOOKUP(K143,Hoja1!$A$10:$B$12,2,FALSE),\"\")","v":""}]
[null,null,null,null,null,null,null,null,null,null,null,null,null,null,{"$f":"IFERROR(VLOOKUP(D144,Hoja1!$A$3:$B$7,2,FALSE),\"\")","v":""},{"$f":"IFERROR(VLOOKUP(K144,Hoja1!$A$10:$B$12,2,FALSE),\"\")","v":""}]
[null,null,null,null,null,null,null,null,null,null,null,null,null,null,{"$f":"IFERROR(VLOOKUP(D145,Hoja1!$A$3:$B$7,2,FALSE),\"\")","v":""},{"$f":"IFERROR(VLOOKUP(K145,Hoja1!$A$10:$B$12,2,FALSE),\"\")","v":""}]
[null,null,null,null,null,null,null,null,null,null,null,null,null,null,{"$f":"IFERROR(VLOOKUP(D146,Hoja1!$A$3:$B$7,2,FALSE),\"\")","v":""},{"$f":"IFERROR(VLOOKUP(K146,Hoja1!$A$10:$B$12,2,FALSE),\"\")","v":""}]
[null,null,null,null,null,null,null,null,null,null,null,null,null,null,{"$f":"IFERROR(VLOOKUP(D147,Hoja1!$A$3:$B$7,2,FALSE),\"\")","v":""},{"$f":"IFERROR(VLOOKUP(K147,Hoja1!$A$10:$B$12,2,FALSE),\"\")","v":""}]
[null,null,null,null,null,null,null,null,null,null,null,null,null,null,{"$f":"IFERROR(VLOOKUP(D148,Hoja1!$A$3:$B$7,2,FALSE),\"\")","v":""},{"$f":"IFERROR(VLOOKUP(K148,Hoja1!$A$10:$B$12,2,FALSE),\"\")","v":""}]
[null,null,null,null,null,null,null,null,null,null,null,null,null,null,{"$f":"IFERROR(VLOOKUP(D149,Hoja1!$A$3:$B$7,2,FALSE),\"\")","v":""},{"$f":"IFERROR(VLOOKUP(K149,Hoja1!$A$10:$B$12,2,FALSE),\"\")","v":""}]
[null,null,null,null,null,null,null,null,null,null,null,null,null,null,{"$f":"IFERROR(VLOOKUP(D150,Hoja1!$A$3:$B$7,2,FALSE),\"\")","v":""},{"$f":"IFERROR(VLOOKUP(K150,Hoja1!$A$10:$B$12,2,FALSE),\"\")","v":""}]
[null,null,null,null,null,null,null,null,null,null,null,null,null,null,{"$f":"IFERROR(VLOOKUP(D151,Hoja1!$A$3:$B$7,2,FALSE),\"\")","v":""},{"$f":"IFERROR(VLOOKUP(K151,Hoja1!$A$10:$B$12,2,FALSE),\"\")","v":""}]
[null,null,null,null,null,null,null,null,null,null,null,null,null,null,{"$f":"IFERROR(VLOOKUP(D152,Hoja1!$A$3:$B$7,2,FALSE),\"\")","v":""},{"$f":"IFERROR(VLOOKUP(K152,Hoja1!$A$10:$B$12,2,FALSE),\"\")","v":""}]
[null,null,null,null,null,null,null,null,null,null,null,null,null,null,{"$f":"IFERROR(VLOOKUP(D153,Hoja1!$A$3:$B$7,2,FALSE),\"\")","v":""},{"$f":"IFERROR(VLOOKUP(K153,Hoja1!$A$10:$B$12,2,FALSE),\"\")","v":""}]
[null,null,null,null,null,null,null,null,null,null,null,null,null,null,{"$f":"IFERROR(VLOOKUP(D154,Hoja1!$A$3:$B$7,2,FALSE),\"\")","v":""},{"$f":"IFERROR(VLOOKUP(K154,Hoja1!$A$10:$B$12,2,FALSE),\"\")","v":""}]
[null,null,null,null,null,null,null,null,null,null,null,null,null,null,{"$f":"IFERROR(VLOOKUP(D155,Hoja1!$A$3:$B$7,2,FALSE),\"\")","v":""},{"$f":"IFERROR(VLOOKUP(K155,Hoja1!$A$10:$B$12,2,FALSE),\"\")","v":""}]
[null,null,null,null,null,null,null,null,null,null,null,null,null,null,{"$f":"IFERROR(VLOOKUP(D156,Hoja1!$A$3:$B$7,2,FALSE),\"\")","v":""},{"$f":"IFERROR(VLOOKUP(K156,Hoja1!$A$10:$B$12,2,FALSE),\"\")","v":""}]
[null,null,null,null,null,null,null,null,null,null,null,null,null,null,{"$f":"IFERROR(VLOOKUP(D157,Hoja1!$A$3:$B$7,2,FALSE),\"\")","v":""},{"$f":"IFERROR(VLOOKUP(K157,Hoja1!$A$10:$B$12,2,FALSE),\"\")","v":""}]
[null,null,null,null,null,null,null,null,null,null,null,null,null,null,{"$f":"IFERROR(VLOOKUP(D158,Hoja1!$A$3:$B$7,2,FALSE),\"\")","v":""},{"$f":"IFERROR(VLOOKUP(K158,Hoja1!$A$10:$B$12,2,FALSE),\"\")","v":""}]
[null,null,null,null,null,null,null,null,null,null,null,null,null,null,{"$f":"IFERROR(VLOOKUP(D159,Hoja1!$A$3:$B$7,2,FALSE),\"\")","v":""},{"$f":"IFERROR(VLOOKUP(K159,Hoja1!$A$10:$B$12,2,FALSE),\"\")","v":""}]
[null,null,null,null,null,null,null,null,null,null,null,null,null,null,{"$f":"IFERROR(VLOOKUP(D160,Hoja1!$A$3:$B$7,2,FALSE),\"\")","v":""},{"$f":"IFERROR(VLOOKUP(K160,Hoja1!$A$10:$B$12,2,FALSE),\"\")","v":""}]
[null,null,null,null,null,null,null,null,null,null,null,null,null,null,{"$f":"IFERROR(VLOOKUP(D161,Hoja1!$A$3:$B$7,2,FALSE),\"\")","v":""},{"$f":"IFERROR(VLOOKUP(K161,Hoja1!$A$10:$B$12,2,FALSE),\"\")","v":""}]
[null,null,null,null,null,null,null,null,null,null,null,null,null,null,{"$f":"IFERROR(VLOOKUP(D162,Hoja1!$A$3:$B$7,2,FALSE),\"\")","v":""},{"$f":"IFERROR(VLOOKUP(K162,Hoja1!$A$10:$B$12,2,FALSE),\"\")","v":""}]
[null,null,null,null,null,null,null,null,null,null,null,null,null,null,{"$f":"IFERROR(VLOOKUP(D163,Hoja1!$A$3:$B$7,2,FALSE),\"\")","v":""},{"$f":"IFERROR(VLOOKUP(K163,Hoja1!$A$10:$B$12,2,FALSE),\"\")","v":""}]
[null,null,null,null,null,null,null,null,null,null,null,null,null,null,{"$f":"IFERROR(VLOOKUP(D164,Hoja1!$A$3:$B$7,2,FALSE),\"\")","v":""},{"$f":"IFERROR(VLOOKUP(K164,Hoja1!$A$10:$B$12,2,FALSE),\"\")","v":""}]
[null,null,null,null,null,null,null,null,null,null,null,null,null,null,{"$f":"IFERROR(VLOOKUP(D165,Hoja1!$A$3:$B$7,2,FALSE),\"\")","v":""},{"$f":"IFERROR(VLOOKUP(K165,Hoja1!$A$10:$B$12,2,FALSE),\"\")","v":""}]
[null,null,null,null,null,null,null,null,null,null,null,null,null,null,{"$f":"IFERROR(VLOOKUP(D166,Hoja1!$A$3:$B$7,2,FALSE),\"\")","v":""},{"$f":"IFERROR(VLOOKUP(K166,Hoja1!$A$10:$B$12,2,FALSE),\"\")","v":""}]
[null,null,null,null,null,null,null,null,null,null,null,null,null,null,{"$f":"IFERROR(VLOOKUP(D167,Hoja1!$A$3:$B$7,2,FALSE),\"\")","v":""},{"$f":"IFERROR(VLOOKUP(K167,Hoja1!$A$10:$B$12,2,FALSE),\"\")","v":""}]
[null,null,null,null,null,null,null,null,null,null,null,null,null,null,{"$f":"IFERROR(VLOOKUP(D168,Hoja1!$A$3:$B$7,2,FALSE),\"\")","v":""},{"$f":"IFERROR(VLOOKUP(K168,Hoja1!$A$10:$B$12,2,FALSE),\"\")","v":""}]
[null,null,null,null,null,null,null,null,null,null,null,null,null,null,{"$f":"IFERROR(VLOOKUP(D169,Hoja1!$A$3:$B$7,2,FALSE),\"\")","v":""},{"$f":"IFERROR(VLOOKUP(K169,Hoja1!$A$10:$B$12,2,FALSE),\"\")","v":""}]
[null,null,null,null,null,null,null,null,null,null,null,null,null,null,{"$f":"IFERROR(VLOOKUP(D170,Hoja1!$A$3:$B$7,2,FALSE),\"\")","v":""},{"$f":"IFERROR(VLOOKUP(K170,Hoja1!$A$10:$B$12,2,FALSE),\"\")","v":""}]
[null,null,null,null,null,null,null,null,null,null,null,null,null,null,{"$f":"IFERROR(VLOOKUP(D171,Hoja1!$A$3:$B$7,2,FALSE),\"\")","v":""},{"$f":"IFERROR(VLOOKUP(K171,Hoja1!$A$10:$B$12,2,FALSE),\"\")","v":""}]
[null,null,null,null,null,null,null,null,null,null,null,null,null,null,{"$f":"IFERROR(VLOOKUP(D172,Hoja1!$A$3:$B$7,2,FALSE),\"\")","v":""},{"$f":"IFERROR(VLOOKUP(K172,Hoja1!$A$10:$B$12,2,FALSE),\"\")","v":""}]
[null,null,null,null,null,null,null,null,null,null,null,null,null,null,{"$f":"IFERROR(VLOOKUP(D173,Hoja1!$A$3:$B$7,2,FALSE),\"\")","v":""},{"$f":"IFERROR(VLOOKUP(K173,Hoja1!$A$10:$B$12,2,FALSE),\"\")","v":""}]
[null,null,null,null,null,null,null,null,null,null,null,null,null,null,{"$f":"IFERROR(VLOOKUP(D174,Hoja1!$A$3:$B$7,2,FALSE),\"\")","v":""},{"$f":"IFERROR(VLOOKUP(K174,Hoja1!$A$10:$B$12,2,FALSE),\"\")","v":""}]
[null,null,null,null,null,null,null,null,null,null,null,null,null,null,{"$f":"IFERROR(VLOOKUP(D175,Hoja1!$A$3:$B$7,2,FALSE),\"\")","v":""},{"$f":"IFERROR(VLOOKUP(K175,Hoja1!$A$10:$B$12,2,FALSE),\"\")","v":""}]
[null,null,null,null,null,null,null,null,null,null,null,null,null,null,{"$f":"IFERROR(VLOOKUP(D176,Hoja1!$A$3:$B$7,2,FALSE),\"\")","v":""},{"$f":"IFERROR(VLOOKUP(K176,Hoja1!$A$10:$B$12,2,FALSE),\"\")","v":""}]
[null,null,null,null,null,null,null,null,null,null,null,null,null,null,{"$f":"IFERROR(VLOOKUP(D177,Hoja1!$A$3:$B$7,2,FALSE),\"\")","v":""},{"$f":"IFERROR(VLOOKUP(K177,Hoja1!$A$10:$B$12,2,FALSE),\"\")","v":""}]
[null,null,null,null,null,null,null,null,null,null,null,null,null,null,{"$f":"IFERROR(VLOOKUP(D178,Hoja1!$A$3:$B$7,2,FALSE),\"\")","v":""},{"$f":"IFERROR(VLOOKUP(K178,Hoja1!$A$10:$B$12,2,FALSE),\"\")","v":""}]
[null,null,null,null,null,null,null,null,null,null,null,null,null,null,{"$f":"IFERROR(VLOOKUP(D179,Hoja1!$A$3:$B$7,2,FALSE),\"\")","v":""},{"$f":"IFERROR(VLOOKUP(K179,Hoja1!$A$10:$B$12,2,FALSE),\"\")","v":""}]
[null,null,null,null,null,null,null,null,null,null,null,null,null,null,{"$f":"IFERROR(VLOOKUP(D180,Hoja1!$A$3:$B$7,2,FALSE),\"\")","v":""},{"$f":"IFERROR(VLOOKUP(K180,Hoja1!$A$10:$B$12,2,FALSE),\"\")","v":""}]
[null,null,null,null,null,null,null,null,null,null,null,null,null,null,{"$f":"IFERROR(VLOOKUP(D181,Hoja1!$A$3:$B$7,2,FALSE),\"\")","v":""},{"$f":"IFERROR(VLOOKUP(K181,Hoja1!$A$10:$B$12,2,FALSE),\"\")","v":""}]
[null,null,null,null,null,null,null,null,null,null,null,null,null,null,{"$f":"IFERROR(VLOOKUP(D182,Hoja1!$A$3:$B$7,2,FALSE),\"\")","v":""},{"$f":"IFERROR(VLOOKUP(K182,Hoja1!$A$10:$B$12,2,FALSE),\"\")","v":""}]
[null,null,null,null,null,null,null,null,null,null,null,null,null,null,{"$f":"IFERROR(VLOOKUP(D183,Hoja1!$A$3:$B$7,2,FALSE),\"\")","v":""},{"$f":"IFERROR(VLOOKUP(K183,Hoja1!$A$10:$B$12,2,FALSE),\"\")","v":""}]
[null,null,null,null,null,null,null,null,null,null,null,null,null,null,{"$f":"IFERROR(VLOOKUP(D184,Hoja1!$A$3:$B$7,2,FALSE),\"\")","v":""},{"$f":"IFERROR(VLOOKUP(K184,Hoja1!$A$10:$B$12,2,FALSE),\"\")","v":""}]
[null,null,null,null,null,null,null,null,null,null,null,null,null,null,{"$f":"IFERROR(VLOOKUP(D185,Hoja1!$A$3:$B$7,2,FALSE),\"\")","v":""},{"$f":"IFERROR(VLOOKUP(K185,Hoja1!$A$10:$B$12,2,FALSE),\"\")","v":""}]
[null,null,null,null,null,null,null,null,null,null,null,null,null,null,{"$f":"IFERROR(VLOOKUP(D186,Hoja1!$A$3:$B$7,2,FALSE),\"\")","v":""},{"$f":"IFERROR(VLOOKUP(K186,Hoja1!$A$10:$B$12,2,FALSE),\"\")","v":""}]
[null,null,null,null,null,null,null,null,null,null,null,null,null,null,{"$f":"IFERROR(VLOOKUP(D187,Hoja1!$A$3:$B$7,2,FALSE),\"\")","v":""},{"$f":"IFERROR(VLOOKUP(K187,Hoja1!$A$10:$B$12,2,FALSE),\"\")","v":""}]
[null,null,null,null,null,null,null,null,null,null,null,null,null,null,{"$f":"IFERROR(VLOOKUP(D188,Hoja1!$A$3:$B$7,2,FALSE),\"\")","v":""},{"$f":"IFERROR(VLOOKUP(K188,Hoja1!$A$10:$B$12,2,FALSE),\"\")","v":""}]
[null,null,null,null,null,null,null,null,null,null,null,null,null,null,{"$f":"IFERROR(VLOOKUP(D189,Hoja1!$A$3:$B$7,2,FALSE),\"\")","v":""},{"$f":"IFERROR(VLOOKUP(K189,Hoja1!$A$10:$B$12,2,FALSE),\"\")","v":""}]
[null,null,null,null,null,null,null,null,null,null,null,null,null,null,{"$f":"IFERROR(VLOOKUP(D190,Hoja1!$A$3:$B$7,2,FALSE),\"\")","v":""},{"$f":"IFERROR(VLOOKUP(K190,Hoja1!$A$10:$B$12,2,FALSE),\"\")","v":""}]
[null,null,null,null,null,null,null,null,null,null,null,null,null,null,{"$f":"IFERROR(VLOOKUP(D191,Hoja1!$A$3:$B$7,2,FALSE),\"\")","v":""},{"$f":"IFERROR(VLOOKUP(K191,Hoja1!$A$10:$B$12,2,FALSE),\"\")","v":""}]
[null,null,null,null,null,null,null,null,null,null,null,null,null,null,{"$f":"IFERROR(VLOOKUP(D192,Hoja1!$A$3:$B$7,2,FALSE),\"\")","v":""},{"$f":"IFERROR(VLOOKUP(K192,Hoja1!$A$10:$B$12,2,FALSE),\"\")","v":""}]
[null,null,null,null,null,null,null,null,null,null,null,null,null,null,{"$f":"IFERROR(VLOOKUP(D193,Hoja1!$A$3:$B$7,2,FALSE),\"\")","v":""},{"$f":"IFERROR(VLOOKUP(K193,Hoja1!$A$10:$B$12,2,FALSE),\"\")","v":""}]
[null,null,null,null,null,null,null,null,null,null,null,null,null,null,{"$f":"IFERROR(VLOOKUP(D194,Hoja1!$A$3:$B$7,2,FALSE),\"\")","v":""},{"$f":"IFERROR(VLOOKUP(K194,Hoja1!$A$10:$B$12,2,FALSE),\"\")","v":""}]
[null,null,null,null,null,null,null,null,null,null,null,null,null,null,{"$f":"IFERROR(VLOOKUP(D195,Hoja1!$A$3:$B$7,2,FALSE),\"\")","v":""},{"$f":"IFERROR(VLOOKUP(K195,Hoja1!$A$10:$B$12,2,FALSE),\"\")","v":""}]
[null,null,null,null,null,null,null,null,null,null,null,null,null,null,{"$f":"IFERROR(VLOOKUP(D196,Hoja1!$A$3:$B$7,2,FALSE),\"\")","v":""},{"$f":"IFERROR(VLOOKUP(K196,Hoja1!$A$10:$B$12,2,FALSE),\"\")","v":""}]
[null,null,null,null,null,null,null,null,null,null,null,null,null,null,{"$f":"IFERROR(VLOOKUP(D197,Hoja1!$A$3:$B$7,2,FALSE),\"\")","v":""},{"$f":"IFERROR(VLOOKUP(K197,Hoja1!$A$10:$B$12,2,FALSE),\"\")","v":""}]
[null,null,null,null,null,null,null,null,null,null,null,null,null,null,{"$f":"IFERROR(VLOOKUP(D198,Hoja1!$A$3:$B$7,2,FALSE),\"\")","v":""},{"$f":"IFERROR(VLOOKUP(K198,Hoja1!$A$10:$B$12,2,FALSE),\"\")","v":""}]
[null,null,null,null,null,null,null,null,null,null,null,null,null,null,{"$f":"IFERROR(VLOOKUP(D199,Hoja1!$A$3:$B$7,2,FALSE),\"\")","v":""},{"$f":"IFERROR(VLOOKUP(K199,Hoja1!$A$10:$B$12,2,FALSE),\"\")","v":""}]
[null,null,null,null,null,null,null,null,null,null,null,null,null,null,{"$f":"IFERROR(VLOOKUP(D200,Hoja1!$A$3:$B$7,2,FALSE),\"\")","v":""},{"$f":"IFERROR(VLOOKUP(K200,Hoja1!$A$10:$B$12,2,FALSE),\"\")","v":""}]
[null,null,null,null,null,null,null,null,null,null,null,null,null,null,{"$f":"IFERROR(VLOOKUP(D201,Hoja1!$A$3:$B$7,2,FALSE),\"\")","v":""},{"$f":"IFERROR(VLOOKUP(K201,Hoja1!$A$10:$B$12,2,FALSE),\"\")","v":""}]
[null,null,null,null,null,null,null,null,null,null,null,null,null,null,{"$f":"IFERROR(VLOOKUP(D202,Hoja1!$A$3:$B$7,2,FALSE),\"\")","v":""},{"$f":"IFERROR(VLOOKUP(K202,Hoja1!$A$10:$B$12,2,FALSE),\"\")","v":""}]
[null,null,null,null,null,null,null,null,null,null,null,null,null,null,{"$f":"IFERROR(VLOOKUP(D203,Hoja1!$A$3:$B$7,2,FALSE),\"\")","v":""},{"$f":"IFERROR(VLOOKUP(K203,Hoja1!$A$10:$B$12,2,FALSE),\"\")","v":""}]
[null,null,null,null,null,null,null,null,null,null,null,null,null,null,{"$f":"IFERROR(VLOOKUP(D204,Hoja1!$A$3:$B$7,2,FALSE),\"\")","v":""},{"$f":"IFERROR(VLOOKUP(K204,Hoja1!$A$10:$B$12,2,FALSE),\"\")","v":""}]
[null,null,null,null,null,null,null,null,null,null,null,null,null,null,{"$f":"IFERROR(VLOOKUP(D205,Hoja1!$A$3:$B$7,2,FALSE),\"\")","v":""},{"$f":"IFERROR(VLOOKUP(K205,Hoja1!$A$10:$B$12,2,FALSE),\"\")","v":""}]
[null,null,null,null,null,null,null,null,null,null,null,null,null,null,{"$f":"IFERROR(VLOOKUP(D206,Hoja1!$A$3:$B$7,2,FALSE),\"\")","v":""},{"$f":"IFERROR(VLOOKUP(K206,Hoja1!$A$10:$B$12,2,FALSE),\"\")","v":""}]
[null,null,null,null,null,null,null,null,null,null,null,null,null,null,{"$f":"IFERROR(VLOOKUP(D207,Hoja1!$A$3:$B$7,2,FALSE),\"\")","v":""},{"$f":"IFERROR(VLOOKUP(K207,Hoja1!$A$10:$B$12,2,FALSE),\"\")","v":""}]
[null,null,null,null,null,null,null,null,null,null,null,null,null,null,{"$f":"IFERROR(VLOOKUP(D208,Hoja1!$A$3:$B$7,2,FALSE),\"\")","v":""},{"$f":"IFERROR(VLOOKUP(K208,Hoja1!$A$10:$B$12,2,FALSE),\"\")","v":""}]
[null,null,null,null,null,null,null,null,null,null,null,null,null,null,{"$f":"IFERROR(VLOOKUP(D209,Hoja1!$A$3:$B$7,2,FALSE),\"\")","v":""},{"$f":"IFERROR(VLOOKUP(K209,Hoja1!$A$10:$B$12,2,FALSE),\"\")","v":""}]
[null,null,null,null,null,null,null,null,null,null,null,null,null,null,{"$f":"IFERROR(VLOOKUP(D210,Hoja1!$A$3:$B$7,2,FALSE),\"\")","v":""},{"$f":"IFERROR(VLOOKUP(K210,Hoja1!$A$10:$B$12,2,FALSE),\"\")","v":""}]
[null,null,null,null,null,null,null,null,null,null,null,null,null,null,{"$f":"IFERROR(VLOOKUP(D211,Hoja1!$A$3:$B$7,2,FALSE),\"\")","v":""},{"$f":"IFERROR(VLOOKUP(K211,Hoja1!$A$10:$B$12,2,FALSE),\"\")","v":""}]
[null,null,null,null,null,null,null,null,null,null,null,null,null,null,{"$f":"IFERROR(VLOOKUP(D212,Hoja1!$A$3:$B$7,2,FALSE),\"\")","v":""},{"$f":"IFERROR(VLOOKUP(K212,Hoja1!$A$10:$B$12,2,FALSE),\"\")","v":""}]
[null,null,null,null,null,null,null,null,null,null,null,null,null,null,{"$f":"IFERROR(VLOOKUP(D213,Hoja1!$A$3:$B$7,2,FALSE),\"\")","v":""},{"$f":"IFERROR(VLOOKUP(K213,Hoja1!$A$10:$B$12,2,FALSE),\"\")","v":""}]
[null,null,null,null,null,null,null,null,null,null,null,null,null,null,{"$f":"IFERROR(VLOOKUP(D214,Hoja1!$A$3:$B$7,2,FALSE),\"\")","v":""},{"$f":"IFERROR(VLOOKUP(K214,Hoja1!$A$10:$B$12,2,FALSE),\"\")","v":""}]
[null,null,null,null,null,null,null,null,null,null,null,null,null,null,{"$f":"IFERROR(VLOOKUP(D215,Hoja1!$A$3:$B$7,2,FALSE),\"\")","v":""},{"$f":"IFERROR(VLOOKUP(K215,Hoja1!$A$10:$B$12,2,FALSE),\"\")","v":""}]
[null,null,null,null,null,null,null,null,null,null,null,null,null,null,{"$f":"IFERROR(VLOOKUP(D216,Hoja1!$A$3:$B$7,2,FALSE),\"\")","v":""},{"$f":"IFERROR(VLOOKUP(K216,Hoja1!$A$10:$B$12,2,FALSE),\"\")","v":""}]
[null,null,null,null,null,null,null,null,null,null,null,null,null,null,{"$f":"IFERROR(VLOOKUP(D217,Hoja1!$A$3:$B$7,2,FALSE),\"\")","v":""},{"$f":"IFERROR(VLOOKUP(K217,Hoja1!$A$10:$B$12,2,FALSE),\"\")","v":""}]
[null,null,null,null,null,null,null,null,null,null,null,null,null,null,{"$f":"IFERROR(VLOOKUP(D218,Hoja1!$A$3:$B$7,2,FALSE),\"\")","v":""},{"$f":"IFERROR(VLOOKUP(K218,Hoja1!$A$10:$B$12,2,FALSE),\"\")","v":""}]
[null,null,null,null,null,null,null,null,null,null,null,null,null,null,{"$f":"IFERROR(VLOOKUP(D219,Hoja1!$A$3:$B$7,2,FALSE),\"\")","v":""},{"$f":"IFERROR(VLOOKUP(K219,Hoja1!$A$10:$B$12,2,FALSE),\"\")","v":""}]
[null,null,null,null,null,null,null,null,null,null,null,null,null,null,{"$f":"IFERROR(VLOOKUP(D220,Hoja1!$A$3:$B$7,2,FALSE),\"\")","v":""},{"$f":"IFERROR(VLOOKUP(K220,Hoja1!$A$10:$B$12,2,FALSE),\"\")","v":""}]
[null,null,null,null,null,null,null,null,null,null,null,null,null,null,{"$f":"IFERROR(VLOOKUP(D221,Hoja1!$A$3:$B$7,2,FALSE),\"\")","v":""},{"$f":"IFERROR(VLOOKUP(K221,Hoja1!$A$10:$B$12,2,FALSE),\"\")","v":""}]
[null,null,null,null,null,null,null,null,null,null,null,null,null,null,{"$f":"IFERROR(VLOOKUP(D222,Hoja1!$A$3:$B$7,2,FALSE),\"\")","v":""},{"$f":"IFERROR(VLOOKUP(K222,Hoja1!$A$10:$B$12,2,FALSE),\"\")","v":""}]
[null,null,null,null,null,null,null,null,null,null,null,null,null,null,{"$f":"IFERROR(VLOOKUP(D223,Hoja1!$A$3:$B$7,2,FALSE),\"\")","v":""},{"$f":"IFERROR(VLOOKUP(K223,Hoja1!$A$10:$B$12,2,FALSE),\"\")","v":""}]
[null,null,null,null,null,null,null,null,null,null,null,null,null,null,{"$f":"IFERROR(VLOOKUP(D224,Hoja1!$A$3:$B$7,2,FALSE),\"\")","v":""},{"$f":"IFERROR(VLOOKUP(K224,Hoja1!$A$10:$B$12,2,FALSE),\"\")","v":""}]
[null,null,null,null,null,null,null,null,null,null,null,null,null,null,{"$f":"IFERROR(VLOOKUP(D225,Hoja1!$A$3:$B$7,2,FALSE),\"\")","v":""},{"$f":"IFERROR(VLOOKUP(K225,Hoja1!$A$10:$B$12,2,FALSE),\"\")","v":""}]
[null,null,null,null,null,null,null,null,null,null,null,null,null,null,{"$f":"IFERROR(VLOOKUP(D226,Hoja1!$A$3:$B$7,2,FALSE),\"\")","v":""},{"$f":"IFERROR(VLOOKUP(K226,Hoja1!$A$10:$B$12,2,FALSE),\"\")","v":""}]
[null,null,null,null,null,null,null,null,null,null,null,null,null,null,{"$f":"IFERROR(VLOOKUP(D227,Hoja1!$A$3:$B$7,2,FALSE),\"\")","v":""},{"$f":"IFERROR(VLOOKUP(K227,Hoja1!$A$10:$B$12,2,FALSE),\"\")","v":""}]
[null,null,null,null,null,null,null,null,null,null,null,null,null,null,{"$f":"IFERROR(VLOOKUP(D228,Hoja1!$A$3:$B$7,2,FALSE),\"\")","v":""},{"$f":"IFERROR(VLOOKUP(K228,Hoja1!$A$10:$B$12,2,FALSE),\"\")","v":""}]
[null,null,null,null,null,null,null,null,null,null,null,null,null,null,{"$f":"IFERROR(VLOOKUP(D229,Hoja1!$A$3:$B$7,2,FALSE),\"\")","v":""},{"$f":"IFERROR(VLOOKUP(K229,Hoja1!$A$10:$B$12,2,FALSE),\"\")","v":""}]
[null,null,null,null,null,null,null,null,null,null,null,null,null,null,{"$f":"IFERROR(VLOOKUP(D230,Hoja1!$A$3:$B$7,2,FALSE),\"\")","v":""},{"$f":"IFERROR(VLOOKUP(K230,Hoja1!$A$10:$B$12,2,FALSE),\"\")","v":""}]
[null,null,null,null,null,null,null,null,null,null,null,null,null,null,{"$f":"IFERROR(VLOOKUP(D231,Hoja1!$A$3:$B$7,2,FALSE),\"\")","v":""},{"$f":"IFERROR(VLOOKUP(K231,Hoja1!$A$10:$B$12,2,FALSE),\"\")","v":""}]
[null,null,null,null,null,null,null,null,null,null,null,null,null,null,{"$f":"IFERROR(VLOOKUP(D232,Hoja1!$A$3:$B$7,2,FALSE),\"\")","v":""},{"$f":"IFERROR(VLOOKUP(K232,Hoja1!$A$10:$B$12,2,FALSE),\"\")","v":""}]
[null,null,null,null,null,null,null,null,null,null,null,null,null,null,{"$f":"IFERROR(VLOOKUP(D233,Hoja1!$A$3:$B$7,2,FALSE),\"\")","v":""},{"$f":"IFERROR(VLOOKUP(K233,Hoja1!$A$10:$B$12,2,FALSE),\"\")","v":""}]
[null,null,null,null,null,null,null,null,null,null,null,null,null,null,{"$f":"IFERROR(VLOOKUP(D234,Hoja1!$A$3:$B$7,2,FALSE),\"\")","v":""},{"$f":"IFERROR(VLOOKUP(K234,Hoja1!$A$10:$B$12,2,FALSE),\"\")","v":""}]
[null,null,null,null,null,null,null,null,null,null,null,null,null,null,{"$f":"IFERROR(VLOOKUP(D235,Hoja1!$A$3:$B$7,2,FALSE),\"\")","v":""},{"$f":"IFERROR(VLOOKUP(K235,Hoja1!$A$10:$B$12,2,FALSE),\"\")","v":""}]
[null,null,null,null,null,null,null,null,null,null,null,null,null,null,{"$f":"IFERROR(VLOOKUP(D236,Hoja1!$A$3:$B$7,2,FALSE),\"\")","v":""},{"$f":"IFERROR(VLOOKUP(K236,Hoja1!$A$10:$B$12,2,FALSE),\"\")","v":""}]
[null,null,null,null,null,null,null,null,null,null,null,null,null,null,{"$f":"IFERROR(VLOOKUP(D237,Hoja1!$A$3:$B$7,2,FALSE),\"\")","v":""},{"$f":"IFERROR(VLOOKUP(K237,Hoja1!$A$10:$B$12,2,FALSE),\"\")","v":""}]
[null,null,null,null,null,null,null,null,null,null,null,null,null,null,{"$f":"IFERROR(VLOOKUP(D238,Hoja1!$A$3:$B$7,2,FALSE),\"\")","v":""},{"$f":"IFERROR(VLOOKUP(K238,Hoja1!$A$10:$B$12,2,FALSE),\"\")","v":""}]
[null,null,null,null,null,null,null,null,null,null,null,null,null,null,{"$f":"IFERROR(VLOOKUP(D239,Hoja1!$A$3:$B$7,2,FALSE),\"\")","v":""},{"$f":"IFERROR(VLOOKUP(K239,Hoja1!$A$10:$B$12,2,FALSE),\"\")","v":""}]
[null,null,null,null,null,null,null,null,null,null,null,null,null,null,{"$f":"IFERROR(VLOOKUP(D240,Hoja1!$A$3:$B$7,2,FALSE),\"\")","v":""},{"$f":"IFERROR(VLOOKUP(K240,Hoja1!$A$10:$B$12,2,FALSE),\"\")","v":""}]
[null,null,null,null,null,null,null,null,null,null,null,null,null,null,{"$f":"IFERROR(VLOOKUP(D241,Hoja1!$A$3:$B$7,2,FALSE),\"\")","v":""},{"$f":"IFERROR(VLOOKUP(K241,Hoja1!$A$10:$B$12,2,FALSE),\"\")","v":""}]
[null,null,null,null,null,null,null,null,null,null,null,null,null,null,{"$f":"IFERROR(VLOOKUP(D242,Hoja1!$A$3:$B$7,2,FALSE),\"\")","v":""},{"$f":"IFERROR(VLOOKUP(K242,Hoja1!$A$10:$B$12,2,FALSE),\"\")","v":""}]
[null,null,null,null,null,null,null,null,null,null,null,null,null,null,{"$f":"IFERROR(VLOOKUP(D243,Hoja1!$A$3:$B$7,2,FALSE),\"\")","v":""},{"$f":"IFERROR(VLOOKUP(K243,Hoja1!$A$10:$B$12,2,FALSE),\"\")","v":""}]
[null,null,null,null,null,null,null,null,null,null,null,null,null,null,{"$f":"IFERROR(VLOOKUP(D244,Hoja1!$A$3:$B$7,2,FALSE),\"\")","v":""},{"$f":"IFERROR(VLOOKUP(K244,Hoja1!$A$10:$B$12,2,FALSE),\"\")","v":""}]
[null,null,null,null,null,null,null,null,null,null,null,null,null,null,{"$f":"IFERROR(VLOOKUP(D245,Hoja1!$A$3:$B$7,2,FALSE),\"\")","v":""},{"$f":"IFERROR(VLOOKUP(K245,Hoja1!$A$10:$B$12,2,FALSE),\"\")","v":""}]
[null,null,null,null,null,null,null,null,null,null,null,null,null,null,{"$f":"IFERROR(VLOOKUP(D246,Hoja1!$A$3:$B$7,2,FALSE),\"\")","v":""},{"$f":"IFERROR(VLOOKUP(K246,Hoja1!$A$10:$B$12,2,FALSE),\"\")","v":""}]
[null,null,null,null,null,null,null,null,null,null,null,null,null,null,{"$f":"IFERROR(VLOOKUP(D247,Hoja1!$A$3:$B$7,2,FALSE),\"\")","v":""},{"$f":"IFERROR(VLOOKUP(K247,Hoja1!$A$10:$B$12,2,FALSE),\"\")","v":""}]
[null,null,null,null,null,null,null,null,null,null,null,null,null,null,{"$f":"IFERROR(VLOOKUP(D248,Hoja1!$A$3:$B$7,2,FALSE),\"\")","v":""},{"$f":"IFERROR(VLOOKUP(K248,Hoja1!$A$10:$B$12,2,FALSE),\"\")","v":""}]
[null,null,null,null,null,null,null,null,null,null,null,null,null,null,{"$f":"IFERROR(VLOOKUP(D249,Hoja1!$A$3:$B$7,2,FALSE),\"\")","v":""},{"$f":"IFERROR(VLOOKUP(K249,Hoja1!$A$10:$B$12,2,FALSE),\"\")","v":""}]
[null,null,null,null,null,null,null,null,null,null,null,null,null,null,{"$f":"IFERROR(VLOOKUP(D250,Hoja1!$A$3:$B$7,2,FALSE),\"\")","v":""},{"$f":"IFERROR(VLOOKUP(K250,Hoja1!$A$10:$B$12,2,FALSE),\"\")","v":""}]
[null,null,null,null,null,null,null,null,null,null,null,null,null,null,{"$f":"IFERROR(VLOOKUP(D251,Hoja1!$A$3:$B$7,2,FALSE),\"\")","v":""},{"$f":"IFERROR(VLOOKUP(K251,Hoja1!$A$10:$B$12,2,FALSE),\"\")","v":""}]
[null,null,null,null,null,null,null,null,null,null,null,null,null,null,{"$f":"IFERROR(VLOOKUP(D252,Hoja1!$A$3:$B$7,2,FALSE),\"\")","v":""},{"$f":"IFERROR(VLOOKUP(K252,Hoja1!$A$10:$B$12,2,FALSE),\"\")","v":""}]
[null,null,null,null,null,null,null,null,null,null,null,null,null,null,{"$f":"IFERROR(VLOOKUP(D253,Hoja1!$A$3:$B$7,2,FALSE),\"\")","v":""},{"$f":"IFERROR(VLOOKUP(K253,Hoja1!$A$10:$B$12,2,FALSE),\"\")","v":""}]
[null,null,null,null,null,null,null,null,null,null,null,null,null,null,{"$f":"IFERROR(VLOOKUP(D254,Hoja1!$A$3:$B$7,2,FALSE),\"\")","v":""},{"$f":"IFERROR(VLOOKUP(K254,Hoja1!$A$10:$B$12,2,FALSE),\"\")","v":""}]
[null,null,null,null,null,null,null,null,null,null,null,null,null,null,{"$f":"IFERROR(VLOOKUP(D255,Hoja1!$A$3:$B$7,2,FALSE),\"\")","v":""},{"$f":"IFERROR(VLOOKUP(K255,Hoja1!$A$10:$B$12,2,FALSE),\"\")","v":""}]
[null,null,null,null,null,null,null,null,null,null,null,null,null,null,{"$f":"IFERROR(VLOOKUP(D256,Hoja1!$A$3:$B$7,2,FALSE),\"\")","v":""},{"$f":"IFERROR(VLOOKUP(K256,Hoja1!$A$10:$B$12,2,FALSE),\"\")","v":""}]
[null,null,null,null,null,null,null,null,null,null,null,null,null,null,{"$f":"IFERROR(VLOOKUP(D257,Hoja1!$A$3:$B$7,2,FALSE),\"\")","v":""},{"$f":"IFERROR(VLOOKUP(K257,Hoja1!$A$10:$B$12,2,FALSE),\"\")","v":""}]
[null,null,null,null,null,null,null,null,null,null,null,null,null,null,{"$f":"IFERROR(VLOOKUP(D258,Hoja1!$A$3:$B$7,2,FALSE),\"\")","v":""},{"$f":"IFERROR(VLOOKUP(K258,Hoja1!$A$10:$B$12,2,FALSE),\"\")","v":""}]
[null,null,null,null,null,null,null,null,null,null,null,null,null,null,{"$f":"IFERROR(VLOOKUP(D259,Hoja1!$A$3:$B$7,2,FALSE),\"\")","v":""},{"$f":"IFERROR(VLOOKUP(K259,Hoja1!$A$10:$B$12,2,FALSE),\"\")","v":""}]
[null,null,null,null,null,null,null,null,null,null,null,null,null,null,{"$f":"IFERROR(VLOOKUP(D260,Hoja1!$A$3:$B$7,2,FALSE),\"\")","v":""},{"$f":"IFERROR(VLOOKUP(K260,Hoja1!$A$10:$B$12,2,FALSE),\"\")","v":""}]
[null,null,null,null,null,null,null,null,null,null,null,null,null,null,{"$f":"IFERROR(VLOOKUP(D261,Hoja1!$A$3:$B$7,2,FALSE),\"\")","v":""},{"$f":"IFERROR(VLOOKUP(K261,Hoja1!$A$10:$B$12,2,FALSE),\"\")","v":""}]
[null,null,null,null,null,null,null,null,null,null,null,null,null,null,{"$f":"IFERROR(VLOOKUP(D262,Hoja1!$A$3:$B$7,2,FALSE),\"\")","v":""},{"$f":"IFERROR(VLOOKUP(K262,Hoja1!$A$10:$B$12,2,FALSE),\"\")","v":""}]
[null,null,null,null,null,null,null,null,null,null,null,null,null,null,{"$f":"IFERROR(VLOOKUP(D263,Hoja1!$A$3:$B$7,2,FALSE),\"\")","v":""},{"$f":"IFERROR(VLOOKUP(K263,Hoja1!$A$10:$B$12,2,FALSE),\"\")","v":""}]
[null,null,null,null,null,null,null,null,null,null,null,null,null,null,{"$f":"IFERROR(VLOOKUP(D264,Hoja1!$A$3:$B$7,2,FALSE),\"\")","v":""},{"$f":"IFERROR(VLOOKUP(K264,Hoja1!$A$10:$B$12,2,FALSE),\"\")","v":""}]
[null,null,null,null,null,null,null,null,null,null,null,null,null,null,{"$f":"IFERROR(VLOOKUP(D265,Hoja1!$A$3:$B$7,2,FALSE),\"\")","v":""},{"$f":"IFERROR(VLOOKUP(K265,Hoja1!$A$10:$B$12,2,FALSE),\"\")","v":""}]
[null,null,null,null,null,null,null,null,null,null,null,null,null,null,{"$f":"IFERROR(VLOOKUP(D266,Hoja1!$A$3:$B$7,2,FALSE),\"\")","v":""},{"$f":"IFERROR(VLOOKUP(K266,Hoja1!$A$10:$B$12,2,FALSE),\"\")","v":""}]
[null,null,null,null,null,null,null,null,null,null,null,null,null,null,{"$f":"IFERROR(VLOOKUP(D267,Hoja1!$A$3:$B$7,2,FALSE),\"\")","v":""},{"$f":"IFERROR(VLOOKUP(K267,Hoja1!$A$10:$B$12,2,FALSE),\"\")","v":""}]
[null,null,null,null,null,null,null,null,null,null,null,null,null,null,{"$f":"IFERROR(VLOOKUP(D268,Hoja1!$A$3:$B$7,2,FALSE),\"\")","v":""},{"$f":"IFERROR(VLOOKUP(K268,Hoja1!$A$10:$B$12,2,FALSE),\"\")","v":""}]
[null,null,null,null,null,null,null,null,null,null,null,null,null,null,{"$f":"IFERROR(VLOOKUP(D269,Hoja1!$A$3:$B$7,2,FALSE),\"\")","v":""},{"$f":"IFERROR(VLOOKUP(K269,Hoja1!$A$10:$B$12,2,FALSE),\"\")","v":""}]
[null,null,null,null,null,null,null,null,null,null,null,null,null,null,{"$f":"IFERROR(VLOOKUP(D270,Hoja1!$A$3:$B$7,2,FALSE),\"\")","v":""},{"$f":"IFERROR(VLOOKUP(K270,Hoja1!$A$10:$B$12,2,FALSE),\"\")","v":""}]
[null,null,null,null,null,null,null,null,null,null,null,null,null,null,{"$f":"IFERROR(VLOOKUP(D271,Hoja1!$A$3:$B$7,2,FALSE),\"\")","v":""},{"$f":"IFERROR(VLOOKUP(K271,Hoja1!$A$10:$B$12,2,FALSE),\"\")","v":""}]
[null,null,null,null,null,null,null,null,null,null,null,null,null,null,{"$f":"IFERROR(VLOOKUP(D272,Hoja1!$A$3:$B$7,2,FALSE),\"\")","v":""},{"$f":"IFERROR(VLOOKUP(K272,Hoja1!$A$10:$B$12,2,FALSE),\"\")","v":""}]
[null,null,null,null,null,null,null,null,null,null,null,null,null,null,{"$f":"IFERROR(VLOOKUP(D273,Hoja1!$A$3:$B$7,2,FALSE),\"\")","v":""},{"$f":"IFERROR(VLOOKUP(K273,Hoja1!$A$10:$B$12,2,FALSE),\"\")","v":""}]
[null,null,null,null,null,null,null,null,null,null,null,null,null,null,{"$f":"IFERROR(VLOOKUP(D274,Hoja1!$A$3:$B$7,2,FALSE),\"\")","v":""},{"$f":"IFERROR(VLOOKUP(K274,Hoja1!$A$10:$B$12,2,FALSE),\"\")","v":""}]
[null,null,null,null,null,null,null,null,null,null,null,null,null,null,{"$f":"IFERROR(VLOOKUP(D275,Hoja1!$A$3:$B$7,2,FALSE),\"\")","v":""},{"$f":"IFERROR(VLOOKUP(K275,Hoja1!$A$10:$B$12,2,FALSE),\"\")","v":""}]
[null,null,null,null,null,null,null,null,null,null,null,null,null,null,{"$f":"IFERROR(VLOOKUP(D276,Hoja1!$A$3:$B$7,2,FALSE),\"\")","v":""},{"$f":"IFERROR(VLOOKUP(K276,Hoja1!$A$10:$B$12,2,FALSE),\"\")","v":""}]
[null,null,null,null,null,null,null,null,null,null,null,null,null,null,{"$f":"IFERROR(VLOOKUP(D277,Hoja1!$A$3:$B$7,2,FALSE),\"\")","v":""},{"$f":"IFERROR(VLOOKUP(K277,Hoja1!$A$10:$B$12,2,FALSE),\"\")","v":""}]
[null,null,null,null,null,null,null,null,null,null,null,null,null,null,{"$f":"IFERROR(VLOOKUP(D278,Hoja1!$A$3:$B$7,2,FALSE),\"\")","v":""},{"$f":"IFERROR(VLOOKUP(K278,Hoja1!$A$10:$B$12,2,FALSE),\"\")","v":""}]
[null,null,null,null,null,null,null,null,null,null,null,null,null,null,{"$f":"IFERROR(VLOOKUP(D279,Hoja1!$A$3:$B$7,2,FALSE),\"\")","v":""},{"$f":"IFERROR(VLOOKUP(K279,Hoja1!$A$10:$B$12,2,FALSE),\"\")","v":""}]
[null,null,null,null,null,null,null,null,null,null,null,null,null,null,{"$f":"IFERROR(VLOOKUP(D280,Hoja1!$A$3:$B$7,2,FALSE),\"\")","v":""},{"$f":"IFERROR(VLOOKUP(K280,Hoja1!$A$10:$B$12,2,FALSE),\"\")","v":""}]
[null,null,null,null,null,null,null,null,null,null,null,null,null,null,{"$f":"IFERROR(VLOOKUP(D281,Hoja1!$A$3:$B$7,2,FALSE),\"\")","v":""},{"$f":"IFERROR(VLOOKUP(K281,Hoja1!$A$10:$B$12,2,FALSE),\"\")","v":""}]
[null,null,null,null,null,null,null,null,null,null,null,null,null,null,{"$f":"IFERROR(VLOOKUP(D282,Hoja1!$A$3:$B$7,2,FALSE),\"\")","v":""},{"$f":"IFERROR(VLOOKUP(K282,Hoja1!$A$10:$B$12,2,FALSE),\"\")","v":""}]
[null,null,null,null,null,null,null,null,null,null,null,null,null,null,{"$f":"IFERROR(VLOOKUP(D283,Hoja1!$A$3:$B$7,2,FALSE),\"\")","v":""},{"$f":"IFERROR(VLOOKUP(K283,Hoja1!$A$10:$B$12,2,FALSE),\"\")","v":""}]
[null,null,null,null,null,null,null,null,null,null,null,null,null,null,{"$f":"IFERROR(VLOOKUP(D284,Hoja1!$A$3:$B$7,2,FALSE),\"\")","v":""},{"$f":"IFERROR(VLOOKUP(K284,Hoja1!$A$10:$B$12,2,FALSE),\"\")","v":""}]
[null,null,null,null,null,null,null,null,null,null,null,null,null,null,{"$f":"IFERROR(VLOOKUP(D285,Hoja1!$A$3:$B$7,2,FALSE),\"\")","v":""},{"$f":"IFERROR(VLOOKUP(K285,Hoja1!$A$10:$B$12,2,FALSE),\"\")","v":""}]
[null,null,null,null,null,null,null,null,null,null,null,null,null,null,{"$f":"IFERROR(VLOOKUP(D286,Hoja1!$A$3:$B$7,2,FALSE),\"\")","v":""},{"$f":"IFERROR(VLOOKUP(K286,Hoja1!$A$10:$B$12,2,FALSE),\"\")","v":""}]
[null,null,null,null,null,null,null,null,null,null,null,null,null,null,{"$f":"IFERROR(VLOOKUP(D287,Hoja1!$A$3:$B$7,2,FALSE),\"\")","v":""},{"$f":"IFERROR(VLOOKUP(K287,Hoja1!$A$10:$B$12,2,FALSE),\"\")","v":""}]
[null,null,null,null,null,null,null,null,null,null,null,null,null,null,{"$f":"IFERROR(VLOOKUP(D288,Hoja1!$A$3:$B$7,2,FALSE),\"\")","v":""},{"$f":"IFERROR(VLOOKUP(K288,Hoja1!$A$10:$B$12,2,FALSE),\"\")","v":""}]
[null,null,null,null,null,null,null,null,null,null,null,null,null,null,{"$f":"IFERROR(VLOOKUP(D289,Hoja1!$A$3:$B$7,2,FALSE),\"\")","v":""},{"$f":"IFERROR(VLOOKUP(K289,Hoja1!$A$10:$B$12,2,FALSE),\"\")","v":""}]
[null,null,null,null,null,null,null,null,null,null,null,null,null,null,{"$f":"IFERROR(VLOOKUP(D290,Hoja1!$A$3:$B$7,2,FALSE),\"\")","v":""},{"$f":"IFERROR(VLOOKUP(K290,Hoja1!$A$10:$B$12,2,FALSE),\"\")","v":""}]
[null,null,null,null,null,null,null,null,null,null,null,null,null,null,{"$f":"IFERROR(VLOOKUP(D291,Hoja1!$A$3:$B$7,2,FALSE),\"\")","v":""},{"$f":"IFERROR(VLOOKUP(K291,Hoja1!$A$10:$B$12,2,FALSE),\"\")","v":""}]
[null,null,null,null,null,null,null,null,null,null,null,null,null,null,{"$f":"IFERROR(VLOOKUP(D292,Hoja1!$A$3:$B$7,2,FALSE),\"\")","v":""},{"$f":"IFERROR(VLOOKUP(K292,Hoja1!$A$10:$B$12,2,FALSE),\"\")","v":""}]
[null,null,null,null,null,null,null,null,null,null,null,null,null,null,{"$f":"IFERROR(VLOOKUP(D293,Hoja1!$A$3:$B$7,2,FALSE),\"\")","v":""},{"$f":"IFERROR(VLOOKUP(K293,Hoja1!$A$10:$B$12,2,FALSE),\"\")","v":""}]
[null,null,null,null,null,null,null,null,null,null,null,null,null,null,{"$f":"IFERROR(VLOOKUP(D294,Hoja1!$A$3:$B$7,2,FALSE),\"\")","v":""},{"$f":"IFERROR(VLOOKUP(K294,Hoja1!$A$10:$B$12,2,FALSE),\"\")","v":""}]
[null,null,null,null,null,null,null,null,null,null,null,null,null,null,{"$f":"IFERROR(VLOOKUP(D295,Hoja1!$A$3:$B$7,2,FALSE),\"\")","v":""},{"$f":"IFERROR(VLOOKUP(K295,Hoja1!$A$10:$B$12,2,FALSE),\"\")","v":""}]
[null,null,null,null,null,null,null,null,null,null,null,null,null,null,{"$f":"IFERROR(VLOOKUP(D296,Hoja1!$A$3:$B$7,2,FALSE),\"\")","v":""},{"$f":"IFERROR(VLOOKUP(K296,Hoja1!$A$10:$B$12,2,FALSE),\"\")","v":""}]
[null,null,null,null,null,null,null,null,null,null,null,null,null,null,{"$f":"IFERROR(VLOOKUP(D297,Hoja1!$A$3:$B$7,2,FALSE),\"\")","v":""},{"$f":"IFERROR(VLOOKUP(K297,Hoja1!$A$10:$B$12,2,FALSE),\"\")","v":""}]
[null,null,null,null,null,null,null,null,null,null,null,null,null,null,{"$f":"IFERROR(VLOOKUP(D298,Hoja1!$A$3:$B$7,2,FALSE),\"\")","v":""},{"$f":"IFERROR(VLOOKUP(K298,Hoja1!$A$10:$B$12,2,FALSE),\"\")","v":""}]
[null,null,null,null,null,null,null,null,null,null,null,null,null,null,{"$f":"IFERROR(VLOOKUP(D299,Hoja1!$A$3:$B$7,2,FALSE),\"\")","v":""},{"$f":"IFERROR(VLOOKUP(K299,Hoja1!$A$10:$B$12,2,FALSE),\"\")","v":""}]
[null,null,null,null,null,null,null,null,null,null,null,null,null,null,{"$f":"IFERROR(VLOOKUP(D300,Hoja1!$A$3:$B$7,2,FALSE),\"\")","v":""},{"$f":"IFERROR(VLOOKUP(K300,Hoja1!$A$10:$B$12,2,FALSE),\"\")","v":""}]
[null,null,null,null,null,null,null,null,null,null,null,null,null,null,{"$f":"IFERROR(VLOOKUP(D301,Hoja1!$A$3:$B$7,2,FALSE),\"\")","v":""},{"$f":"IFERROR(VLOOKUP(K301,Hoja1!$A$10:$B$12,2,FALSE),\"\")","v":""}]
[null,null,null,null,null,null,null,null,null,null,null,null,null,null,{"$f":"IFERROR(VLOOKUP(D302,Hoja1!$A$3:$B$7,2,FALSE),\"\")","v":""},{"$f":"IFERROR(VLOOKUP(K302,Hoja1!$A$10:$B$12,2,FALSE),\"\")","v":""}]
[null,null,null,null,null,null,null,null,null,null,null,null,null,null,{"$f":"IFERROR(VLOOKUP(D303,Hoja1!$A$3:$B$7,2,FALSE),\"\")","v":""},{"$f":"IFERROR(VLOOKUP(K303,Hoja1!$A$10:$B$12,2,FALSE),\"\")","v":""}]
[null,null,null,null,null,null,null,null,null,null,null,null,null,null,{"$f":"IFERROR(VLOOKUP(D304,Hoja1!$A$3:$B$7,2,FALSE),\"\")","v":""},{"$f":"IFERROR(VLOOKUP(K304,Hoja1!$A$10:$B$12,2,FALSE),\"\")","v":""}]
[null,null,null,null,null,null,null,null,null,null,null,null,null,null,{"$f":"IFERROR(VLOOKUP(D305,Hoja1!$A$3:$B$7,2,FALSE),\"\")","v":""},{"$f":"IFERROR(VLOOKUP(K305,Hoja1!$A$10:$B$12,2,FALSE),\"\")","v":""}]
[null,null,null,null,null,null,null,null,null,null,null,null,null,null,{"$f":"IFERROR(VLOOKUP(D306,Hoja1!$A$3:$B$7,2,FALSE),\"\")","v":""},{"$f":"IFERROR(VLOOKUP(K306,Hoja1!$A$10:$B$12,2,FALSE),\"\")","v":""}]
[null,null,null,null,null,null,null,null,null,null,null,null,null,null,{"$f":"IFERROR(VLOOKUP(D307,Hoja1!$A$3:$B$7,2,FALSE),\"\")","v":""},{"$f":"IFERROR(VLOOKUP(K307,Hoja1!$A$10:$B$12,2,FALSE),\"\")","v":""}]
[null,null,null,null,null,null,null,null,null,null,null,null,null,null,{"$f":"IFERROR(VLOOKUP(D308,Hoja1!$A$3:$B$7,2,FALSE),\"\")","v":""},{"$f":"IFERROR(VLOOKUP(K308,Hoja1!$A$10:$B$12,2,FALSE),\"\")","v":""}]
[null,null,null,null,null,null,null,null,null,null,null,null,null,null,{"$f":"IFERROR(VLOOKUP(D309,Hoja1!$A$3:$B$7,2,FALSE),\"\")","v":""},{"$f":"IFERROR(VLOOKUP(K309,Hoja1!$A$10:$B$12,2,FALSE),\"\")","v":""}]
[null,null,null,null,null,null,null,null,null,null,null,null,null,null,{"$f":"IFERROR(VLOOKUP(D310,Hoja1!$A$3:$B$7,2,FALSE),\"\")","v":""},{"$f":"IFERROR(VLOOKUP(K310,Hoja1!$A$10:$B$12,2,FALSE),\"\")","v":""}]
[null,null,null,null,null,null,null,null,null,null,null,null,null,null,{"$f":"IFERROR(VLOOKUP(D311,Hoja1!$A$3:$B$7,2,FALSE),\"\")","v":""},{"$f":"IFERROR(VLOOKUP(K311,Hoja1!$A$10:$B$12,2,FALSE),\"\")","v":""}]
[null,null,null,null,null,null,null,null,null,null,null,null,null,null,{"$f":"IFERROR(VLOOKUP(D312,Hoja1!$A$3:$B$7,2,FALSE),\"\")","v":""},{"$f":"IFERROR(VLOOKUP(K312,Hoja1!$A$10:$B$12,2,FALSE),\"\")","v":""}]
[null,null,null,null,null,null,null,null,null,null,null,null,null,null,{"$f":"IFERROR(VLOOKUP(D313,Hoja1!$A$3:$B$7,2,FALSE),\"\")","v":""},{"$f":"IFERROR(VLOOKUP(K313,Hoja1!$A$10:$B$12,2,FALSE),\"\")","v":""}]
[null,null,null,null,null,null,null,null,null,null,null,null,null,null,{"$f":"IFERROR(VLOOKUP(D314,Hoja1!$A$3:$B$7,2,FALSE),\"\")","v":""},{"$f":"IFERROR(VLOOKUP(K314,Hoja1!$A$10:$B$12,2,FALSE),\"\")","v":""}]
[null,null,null,null,null,null,null,null,null,null,null,null,null,null,{"$f":"IFERROR(VLOOKUP(D315,Hoja1!$A$3:$B$7,2,FALSE),\"\")","v":""},{"$f":"IFERROR(VLOOKUP(K315,Hoja1!$A$10:$B$12,2,FALSE),\"\")","v":""}]
[null,null,null,null,null,null,null,null,null,null,null,null,null,null,{"$f":"IFERROR(VLOOKUP(D316,Hoja1!$A$3:$B$7,2,FALSE),\"\")","v":""},{"$f":"IFERROR(VLOOKUP(K316,Hoja1!$A$10:$B$12,2,FALSE),\"\")","v":""}]
[null,null,null,null,null,null,null,null,null,null,null,null,null,null,{"$f":"IFERROR(VLOOKUP(D317,Hoja1!$A$3:$B$7,2,FALSE),\"\")","v":""},{"$f":"IFERROR(VLOOKUP(K317,Hoja1!$A$10:$B$12,2,FALSE),\"\")","v":""}]
[null,null,null,null,null,null,null,null,null,null,null,null,null,null,{"$f":"IFERROR(VLOOKUP(D318,Hoja1!$A$3:$B$7,2,FALSE),\"\")","v":""},{"$f":"IFERROR(VLOOKUP(K318,Hoja1!$A$10:$B$12,2,FALSE),\"\")","v":""}]
[null,null,null,null,null,null,null,null,null,null,null,null,null,null,{"$f":"IFERROR(VLOOKUP(D319,Hoja1!$A$3:$B$7,2,FALSE),\"\")","v":""},{"$f":"IFERROR(VLOOKUP(K319,Hoja1!$A$10:$B$12,2,FALSE),\"\")","v":""}]
[null,null,null,null,null,null,null,null,null,null,null,null,null,null,{"$f":"IFERROR(VLOOKUP(D320,Hoja1!$A$3:$B$7,2,FALSE),\"\")","v":""},{"$f":"IFERROR(VLOOKUP(K320,Hoja1!$A$10:$B$12,2,FALSE),\"\")","v":""}]
[null,null,null,null,null,null,null,null,null,null,null,null,null,null,{"$f":"IFERROR(VLOOKUP(D321,Hoja1!$A$3:$B$7,2,FALSE),\"\")","v":""},{"$f":"IFERROR(VLOOKUP(K321,Hoja1!$A$10:$B$12,2,FALSE),\"\")","v":""}]
[null,null,null,null,null,null,null,null,null,null,null,null,null,null,{"$f":"IFERROR(VLOOKUP(D322,Hoja1!$A$3:$B$7,2,FALSE),\"\")","v":""},{"$f":"IFERROR(VLOOKUP(K322,Hoja1!$A$10:$B$12,2,FALSE),\"\")","v":""}]
[null,null,null,null,null,null,null,null,null,null,null,null,null,null,{"$f":"IFERROR(VLOOKUP(D323,Hoja1!$A$3:$B$7,2,FALSE),\"\")","v":""},{"$f":"IFERROR(VLOOKUP(K323,Hoja1!$A$10:$B$12,2,FALSE),\"\")","v":""}]
[null,null,null,null,null,null,null,null,null,null,null,null,null,null,{"$f":"IFERROR(VLOOKUP(D324,Hoja1!$A$3:$B$7,2,FALSE),\"\")","v":""},{"$f":"IFERROR(VLOOKUP(K324,Hoja1!$A$10:$B$12,2,FALSE),\"\")","v":""}]
[null,null,null,null,null,null,null,null,null,null,null,null,null,null,{"$f":"IFERROR(VLOOKUP(D325,Hoja1!$A$3:$B$7,2,FALSE),\"\")","v":""},{"$f":"IFERROR(VLOOKUP(K325,Hoja1!$A$10:$B$12,2,FALSE),\"\")","v":""}]
[null,null,null,null,null,null,null,null,null,null,null,null,null,null,{"$f":"IFERROR(VLOOKUP(D326,Hoja1!$A$3:$B$7,2,FALSE),\"\")","v":""},{"$f":"IFERROR(VLOOKUP(K326,Hoja1!$A$10:$B$12,2,FALSE),\"\")","v":""}]
[null,null,null,null,null,null,null,null,null,null,null,null,null,null,{"$f":"IFERROR(VLOOKUP(D327,Hoja1!$A$3:$B$7,2,FALSE),\"\")","v":""},{"$f":"IFERROR(VLOOKUP(K327,Hoja1!$A$10:$B$12,2,FALSE),\"\")","v":""}]
[null,null,null,null,null,null,null,null,null,null,null,null,null,null,{"$f":"IFERROR(VLOOKUP(D328,Hoja1!$A$3:$B$7,2,FALSE),\"\")","v":""},{"$f":"IFERROR(VLOOKUP(K328,Hoja1!$A$10:$B$12,2,FALSE),\"\")","v":""}]
[null,null,null,null,null,null,null,null,null,null,null,null,null,null,{"$f":"IFERROR(VLOOKUP(D329,Hoja1!$A$3:$B$7,2,FALSE),\"\")","v":""},{"$f":"IFERROR(VLOOKUP(K329,Hoja1!$A$10:$B$12,2,FALSE),\"\")","v":""}]
[null,null,null,null,null,null,null,null,null,null,null,null,null,null,{"$f":"IFERROR(VLOOKUP(D330,Hoja1!$A$3:$B$7,2,FALSE),\"\")","v":""},{"$f":"IFERROR(VLOOKUP(K330,Hoja1!$A$10:$B$12,2,FALSE),\"\")","v":""}]
[null,null,null,null,null,null,null,null,null,null,null,null,null,null,{"$f":"IFERROR(VLOOKUP(D331,Hoja1!$A$3:$B$7,2,FALSE),\"\")","v":""},{"$f":"IFERROR(VLOOKUP(K331,Hoja1!$A$10:$B$12,2,FALSE),\"\")","v":""}]
[null,null,null,null,null,null,null,null,null,null,null,null,null,null,{"$f":"IFERROR(VLOOKUP(D332,Hoja1!$A$3:$B$7,2,FALSE),\"\")","v":""},{"$f":"IFERROR(VLOOKUP(K332,Hoja1!$A$10:$B$12,2,FALSE),\"\")","v":""}]
[null,null,null,null,null,null,null,null,null,null,null,null,null,null,{"$f":"IFERROR(VLOOKUP(D333,Hoja1!$A$3:$B$7,2,FALSE),\"\")","v":""},{"$f":"IFERROR(VLOOKUP(K333,Hoja1!$A$10:$B$12,2,FALSE),\"\")","v":""}]
[null,null,null,null,null,null,null,null,null,null,null,null,null,null,{"$f":"IFERROR(VLOOKUP(D334,Hoja1!$A$3:$B$7,2,FALSE),\"\")","v":""},{"$f":"IFERROR(VLOOKUP(K334,Hoja1!$A$10:$B$12,2,FALSE),\"\")","v":""}]
[null,null,null,null,null,null,null,null,null,null,null,null,null,null,{"$f":"IFERROR(VLOOKUP(D335,Hoja1!$A$3:$B$7,2,FALSE),\"\")","v":""},{"$f":"IFERROR(VLOOKUP(K335,Hoja1!$A$10:$B$12,2,FALSE),\"\")","v":""}]
[null,null,null,null,null,null,null,null,null,null,null,null,null,null,{"$f":"IFERROR(VLOOKUP(D336,Hoja1!$A$3:$B$7,2,FALSE),\"\")","v":""},{"$f":"IFERROR(VLOOKUP(K336,Hoja1!$A$10:$B$12,2,FALSE),\"\")","v":""}]
[null,null,null,null,null,null,null,null,null,null,null,null,null,null,{"$f":"IFERROR(VLOOKUP(D337,Hoja1!$A$3:$B$7,2,FALSE),\"\")","v":""},{"$f":"IFERROR(VLOOKUP(K337,Hoja1!$A$10:$B$12,2,FALSE),\"\")","v":""}]
[null,null,null,null,null,null,null,null,null,null,null,null,null,null,{"$f":"IFERROR(VLOOKUP(D338,Hoja1!$A$3:$B$7,2,FALSE),\"\")","v":""},{"$f":"IFERROR(VLOOKUP(K338,Hoja1!$A$10:$B$12,2,FALSE),\"\")","v":""}]
[null,null,null,null,null,null,null,null,null,null,null,null,null,null,{"$f":"IFERROR(VLOOKUP(D339,Hoja1!$A$3:$B$7,2,FALSE),\"\")","v":""},{"$f":"IFERROR(VLOOKUP(K339,Hoja1!$A$10:$B$12,2,FALSE),\"\")","v":""}]
[null,null,null,null,null,null,null,null,null,null,null,null,null,null,{"$f":"IFERROR(VLOOKUP(D340,Hoja1!$A$3:$B$7,2,FALSE),\"\")","v":""},{"$f":"IFERROR(VLOOKUP(K340,Hoja1!$A$10:$B$12,2,FALSE),\"\")","v":""}]
[null,null,null,null,null,null,null,null,null,null,null,null,null,null,{"$f":"IFERROR(VLOOKUP(D341,Hoja1!$A$3:$B$7,2,FALSE),\"\")","v":""},{"$f":"IFERROR(VLOOKUP(K341,Hoja1!$A$10:$B$12,2,FALSE),\"\")","v":""}]
[null,null,null,null,null,null,null,null,null,null,null,null,null,null,{"$f":"IFERROR(VLOOKUP(D342,Hoja1!$A$3:$B$7,2,FALSE),\"\")","v":""},{"$f":"IFERROR(VLOOKUP(K342,Hoja1!$A$10:$B$12,2,FALSE),\"\")","v":""}]
[null,null,null,null,null,null,null,null,null,null,null,null,null,null,{"$f":"IFERROR(VLOOKUP(D343,Hoja1!$A$3:$B$7,2,FALSE),\"\")","v":""},{"$f":"IFERROR(VLOOKUP(K343,Hoja1!$A$10:$B$12,2,FALSE),\"\")","v":""}]
[null,null,null,null,null,null,null,null,null,null,null,null,null,null,{"$f":"IFERROR(VLOOKUP(D344,Hoja1!$A$3:$B$7,2,FALSE),\"\")","v":""},{"$f":"IFERROR(VLOOKUP(K344,Hoja1!$A$10:$B$12,2,FALSE),\"\")","v":""}]
[null,null,null,null,null,null,null,null,null,null,null,null,null,null,{"$f":"IFERROR(VLOOKUP(D345,Hoja1!$A$3:$B$7,2,FALSE),\"\")","v":""},{"$f":"IFERROR(VLOOKUP(K345,Hoja1!$A$10:$B$12,2,FALSE),\"\")","v":""}]
[null,null,null,null,null,null,null,null,null,null,null,null,null,null,{"$f":"IFERROR(VLOOKUP(D346,Hoja1!$A$3:$B$7,2,FALSE),\"\")","v":""},{"$f":"IFERROR(VLOOKUP(K346,Hoja1!$A$10:$B$12,2,FALSE),\"\")","v":""}]
[null,null,null,null,null,null,null,null,null,null,null,null,null,null,{"$f":"IFERROR(VLOOKUP(D347,Hoja1!$A$3:$B$7,2,FALSE),\"\")","v":""},{"$f":"IFERROR(VLOOKUP(K347,Hoja1!$A$10:$B$12,2,FALSE),\"\")","v":""}]
[null,null,null,null,null,null,null,null,null,null,null,null,null,null,{"$f":"IFERROR(VLOOKUP(D348,Hoja1!$A$3:$B$7,2,FALSE),\"\")","v":""},{"$f":"IFERROR(VLOOKUP(K348,Hoja1!$A$10:$B$12,2,FALSE),\"\")","v":""}]
[null,null,null,null,null,null,null,null,null,null,null,null,null,null,{"$f":"IFERROR(VLOOKUP(D349,Hoja1!$A$3:$B$7,2,FALSE),\"\")","v":""},{"$f":"IFERROR(VLOOKUP(K349,Hoja1!$A$10:$B$12,2,FALSE),\"\")","v":""}]
[null,null,null,null,null,null,null,null,null,null,null,null,null,null,{"$f":"IFERROR(VLOOKUP(D350,Hoja1!$A$3:$B$7,2,FALSE),\"\")","v":""},{"$f":"IFERROR(VLOOKUP(K350,Hoja1!$A$10:$B$12,2,FALSE),\"\")","v":""}]
[null,null,null,null,null,null,null,null,null,null,null,null,null,null,{"$f":"IFERROR(VLOOKUP(D351,Hoja1!$A$3:$B$7,2,FALSE),\"\")","v":""},{"$f":"IFERROR(VLOOKUP(K351,Hoja1!$A$10:$B$12,2,FALSE),\"\")","v":""}]
[null,null,null,null,null,null,null,null,null,null,null,null,null,null,{"$f":"IFERROR(VLOOKUP(D352,Hoja1!$A$3:$B$7,2,FALSE),\"\")","v":""},{"$f":"IFERROR(VLOOKUP(K352,Hoja1!$A$10:$B$12,2,FALSE),\"\")","v":""}]
[null,null,null,null,null,null,null,null,null,null,null,null,null,null,{"$f":"IFERROR(VLOOKUP(D353,Hoja1!$A$3:$B$7,2,FALSE),\"\")","v":""},{"$f":"IFERROR(VLOOKUP(K353,Hoja1!$A$10:$B$12,2,FALSE),\"\")","v":""}]
[null,null,null,null,null,null,null,null,null,null,null,null,null,null,{"$f":"IFERROR(VLOOKUP(D354,Hoja1!$A$3:$B$7,2,FALSE),\"\")","v":""},{"$f":"IFERROR(VLOOKUP(K354,Hoja1!$A$10:$B$12,2,FALSE),\"\")","v":""}]
[null,null,null,null,null,null,null,null,null,null,null,null,null,null,{"$f":"IFERROR(VLOOKUP(D355,Hoja1!$A$3:$B$7,2,FALSE),\"\")","v":""},{"$f":"IFERROR(VLOOKUP(K355,Hoja1!$A$10:$B$12,2,FALSE),\"\")","v":""}]
[null,null,null,null,null,null,null,null,null,null,null,null,null,null,{"$f":"IFERROR(VLOOKUP(D356,Hoja1!$A$3:$B$7,2,FALSE),\"\")","v":""},{"$f":"IFERROR(VLOOKUP(K356,Hoja1!$A$10:$B$12,2,FALSE),\"\")","v":""}]
[null,null,null,null,null,null,null,null,null,null,null,null,null,null,{"$f":"IFERROR(VLOOKUP(D357,Hoja1!$A$3:$B$7,2,FALSE),\"\")","v":""},{"$f":"IFERROR(VLOOKUP(K357,Hoja1!$A$10:$B$12,2,FALSE),\"\")","v":""}]
[null,null,null,null,null,null,null,null,null,null,null,null,null,null,{"$f":"IFERROR(VLOOKUP(D358,Hoja1!$A$3:$B$7,2,FALSE),\"\")","v":""},{"$f":"IFERROR(VLOOKUP(K358,Hoja1!$A$10:$B$12,2,FALSE),\"\")","v":""}]
[null,null,null,null,null,null,null,null,null,null,null,null,null,null,{"$f":"IFERROR(VLOOKUP(D359,Hoja1!$A$3:$B$7,2,FALSE),\"\")","v":""},{"$f":"IFERROR(VLOOKUP(K359,Hoja1!$A$10:$B$12,2,FALSE),\"\")","v":""}]
[null,null,null,null,null,null,null,null,null,null,null,null,null,null,{"$f":"IFERROR(VLOOKUP(D360,Hoja1!$A$3:$B$7,2,FALSE),\"\")","v":""},{"$f":"IFERROR(VLOOKUP(K360,Hoja1!$A$10:$B$12,2,FALSE),\"\")","v":""}]
[null,null,null,null,null,null,null,null,null,null,null,null,null,null,{"$f":"IFERROR(VLOOKUP(D361,Hoja1!$A$3:$B$7,2,FALSE),\"\")","v":""},{"$f":"IFERROR(VLOOKUP(K361,Hoja1!$A$10:$B$12,2,FALSE),\"\")","v":""}]
[null,null,null,null,null,null,null,null,null,null,null,null,null,null,{"$f":"IFERROR(VLOOKUP(D362,Hoja1!$A$3:$B$7,2,FALSE),\"\")","v":""},{"$f":"IFERROR(VLOOKUP(K362,Hoja1!$A$10:$B$12,2,FALSE),\"\")","v":""}]
[null,null,null,null,null,null,null,null,null,null,null,null,null,null,{"$f":"IFERROR(VLOOKUP(D363,Hoja1!$A$3:$B$7,2,FALSE),\"\")","v":""},{"$f":"IFERROR(VLOOKUP(K363,Hoja1!$A$10:$B$12,2,FALSE),\"\")","v":""}]
[null,null,null,null,null,null,null,null,null,null,null,null,null,null,{"$f":"IFERROR(VLOOKUP(D364,Hoja1!$A$3:$B$7,2,FALSE),\"\")","v":""},{"$f":"IFERROR(VLOOKUP(K364,Hoja1!$A$10:$B$12,2,FALSE),\"\")","v":""}]
[null,null,null,null,null,null,null,null,null,null,null,null,null,null,{"$f":"IFERROR(VLOOKUP(D365,Hoja1!$A$3:$B$7,2,FALSE),\"\")","v":""},{"$f":"IFERROR(VLOOKUP(K365,Hoja1!$A$10:$B$12,2,FALSE),\"\")","v":""}]
[null,null,null,null,null,null,null,null,null,null,null,null,null,null,{"$f":"IFERROR(VLOOKUP(D366,Hoja1!$A$3:$B$7,2,FALSE),\"\")","v":""},{"$f":"IFERROR(VLOOKUP(K366,Hoja1!$A$10:$B$12,2,FALSE),\"\")","v":""}]
[null,null,null,null,null,null,null,null,null,null,null,null,null,null,{"$f":"IFERROR(VLOOKUP(D367,Hoja1!$A$3:$B$7,2,FALSE),\"\")","v":""},{"$f":"IFERROR(VLOOKUP(K367,Hoja1!$A$10:$B$12,2,FALSE),\"\")","v":""}]
[null,null,null,null,null,null,null,null,null,null,null,null,null,null,{"$f":"IFERROR(VLOOKUP(D368,Hoja1!$A$3:$B$7,2,FALSE),\"\")","v":""},{"$f":"IFERROR(VLOOKUP(K368,Hoja1!$A$10:$B$12,2,FALSE),\"\")","v":""}]
[null,null,null,null,null,null,null,null,null,null,null,null,null,null,{"$f":"IFERROR(VLOOKUP(D369,Hoja1!$A$3:$B$7,2,FALSE),\"\")","v":""},{"$f":"IFERROR(VLOOKUP(K369,Hoja1!$A$10:$B$12,2,FALSE),\"\")","v":""}]
[null,null,null,null,null,null,null,null,null,null,null,null,null,null,{"$f":"IFERROR(VLOOKUP(D370,Hoja1!$A$3:$B$7,2,FALSE),\"\")","v":""},{"$f":"IFERROR(VLOOKUP(K370,Hoja1!$A$10:$B$12,2,FALSE),\"\")","v":""}]
[null,null,null,null,null,null,null,null,null,null,null,null,null,null,{"$f":"IFERROR(VLOOKUP(D371,Hoja1!$A$3:$B$7,2,FALSE),\"\")","v":""},{"$f":"IFERROR(VLOOKUP(K371,Hoja1!$A$10:$B$12,2,FALSE),\"\")","v":""}]
[null,null,null,null,null,null,null,null,null,null,null,null,null,null,{"$f":"IFERROR(VLOOKUP(D372,Hoja1!$A$3:$B$7,2,FALSE),\"\")","v":""},{"$f":"IFERROR(VLOOKUP(K372,Hoja1!$A$10:$B$12,2,FALSE),\"\")","v":""}]
[null,null,null,null,null,null,null,null,null,null,null,null,null,null,{"$f":"IFERROR(VLOOKUP(D373,Hoja1!$A$3:$B$7,2,FALSE),\"\")","v":""},{"$f":"IFERROR(VLOOKUP(K373,Hoja1!$A$10:$B$12,2,FALSE),\"\")","v":""}]
[null,null,null,null,null,null,null,null,null,null,null,null,null,null,{"$f":"IFERROR(VLOOKUP(D374,Hoja1!$A$3:$B$7,2,FALSE),\"\")","v":""},{"$f":"IFERROR(VLOOKUP(K374,Hoja1!$A$10:$B$12,2,FALSE),\"\")","v":""}]
[null,null,null,null,null,null,null,null,null,null,null,null,null,null,{"$f":"IFERROR(VLOOKUP(D375,Hoja1!$A$3:$B$7,2,FALSE),\"\")","v":""},{"$f":"IFERROR(VLOOKUP(K375,Hoja1!$A$10:$B$12,2,FALSE),\"\")","v":""}]
[null,null,null,null,null,null,null,null,null,null,null,null,null,null,{"$f":"IFERROR(VLOOKUP(D376,Hoja1!$A$3:$B$7,2,FALSE),\"\")","v":""},{"$f":"IFERROR(VLOOKUP(K376,Hoja1!$A$10:$B$12,2,FALSE),\"\")","v":""}]
[null,null,null,null,null,null,null,null,null,null,null,null,null,null,{"$f":"IFERROR(VLOOKUP(D377,Hoja1!$A$3:$B$7,2,FALSE),\"\")","v":""},{"$f":"IFERROR(VLOOKUP(K377,Hoja1!$A$10:$B$12,2,FALSE),\"\")","v":""}]
[null,null,null,null,null,null,null,null,null,null,null,null,null,null,{"$f":"IFERROR(VLOOKUP(D378,Hoja1!$A$3:$B$7,2,FALSE),\"\")","v":""},{"$f":"IFERROR(VLOOKUP(K378,Hoja1!$A$10:$B$12,2,FALSE),\"\")","v":""}]
[null,null,null,null,null,null,null,null,null,null,null,null,null,null,{"$f":"IFERROR(VLOOKUP(D379,Hoja1!$A$3:$B$7,2,FALSE),\"\")","v":""},{"$f":"IFERROR(VLOOKUP(K379,Hoja1!$A$10:$B$12,2,FALSE),\"\")","v":""}]
[null,null,null,null,null,null,null,null,null,null,null,null,null,null,{"$f":"IFERROR(VLOOKUP(D380,Hoja1!$A$3:$B$7,2,FALSE),\"\")","v":""},{"$f":"IFERROR(VLOOKUP(K380,Hoja1!$A$10:$B$12,2,FALSE),\"\")","v":""}]
[null,null,null,null,null,null,null,null,null,null,null,null,null,null,{"$f":"IFERROR(VLOOKUP(D381,Hoja1!$A$3:$B$7,2,FALSE),\"\")","v":""},{"$f":"IFERROR(VLOOKUP(K381,Hoja1!$A$10:$B$12,2,FALSE),\"\")","v":""}]
[null,null,null,null,null,null,null,null,null,null,null,null,null,null,{"$f":"IFERROR(VLOOKUP(D382,Hoja1!$A$3:$B$7,2,FALSE),\"\")","v":""},{"$f":"IFERROR(VLOOKUP(K382,Hoja1!$A$10:$B$12,2,FALSE),\"\")","v":""}]
[null,null,null,null,null,null,null,null,null,null,null,null,null,null,{"$f":"IFERROR(VLOOKUP(D383,Hoja1!$A$3:$B$7,2,FALSE),\"\")","v":""},{"$f":"IFERROR(VLOOKUP(K383,Hoja1!$A$10:$B$12,2,FALSE),\"\")","v":""}]
[null,null,null,null,null,null,null,null,null,null,null,null,null,null,{"$f":"IFERROR(VLOOKUP(D384,Hoja1!$A$3:$B$7,2,FALSE),\"\")","v":""},{"$f":"IFERROR(VLOOKUP(K384,Hoja1!$A$10:$B$12,2,FALSE),\"\")","v":""}]
[null,null,null,null,null,null,null,null,null,null,null,null,null,null,{"$f":"IFERROR(VLOOKUP(D385,Hoja1!$A$3:$B$7,2,FALSE),\"\")","v":""},{"$f":"IFERROR(VLOOKUP(K385,Hoja1!$A$10:$B$12,2,FALSE),\"\")","v":""}]
[null,null,null,null,null,null,null,null,null,null,null,null,null,null,{"$f":"IFERROR(VLOOKUP(D386,Hoja1!$A$3:$B$7,2,FALSE),\"\")","v":""},{"$f":"IFERROR(VLOOKUP(K386,Hoja1!$A$10:$B$12,2,FALSE),\"\")","v":""}]
[null,null,null,null,null,null,null,null,null,null,null,null,null,null,{"$f":"IFERROR(VLOOKUP(D387,Hoja1!$A$3:$B$7,2,FALSE),\"\")","v":""},{"$f":"IFERROR(VLOOKUP(K387,Hoja1!$A$10:$B$12,2,FALSE),\"\")","v":""}]
[null,null,null,null,null,null,null,null,null,null,null,null,null,null,{"$f":"IFERROR(VLOOKUP(D388,Hoja1!$A$3:$B$7,2,FALSE),\"\")","v":""},{"$f":"IFERROR(VLOOKUP(K388,Hoja1!$A$10:$B$12,2,FALSE),\"\")","v":""}]
[null,null,null,null,null,null,null,null,null,null,null,null,null,null,{"$f":"IFERROR(VLOOKUP(D389,Hoja1!$A$3:$B$7,2,FALSE),\"\")","v":""},{"$f":"IFERROR(VLOOKUP(K389,Hoja1!$A$10:$B$12,2,FALSE),\"\")","v":""}]
[null,null,null,null,null,null,null,null,null,null,null,null,null,null,{"$f":"IFERROR(VLOOKUP(D390,Hoja1!$A$3:$B$7,2,FALSE),\"\")","v":""},{"$f":"IFERROR(VLOOKUP(K390,Hoja1!$A$10:$B$12,2,FALSE),\"\")","v":""}]
[null,null,null,null,null,null,null,null,null,null,null,null,null,null,{"$f":"IFERROR(VLOOKUP(D391,Hoja1!$A$3:$B$7,2,FALSE),\"\")","v":""},{"$f":"IFERROR(VLOOKUP(K391,Hoja1!$A$10:$B$12,2,FALSE),\"\")","v":""}]
[null,null,null,null,null,null,null,null,null,null,null,null,null,null,{"$f":"IFERROR(VLOOKUP(D392,Hoja1!$A$3:$B$7,2,FALSE),\"\")","v":""},{"$f":"IFERROR(VLOOKUP(K392,Hoja1!$A$10:$B$12,2,FALSE),\"\")","v":""}]
[null,null,null,null,null,null,null,null,null,null,null,null,null,null,{"$f":"IFERROR(VLOOKUP(D393,Hoja1!$A$3:$B$7,2,FALSE),\"\")","v":""},{"$f":"IFERROR(VLOOKUP(K393,Hoja1!$A$10:$B$12,2,FALSE),\"\")","v":""}]
[null,null,null,null,null,null,null,null,null,null,null,null,null,null,{"$f":"IFERROR(VLOOKUP(D394,Hoja1!$A$3:$B$7,2,FALSE),\"\")","v":""},{"$f":"IFERROR(VLOOKUP(K394,Hoja1!$A$10:$B$12,2,FALSE),\"\")","v":""}]
[null,null,null,null,null,null,null,null,null,null,null,null,null,null,{"$f":"IFERROR(VLOOKUP(D395,Hoja1!$A$3:$B$7,2,FALSE),\"\")","v":""},{"$f":"IFERROR(VLOOKUP(K395,Hoja1!$A$10:$B$12,2,FALSE),\"\")","v":""}]
[null,null,null,null,null,null,null,null,null,null,null,null,null,null,{"$f":"IFERROR(VLOOKUP(D396,Hoja1!$A$3:$B$7,2,FALSE),\"\")","v":""},{"$f":"IFERROR(VLOOKUP(K396,Hoja1!$A$10:$B$12,2,FALSE),\"\")","v":""}]
[null,null,null,null,null,null,null,null,null,null,null,null,null,null,{"$f":"IFERROR(VLOOKUP(D397,Hoja1!$A$3:$B$7,2,FALSE),\"\")","v":""},{"$f":"IFERROR(VLOOKUP(K397,Hoja1!$A$10:$B$12,2,FALSE),\"\")","v":""}]
[null,null,null,null,null,null,null,null,null,null,null,null,null,null,{"$f":"IFERROR(VLOOKUP(D398,Hoja1!$A$3:$B$7,2,FALSE),\"\")","v":""},{"$f":"IFERROR(VLOOKUP(K398,Hoja1!$A$10:$B$12,2,FALSE),\"\")","v":""}]
[null,null,null,null,null,null,null,null,null,null,null,null,null,null,{"$f":"IFERROR(VLOOKUP(D399,Hoja1!$A$3:$B$7,2,FALSE),\"\")","v":""},{"$f":"IFERROR(VLOOKUP(K399,Hoja1!$A$10:$B$12,2,FALSE),\"\")","v":""}]
[null,null,null,null,null,null,null,null,null,null,null,null,null,null,{"$f":"IFERROR(VLOOKUP(D400,Hoja1!$A$3:$B$7,2,FALSE),\"\")","v":""},{"$f":"IFERROR(VLOOKUP(K400,Hoja1!$A$10:$B$12,2,FALSE),\"\")","v":""}]
[null,null,null,null,null,null,null,null,null,null,null,null,null,null,{"$f":"IFERROR(VLOOKUP(D401,Hoja1!$A$3:$B$7,2,FALSE),\"\")","v":""},{"$f":"IFERROR(VLOOKUP(K401,Hoja1!$A$10:$B$12,2,FALSE),\"\")","v":""}]
[null,null,null,null,null,null,null,null,null,null,null,null,null,null,{"$f":"IFERROR(VLOOKUP(D402,Hoja1!$A$3:$B$7,2,FALSE),\"\")","v":""},{"$f":"IFERROR(VLOOKUP(K402,Hoja1!$A$10:$B$12,2,FALSE),\"\")","v":""}]
[null,null,null,null,null,null,null,null,null,null,null,null,null,null,{"$f":"IFERROR(VLOOKUP(D403,Hoja1!$A$3:$B$7,2,FALSE),\"\")","v":""},{"$f":"IFERROR(VLOOKUP(K403,Hoja1!$A$10:$B$12,2,FALSE),\"\")","v":""}]
[null,null,null,null,null,null,null,null,null,null,null,null,null,null,{"$f":"IFERROR(VLOOKUP(D404,Hoja1!$A$3:$B$7,2,FALSE),\"\")","v":""},{"$f":"IFERROR(VLOOKUP(K404,Hoja1!$A$10:$B$12,2,FALSE),\"\")","v":""}]
[null,null,null,null,null,null,null,null,null,null,null,null,null,null,{"$f":"IFERROR(VLOOKUP(D405,Hoja1!$A$3:$B$7,2,FALSE),\"\")","v":""},{"$f":"IFERROR(VLOOKUP(K405,Hoja1!$A$10:$B$12,2,FALSE),\"\")","v":""}]
[null,null,null,null,null,null,null,null,null,null,null,null,null,null,{"$f":"IFERROR(VLOOKUP(D406,Hoja1!$A$3:$B$7,2,FALSE),\"\")","v":""},{"$f":"IFERROR(VLOOKUP(K406,Hoja1!$A$10:$B$12,2,FALSE),\"\")","v":""}]
[null,null,null,null,null,null,null,null,null,null,null,null,null,null,{"$f":"IFERROR(VLOOKUP(D407,Hoja1!$A$3:$B$7,2,FALSE),\"\")","v":""},{"$f":"IFERROR(VLOOKUP(K407,Hoja1!$A$10:$B$12,2,FALSE),\"\")","v":""}]
[null,null,null,null,null,null,null,null,null,null,null,null,null,null,{"$f":"IFERROR(VLOOKUP(D408,Hoja1!$A$3:$B$7,2,FALSE),\"\")","v":""},{"$f":"IFERROR(VLOOKUP(K408,Hoja1!$A$10:$B$12,2,FALSE),\"\")","v":""}]
[null,null,null,null,null,null,null,null,null,null,null,null,null,null,{"$f":"IFERROR(VLOOKUP(D409,Hoja1!$A$3:$B$7,2,FALSE),\"\")","v":""},{"$f":"IFERROR(VLOOKUP(K409,Hoja1!$A$10:$B$12,2,FALSE),\"\")","v":""}]
[null,null,null,null,null,null,null,null,null,null,null,null,null,null,{"$f":"IFERROR(VLOOKUP(D410,Hoja1!$A$3:$B$7,2,FALSE),\"\")","v":""},{"$f":"IFERROR(VLOOKUP(K410,Hoja1!$A$10:$B$12,2,FALSE),\"\")","v":""}]
[null,null,null,null,null,null,null,null,null,null,null,null,null,null,{"$f":"IFERROR(VLOOKUP(D411,Hoja1!$A$3:$B$7,2,FALSE),\"\")","v":""},{"$f":"IFERROR(VLOOKUP(K411,Hoja1!$A$10:$B$12,2,FALSE),\"\")","v":""}]
[null,null,null,null,null,null,null,null,null,null,null,null,null,null,{"$f":"IFERROR(VLOOKUP(D412,Hoja1!$A$3:$B$7,2,FALSE),\"\")","v":""},{"$f":"IFERROR(VLOOKUP(K412,Hoja1!$A$10:$B$12,2,FALSE),\"\")","v":""}]
[null,null,null,null,null,null,null,null,null,null,null,null,null,null,{"$f":"IFERROR(VLOOKUP(D413,Hoja1!$A$3:$B$7,2,FALSE),\"\")","v":""},{"$f":"IFERROR(VLOOKUP(K413,Hoja1!$A$10:$B$12,2,FALSE),\"\")","v":""}]
[null,null,null,null,null,null,null,null,null,null,null,null,null,null,{"$f":"IFERROR(VLOOKUP(D414,Hoja1!$A$3:$B$7,2,FALSE),\"\")","v":""},{"$f":"IFERROR(VLOOKUP(K414,Hoja1!$A$10:$B$12,2,FALSE),\"\")","v":""}]
[null,null,null,null,null,null,null,null,null,null,null,null,null,null,{"$f":"IFERROR(VLOOKUP(D415,Hoja1!$A$3:$B$7,2,FALSE),\"\")","v":""},{"$f":"IFERROR(VLOOKUP(K415,Hoja1!$A$10:$B$12,2,FALSE),\"\")","v":""}]
[null,null,null,null,null,null,null,null,null,null,null,null,null,null,{"$f":"IFERROR(VLOOKUP(D416,Hoja1!$A$3:$B$7,2,FALSE),\"\")","v":""},{"$f":"IFERROR(VLOOKUP(K416,Hoja1!$A$10:$B$12,2,FALSE),\"\")","v":""}]
[null,null,null,null,null,null,null,null,null,null,null,null,null,null,{"$f":"IFERROR(VLOOKUP(D417,Hoja1!$A$3:$B$7,2,FALSE),\"\")","v":""},{"$f":"IFERROR(VLOOKUP(K417,Hoja1!$A$10:$B$12,2,FALSE),\"\")","v":""}]
[null,null,null,null,null,null,null,null,null,null,null,null,null,null,{"$f":"IFERROR(VLOOKUP(D418,Hoja1!$A$3:$B$7,2,FALSE),\"\")","v":""},{"$f":"IFERROR(VLOOKUP(K418,Hoja1!$A$10:$B$12,2,FALSE),\"\")","v":""}]
[null,null,null,null,null,null,null,null,null,null,null,null,null,null,{"$f":"IFERROR(VLOOKUP(D419,Hoja1!$A$3:$B$7,2,FALSE),\"\")","v":""},{"$f":"IFERROR(VLOOKUP(K419,Hoja1!$A$10:$B$12,2,FALSE),\"\")","v":""}]
[null,null,null,null,null,null,null,null,null,null,null,null,null,null,{"$f":"IFERROR(VLOOKUP(D420,Hoja1!$A$3:$B$7,2,FALSE),\"\")","v":""},{"$f":"IFERROR(VLOOKUP(K420,Hoja1!$A$10:$B$12,2,FALSE),\"\")","v":""}]
[null,null,null,null,null,null,null,null,null,null,null,null,null,null,{"$f":"IFERROR(VLOOKUP(D421,Hoja1!$A$3:$B$7,2,FALSE),\"\")","v":""},{"$f":"IFERROR(VLOOKUP(K421,Hoja1!$A$10:$B$12,2,FALSE),\"\")","v":""}]
[null,null,null,null,null,null,null,null,null,null,null,null,null,null,{"$f":"IFERROR(VLOOKUP(D422,Hoja1!$A$3:$B$7,2,FALSE),\"\")","v":""},{"$f":"IFERROR(VLOOKUP(K422,Hoja1!$A$10:$B$12,2,FALSE),\"\")","v":""}]
[null,null,null,null,null,null,null,null,null,null,null,null,null,null,{"$f":"IFERROR(VLOOKUP(D423,Hoja1!$A$3:$B$7,2,FALSE),\"\")","v":""},{"$f":"IFERROR(VLOOKUP(K423,Hoja1!$A$10:$B$12,2,FALSE),\"\")","v":""}]
[null,null,null,null,null,null,null,null,null,null,null,null,null,null,{"$f":"IFERROR(VLOOKUP(D424,Hoja1!$A$3:$B$7,2,FALSE),\"\")","v":""},{"$f":"IFERROR(VLOOKUP(K424,Hoja1!$A$10:$B$12,2,FALSE),\"\")","v":""}]
[null,null,null,null,null,null,null,null,null,null,null,null,null,null,{"$f":"IFERROR(VLOOKUP(D425,Hoja1!$A$3:$B$7,2,FALSE),\"\")","v":""},{"$f":"IFERROR(VLOOKUP(K425,Hoja1!$A$10:$B$12,2,FALSE),\"\")","v":""}]
[null,null,null,null,null,null,null,null,null,null,null,null,null,null,{"$f":"IFERROR(VLOOKUP(D426,Hoja1!$A$3:$B$7,2,FALSE),\"\")","v":""},{"$f":"IFERROR(VLOOKUP(K426,Hoja1!$A$10:$B$12,2,FALSE),\"\")","v":""}]
[null,null,null,null,null,null,null,null,null,null,null,null,null,null,{"$f":"IFERROR(VLOOKUP(D427,Hoja1!$A$3:$B$7,2,FALSE),\"\")","v":""},{"$f":"IFERROR(VLOOKUP(K427,Hoja1!$A$10:$B$12,2,FALSE),\"\")","v":""}]
[null,null,null,null,null,null,null,null,null,null,null,null,null,null,{"$f":"IFERROR(VLOOKUP(D428,Hoja1!$A$3:$B$7,2,FALSE),\"\")","v":""},{"$f":"IFERROR(VLOOKUP(K428,Hoja1!$A$10:$B$12,2,FALSE),\"\")","v":""}]
[null,null,null,null,null,null,null,null,null,null,null,null,null,null,{"$f":"IFERROR(VLOOKUP(D429,Hoja1!$A$3:$B$7,2,FALSE),\"\")","v":""},{"$f":"IFERROR(VLOOKUP(K429,Hoja1!$A$10:$B$12,2,FALSE),\"\")","v":""}]
[null,null,null,null,null,null,null,null,null,null,null,null,null,null,{"$f":"IFERROR(VLOOKUP(D430,Hoja1!$A$3:$B$7,2,FALSE),\"\")","v":""},{"$f":"IFERROR(VLOOKUP(K430,Hoja1!$A$10:$B$12,2,FALSE),\"\")","v":""}]
[null,null,null,null,null,null,null,null,null,null,null,null,null,null,{"$f":"IFERROR(VLOOKUP(D431,Hoja1!$A$3:$B$7,2,FALSE),\"\")","v":""},{"$f":"IFERROR(VLOOKUP(K431,Hoja1!$A$10:$B$12,2,FALSE),\"\")","v":""}]
[null,null,null,null,null,null,null,null,null,null,null,null,null,null,{"$f":"IFERROR(VLOOKUP(D432,Hoja1!$A$3:$B$7,2,FALSE),\"\")","v":""},{"$f":"IFERROR(VLOOKUP(K432,Hoja1!$A$10:$B$12,2,FALSE),\"\")","v":""}]
[null,null,null,null,null,null,null,null,null,null,null,null,null,null,{"$f":"IFERROR(VLOOKUP(D433,Hoja1!$A$3:$B$7,2,FALSE),\"\")","v":""},{"$f":"IFERROR(VLOOKUP(K433,Hoja1!$A$10:$B$12,2,FALSE),\"\")","v":""}]
[null,null,null,null,null,null,null,null,null,null,null,null,null,null,{"$f":"IFERROR(VLOOKUP(D434,Hoja1!$A$3:$B$7,2,FALSE),\"\")","v":""},{"$f":"IFERROR(VLOOKUP(K434,Hoja1!$A$10:$B$12,2,FALSE),\"\")","v":""}]
[null,null,null,null,null,null,null,null,null,null,null,null,null,null,{"$f":"IFERROR(VLOOKUP(D435,Hoja1!$A$3:$B$7,2,FALSE),\"\")","v":""},{"$f":"IFERROR(VLOOKUP(K435,Hoja1!$A$10:$B$12,2,FALSE),\"\")","v":""}]
[null,null,null,null,null,null,null,null,null,null,null,null,null,null,{"$f":"IFERROR(VLOOKUP(D436,Hoja1!$A$3:$B$7,2,FALSE),\"\")","v":""},{"$f":"IFERROR(VLOOKUP(K436,Hoja1!$A$10:$B$12,2,FALSE),\"\")","v":""}]
[null,null,null,null,null,null,null,null,null,null,null,null,null,null,{"$f":"IFERROR(VLOOKUP(D437,Hoja1!$A$3:$B$7,2,FALSE),\"\")","v":""},{"$f":"IFERROR(VLOOKUP(K437,Hoja1!$A$10:$B$12,2,FALSE),\"\")","v":""}]
[null,null,null,null,null,null,null,null,null,null,null,null,null,null,{"$f":"IFERROR(VLOOKUP(D438,Hoja1!$A$3:$B$7,2,FALSE),\"\")","v":""},{"$f":"IFERROR(VLOOKUP(K438,Hoja1!$A$10:$B$12,2,FALSE),\"\")","v":""}]
[null,null,null,null,null,null,null,null,null,null,null,null,null,null,{"$f":"IFERROR(VLOOKUP(D439,Hoja1!$A$3:$B$7,2,FALSE),\"\")","v":""},{"$f":"IFERROR(VLOOKUP(K439,Hoja1!$A$10:$B$12,2,FALSE),\"\")","v":""}]
[null,null,null,null,null,null,null,null,null,null,null,null,null,null,{"$f":"IFERROR(VLOOKUP(D440,Hoja1!$A$3:$B$7,2,FALSE),\"\")","v":""},{"$f":"IFERROR(VLOOKUP(K440,Hoja1!$A$10:$B$12,2,FALSE),\"\")","v":""}]
[null,null,null,null,null,null,null,null,null,null,null,null,null,null,{"$f":"IFERROR(VLOOKUP(D441,Hoja1!$A$3:$B$7,2,FALSE),\"\")","v":""},{"$f":"IFERROR(VLOOKUP(K441,Hoja1!$A$10:$B$12,2,FALSE),\"\")","v":""}]
[null,null,null,null,null,null,null,null,null,null,null,null,null,null,{"$f":"IFERROR(VLOOKUP(D442,Hoja1!$A$3:$B$7,2,FALSE),\"\")","v":""},{"$f":"IFERROR(VLOOKUP(K442,Hoja1!$A$10:$B$12,2,FALSE),\"\")","v":""}]
[null,null,null,null,null,null,null,null,null,null,null,null,null,null,{"$f":"IFERROR(VLOOKUP(D443,Hoja1!$A$3:$B$7,2,FALSE),\"\")","v":""},{"$f":"IFERROR(VLOOKUP(K443,Hoja1!$A$10:$B$12,2,FALSE),\"\")","v":""}]
[null,null,null,null,null,null,null,null,null,null,null,null,null,null,{"$f":"IFERROR(VLOOKUP(D444,Hoja1!$A$3:$B$7,2,FALSE),\"\")","v":""},{"$f":"IFERROR(VLOOKUP(K444,Hoja1!$A$10:$B$12,2,FALSE),\"\")","v":""}]
[null,null,null,null,null,null,null,null,null,null,null,null,null,null,{"$f":"IFERROR(VLOOKUP(D445,Hoja1!$A$3:$B$7,2,FALSE),\"\")","v":""},{"$f":"IFERROR(VLOOKUP(K445,Hoja1!$A$10:$B$12,2,FALSE),\"\")","v":""}]
[null,null,null,null,null,null,null,null,null,null,null,null,null,null,{"$f":"IFERROR(VLOOKUP(D446,Hoja1!$A$3:$B$7,2,FALSE),\"\")","v":""},{"$f":"IFERROR(VLOOKUP(K446,Hoja1!$A$10:$B$12,2,FALSE),\"\")","v":""}]
[null,null,null,null,null,null,null,null,null,null,null,null,null,null,{"$f":"IFERROR(VLOOKUP(D447,Hoja1!$A$3:$B$7,2,FALSE),\"\")","v":""},{"$f":"IFERROR(VLOOKUP(K447,Hoja1!$A$10:$B$12,2,FALSE),\"\")","v":""}]
[null,null,null,null,null,null,null,null,null,null,null,null,null,null,{"$f":"IFERROR(VLOOKUP(D448,Hoja1!$A$3:$B$7,2,FALSE),\"\")","v":""},{"$f":"IFERROR(VLOOKUP(K448,Hoja1!$A$10:$B$12,2,FALSE),\"\")","v":""}]
[null,null,null,null,null,null,null,null,null,null,null,null,null,null,{"$f":"IFERROR(VLOOKUP(D449,Hoja1!$A$3:$B$7,2,FALSE),\"\")","v":""},{"$f":"IFERROR(VLOOKUP(K449,Hoja1!$A$10:$B$12,2,FALSE),\"\")","v":""}]
[null,null,null,null,null,null,null,null,null,null,null,null,null,null,{"$f":"IFERROR(VLOOKUP(D450,Hoja1!$A$3:$B$7,2,FALSE),\"\")","v":""},{"$f":"IFERROR(VLOOKUP(K450,Hoja1!$A$10:$B$12,2,FALSE),\"\")","v":""}]
[null,null,null,null,null,null,null,null,null,null,null,null,null,null,{"$f":"IFERROR(VLOOKUP(D451,Hoja1!$A$3:$B$7,2,FALSE),\"\")","v":""},{"$f":"IFERROR(VLOOKUP(K451,Hoja1!$A$10:$B$12,2,FALSE),\"\")","v":""}]
[null,null,null,null,null,null,null,null,null,null,null,null,null,null,{"$f":"IFERROR(VLOOKUP(D452,Hoja1!$A$3:$B$7,2,FALSE),\"\")","v":""},{"$f":"IFERROR(VLOOKUP(K452,Hoja1!$A$10:$B$12,2,FALSE),\"\")","v":""}]
[null,null,null,null,null,null,null,null,null,null,null,null,null,null,{"$f":"IFERROR(VLOOKUP(D453,Hoja1!$A$3:$B$7,2,FALSE),\"\")","v":""},{"$f":"IFERROR(VLOOKUP(K453,Hoja1!$A$10:$B$12,2,FALSE),\"\")","v":""}]
[null,null,null,null,null,null,null,null,null,null,null,null,null,null,{"$f":"IFERROR(VLOOKUP(D454,Hoja1!$A$3:$B$7,2,FALSE),\"\")","v":""},{"$f":"IFERROR(VLOOKUP(K454,Hoja1!$A$10:$B$12,2,FALSE),\"\")","v":""}]
[null,null,null,null,null,null,null,null,null,null,null,null,null,null,{"$f":"IFERROR(VLOOKUP(D455,Hoja1!$A$3:$B$7,2,FALSE),\"\")","v":""},{"$f":"IFERROR(VLOOKUP(K455,Hoja1!$A$10:$B$12,2,FALSE),\"\")","v":""}]
[null,null,null,null,null,null,null,null,null,null,null,null,null,null,{"$f":"IFERROR(VLOOKUP(D456,Hoja1!$A$3:$B$7,2,FALSE),\"\")","v":""},{"$f":"IFERROR(VLOOKUP(K456,Hoja1!$A$10:$B$12,2,FALSE),\"\")","v":""}]
[null,null,null,null,null,null,null,null,null,null,null,null,null,null,{"$f":"IFERROR(VLOOKUP(D457,Hoja1!$A$3:$B$7,2,FALSE),\"\")","v":""},{"$f":"IFERROR(VLOOKUP(K457,Hoja1!$A$10:$B$12,2,FALSE),\"\")","v":""}]
[null,null,null,null,null,null,null,null,null,null,null,null,null,null,{"$f":"IFERROR(VLOOKUP(D458,Hoja1!$A$3:$B$7,2,FALSE),\"\")","v":""},{"$f":"IFERROR(VLOOKUP(K458,Hoja1!$A$10:$B$12,2,FALSE),\"\")","v":""}]
[null,null,null,null,null,null,null,null,null,null,null,null,null,null,{"$f":"IFERROR(VLOOKUP(D459,Hoja1!$A$3:$B$7,2,FALSE),\"\")","v":""},{"$f":"IFERROR(VLOOKUP(K459,Hoja1!$A$10:$B$12,2,FALSE),\"\")","v":""}]
[null,null,null,null,null,null,null,null,null,null,null,null,null,null,{"$f":"IFERROR(VLOOKUP(D460,Hoja1!$A$3:$B$7,2,FALSE),\"\")","v":""},{"$f":"IFERROR(VLOOKUP(K460,Hoja1!$A$10:$B$12,2,FALSE),\"\")","v":""}]
[null,null,null,null,null,null,null,null,null,null,null,null,null,null,{"$f":"IFERROR(VLOOKUP(D461,Hoja1!$A$3:$B$7,2,FALSE),\"\")","v":""},{"$f":"IFERROR(VLOOKUP(K461,Hoja1!$A$10:$B$12,2,FALSE),\"\")","v":""}]
[null,null,null,null,null,null,null,null,null,null,null,null,null,null,{"$f":"IFERROR(VLOOKUP(D462,Hoja1!$A$3:$B$7,2,FALSE),\"\")","v":""},{"$f":"IFERROR(VLOOKUP(K462,Hoja1!$A$10:$B$12,2,FALSE),\"\")","v":""}]
[null,null,null,null,null,null,null,null,null,null,null,null,null,null,{"$f":"IFERROR(VLOOKUP(D463,Hoja1!$A$3:$B$7,2,FALSE),\"\")","v":""},{"$f":"IFERROR(VLOOKUP(K463,Hoja1!$A$10:$B$12,2,FALSE),\"\")","v":""}]
[null,null,null,null,null,null,null,null,null,null,null,null,null,null,{"$f":"IFERROR(VLOOKUP(D464,Hoja1!$A$3:$B$7,2,FALSE),\"\")","v":""},{"$f":"IFERROR(VLOOKUP(K464,Hoja1!$A$10:$B$12,2,FALSE),\"\")","v":""}]
[null,null,null,null,null,null,null,null,null,null,null,null,null,null,{"$f":"IFERROR(VLOOKUP(D465,Hoja1!$A$3:$B$7,2,FALSE),\"\")","v":""},{"$f":"IFERROR(VLOOKUP(K465,Hoja1!$A$10:$B$12,2,FALSE),\"\")","v":""}]
[null,null,null,null,null,null,null,null,null,null,null,null,null,null,{"$f":"IFERROR(VLOOKUP(D466,Hoja1!$A$3:$B$7,2,FALSE),\"\")","v":""},{"$f":"IFERROR(VLOOKUP(K466,Hoja1!$A$10:$B$12,2,FALSE),\"\")","v":""}]
[null,null,null,null,null,null,null,null,null,null,null,null,null,null,{"$f":"IFERROR(VLOOKUP(D467,Hoja1!$A$3:$B$7,2,FALSE),\"\")","v":""},{"$f":"IFERROR(VLOOKUP(K467,Hoja1!$A$10:$B$12,2,FALSE),\"\")","v":""}]
[null,null,null,null,null,null,null,null,null,null,null,null,null,null,{"$f":"IFERROR(VLOOKUP(D468,Hoja1!$A$3:$B$7,2,FALSE),\"\")","v":""},{"$f":"IFERROR(VLOOKUP(K468,Hoja1!$A$10:$B$12,2,FALSE),\"\")","v":""}]
[null,null,null,null,null,null,null,null,null,null,null,null,null,null,{"$f":"IFERROR(VLOOKUP(D469,Hoja1!$A$3:$B$7,2,FALSE),\"\")","v":""},{"$f":"IFERROR(VLOOKUP(K469,Hoja1!$A$10:$B$12,2,FALSE),\"\")","v":""}]
[null,null,null,null,null,null,null,null,null,null,null,null,null,null,{"$f":"IFERROR(VLOOKUP(D470,Hoja1!$A$3:$B$7,2,FALSE),\"\")","v":""},{"$f":"IFERROR(VLOOKUP(K470,Hoja1!$A$10:$B$12,2,FALSE),\"\")","v":""}]
[null,null,null,null,null,null,null,null,null,null,null,null,null,null,{"$f":"IFERROR(VLOOKUP(D471,Hoja1!$A$3:$B$7,2,FALSE),\"\")","v":""},{"$f":"IFERROR(VLOOKUP(K471,Hoja1!$A$10:$B$12,2,FALSE),\"\")","v":""}]
[null,null,null,null,null,null,null,null,null,null,null,null,null,null,{"$f":"IFERROR(VLOOKUP(D472,Hoja1!$A$3:$B$7,2,FALSE),\"\")","v":""},{"$f":"IFERROR(VLOOKUP(K472,Hoja1!$A$10:$B$12,2,FALSE),\"\")","v":""}]
[null,null,null,null,null,null,null,null,null,null,null,null,null,null,{"$f":"IFERROR(VLOOKUP(D473,Hoja1!$A$3:$B$7,2,FALSE),\"\")","v":""},{"$f":"IFERROR(VLOOKUP(K473,Hoja1!$A$10:$B$12,2,FALSE),\"\")","v":""}]
[null,null,null,null,null,null,null,null,null,null,null,null,null,null,{"$f":"IFERROR(VLOOKUP(D474,Hoja1!$A$3:$B$7,2,FALSE),\"\")","v":""},{"$f":"IFERROR(VLOOKUP(K474,Hoja1!$A$10:$B$12,2,FALSE),\"\")","v":""}]
[null,null,null,null,null,null,null,null,null,null,null,null,null,null,{"$f":"IFERROR(VLOOKUP(D475,Hoja1!$A$3:$B$7,2,FALSE),\"\")","v":""},{"$f":"IFERROR(VLOOKUP(K475,Hoja1!$A$10:$B$12,2,FALSE),\"\")","v":""}]
[null,null,null,null,null,null,null,null,null,null,null,null,null,null,{"$f":"IFERROR(VLOOKUP(D476,Hoja1!$A$3:$B$7,2,FALSE),\"\")","v":""},{"$f":"IFERROR(VLOOKUP(K476,Hoja1!$A$10:$B$12,2,FALSE),\"\")","v":""}]
[null,null,null,null,null,null,null,null,null,null,null,null,null,null,{"$f":"IFERROR(VLOOKUP(D477,Hoja1!$A$3:$B$7,2,FALSE),\"\")","v":""},{"$f":"IFERROR(VLOOKUP(K477,Hoja1!$A$10:$B$12,2,FALSE),\"\")","v":""}]
[null,null,null,null,null,null,null,null,null,null,null,null,null,null,{"$f":"IFERROR(VLOOKUP(D478,Hoja1!$A$3:$B$7,2,FALSE),\"\")","v":""},{"$f":"IFERROR(VLOOKUP(K478,Hoja1!$A$10:$B$12,2,FALSE),\"\")","v":""}]
[null,null,null,null,null,null,null,null,null,null,null,null,null,null,{"$f":"IFERROR(VLOOKUP(D479,Hoja1!$A$3:$B$7,2,FALSE),\"\")","v":""},{"$f":"IFERROR(VLOOKUP(K479,Hoja1!$A$10:$B$12,2,FALSE),\"\")","v":""}]
[null,null,null,null,null,null,null,null,null,null,null,null,null,null,{"$f":"IFERROR(VLOOKUP(D480,Hoja1!$A$3:$B$7,2,FALSE),\"\")","v":""},{"$f":"IFERROR(VLOOKUP(K480,Hoja1!$A$10:$B$12,2,FALSE),\"\")","v":""}]
[null,null,null,null,null,null,null,null,null,null,null,null,null,null,{"$f":"IFERROR(VLOOKUP(D481,Hoja1!$A$3:$B$7,2,FALSE),\"\")","v":""},{"$f":"IFERROR(VLOOKUP(K481,Hoja1!$A$10:$B$12,2,FALSE),\"\")","v":""}]
[null,null,null,null,null,null,null,null,null,null,null,null,null,null,{"$f":"IFERROR(VLOOKUP(D482,Hoja1!$A$3:$B$7,2,FALSE),\"\")","v":""},{"$f":"IFERROR(VLOOKUP(K482,Hoja1!$A$10:$B$12,2,FALSE),\"\")","v":""}]
[null,null,null,null,null,null,null,null,null,null,null,null,null,null,{"$f":"IFERROR(VLOOKUP(D483,Hoja1!$A$3:$B$7,2,FALSE),\"\")","v":""},{"$f":"IFERROR(VLOOKUP(K483,Hoja1!$A$10:$B$12,2,FALSE),\"\")","v":""}]
[null,null,null,null,null,null,null,null,null,null,null,null,null,null,{"$f":"IFERROR(VLOOKUP(D484,Hoja1!$A$3:$B$7,2,FALSE),\"\")","v":""},{"$f":"IFERROR(VLOOKUP(K484,Hoja1!$A$10:$B$12,2,FALSE),\"\")","v":""}]
[null,null,null,null,null,null,null,null,null,null,null,null,null,null,{"$f":"IFERROR(VLOOKUP(D485,Hoja1!$A$3:$B$7,2,FALSE),\"\")","v":""},{"$f":"IFERROR(VLOOKUP(K485,Hoja1!$A$10:$B$12,2,FALSE),\"\")","v":""}]
[null,null,null,null,null,null,null,null,null,null,null,null,null,null,{"$f":"IFERROR(VLOOKUP(D486,Hoja1!$A$3:$B$7,2,FALSE),\"\")","v":""},{"$f":"IFERROR(VLOOKUP(K486,Hoja1!$A$10:$B$12,2,FALSE),\"\")","v":""}]
[null,null,null,null,null,null,null,null,null,null,null,null,null,null,{"$f":"IFERROR(VLOOKUP(D487,Hoja1!$A$3:$B$7,2,FALSE),\"\")","v":""},{"$f":"IFERROR(VLOOKUP(K487,Hoja1!$A$10:$B$12,2,FALSE),\"\")","v":""}]
[null,null,null,null,null,null,null,null,null,null,null,null,null,null,{"$f":"IFERROR(VLOOKUP(D488,Hoja1!$A$3:$B$7,2,FALSE),\"\")","v":""},{"$f":"IFERROR(VLOOKUP(K488,Hoja1!$A$10:$B$12,2,FALSE),\"\")","v":""}]
[null,null,null,null,null,null,null,null,null,null,null,null,null,null,{"$f":"IFERROR(VLOOKUP(D489,Hoja1!$A$3:$B$7,2,FALSE),\"\")","v":""},{"$f":"IFERROR(VLOOKUP(K489,Hoja1!$A$10:$B$12,2,FALSE),\"\")","v":""}]
[null,null,null,null,null,null,null,null,null,null,null,null,null,null,{"$f":"IFERROR(VLOOKUP(D490,Hoja1!$A$3:$B$7,2,FALSE),\"\")","v":""},{"$f":"IFERROR(VLOOKUP(K490,Hoja1!$A$10:$B$12,2,FALSE),\"\")","v":""}]
[null,null,null,null,null,null,null,null,null,null,null,null,null,null,{"$f":"IFERROR(VLOOKUP(D491,Hoja1!$A$3:$B$7,2,FALSE),\"\")","v":""},{"$f":"IFERROR(VLOOKUP(K491,Hoja1!$A$10:$B$12,2,FALSE),\"\")","v":""}]
[null,null,null,null,null,null,null,null,null,null,null,null,null,null,{"$f":"IFERROR(VLOOKUP(D492,Hoja1!$A$3:$B$7,2,FALSE),\"\")","v":""},{"$f":"IFERROR(VLOOKUP(K492,Hoja1!$A$10:$B$12,2,FALSE),\"\")","v":""}]
[null,null,null,null,null,null,null,null,null,null,null,null,null,null,{"$f":"IFERROR(VLOOKUP(D493,Hoja1!$A$3:$B$7,2,FALSE),\"\")","v":""},{"$f":"IFERROR(VLOOKUP(K493,Hoja1!$A$10:$B$12,2,FALSE),\"\")","v":""}]
[null,null,null,null,null,null,null,null,null,null,null,null,null,null,{"$f":"IFERROR(VLOOKUP(D494,Hoja1!$A$3:$B$7,2,FALSE),\"\")","v":""},{"$f":"IFERROR(VLOOKUP(K494,Hoja1!$A$10:$B$12,2,FALSE),\"\")","v":""}]
[null,null,null,null,null,null,null,null,null,null,null,null,null,null,{"$f":"IFERROR(VLOOKUP(D495,Hoja1!$A$3:$B$7,2,FALSE),\"\")","v":""},{"$f":"IFERROR(VLOOKUP(K495,Hoja1!$A$10:$B$12,2,FALSE),\"\")","v":""}]
[null,null,null,null,null,null,null,null,null,null,null,null,null,null,{"$f":"IFERROR(VLOOKUP(D496,Hoja1!$A$3:$B$7,2,FALSE),\"\")","v":""},{"$f":"IFERROR(VLOOKUP(K496,Hoja1!$A$10:$B$12,2,FALSE),\"\")","v":""}]
[null,null,null,null,null,null,null,null,null,null,null,null,null,null,{"$f":"IFERROR(VLOOKUP(D497,Hoja1!$A$3:$B$7,2,FALSE),\"\")","v":""},{"$f":"IFERROR(VLOOKUP(K497,Hoja1!$A$10:$B$12,2,FALSE),\"\")","v":""}]
[null,null,null,null,null,null,null,null,null,null,null,null,null,null,{"$f":"IFERROR(VLOOKUP(D498,Hoja1!$A$3:$B$7,2,FALSE),\"\")","v":""},{"$f":"IFERROR(VLOOKUP(K498,Hoja1!$A$10:$B$12,2,FALSE),\"\")","v":""}]
[null,null,null,null,null,null,null,null,null,null,null,null,null,null,{"$f":"IFERROR(VLOOKUP(D499,Hoja1!$A$3:$B$7,2,FALSE),\"\")","v":""},{"$f":"IFERROR(VLOOKUP(K499,Hoja1!$A$10:$B$12,2,FALSE),\"\")","v":""}]
[null,null,null,null,null,null,null,null,null,null,null,null,null,null,{"$f":"IFERROR(VLOOKUP(D500,Hoja1!$A$3:$B$7,2,FALSE),\"\")","v":""},{"$f":"IFERROR(VLOOKUP(K500,Hoja1!$A$10:$B$12,2,FALSE),\"\")","v":""}]
[null,null,null,null,null,null,null,null,null,null,null,null,null,null,{"$f":"IFERROR(VLOOKUP(D501,Hoja1!$A$3:$B$7,2,FALSE),\"\")","v":""},{"$f":"IFERROR(VLOOKUP(K501,Hoja1!$A$10:$B$12,2,FALSE),\"\")","v":""}]
[null,null,null,null,null,null,null,null,null,null,null,null,null,null,{"$f":"IFERROR(VLOOKUP(D502,Hoja1!$A$3:$B$7,2,FALSE),\"\")","v":""},{"$f":"IFERROR(VLOOKUP(K502,Hoja1!$A$10:$B$12,2,FALSE),\"\")","v":""}]
[null,null,null,null,null,null,null,null,null,null,null,null,null,null,{"$f":"IFERROR(VLOOKUP(D503,Hoja1!$A$3:$B$7,2,FALSE),\"\")","v":""},{"$f":"IFERROR(VLOOKUP(K503,Hoja1!$A$10:$B$12,2,FALSE),\"\")","v":""}]
[null,null,null,null,null,null,null,null,null,null,null,null,null,null,{"$f":"IFERROR(VLOOKUP(D504,Hoja1!$A$3:$B$7,2,FALSE),\"\")","v":""},{"$f":"IFERROR(VLOOKUP(K504,Hoja1!$A$10:$B$12,2,FALSE),\"\")","v":""}]
[null,null,null,null,null,null,null,null,null,null,null,null,null,null,{"$f":"IFERROR(VLOOKUP(D505,Hoja1!$A$3:$B$7,2,FALSE),\"\")","v":""},{"$f":"IFERROR(VLOOKUP(K505,Hoja1!$A$10:$B$12,2,FALSE),\"\")","v":""}]
[null,null,null,null,null,null,null,null,null,null,null,null,null,null,{"$f":"IFERROR(VLOOKUP(D506,Hoja1!$A$3:$B$7,2,FALSE),\"\")","v":""},{"$f":"IFERROR(VLOOKUP(K506,Hoja1!$A$10:$B$12,2,FALSE),\"\")","v":""}]
[null,null,null,null,null,null,null,null,null,null,null,null,null,null,{"$f":"IFERROR(VLOOKUP(D507,Hoja1!$A$3:$B$7,2,FALSE),\"\")","v":""},{"$f":"IFERROR(VLOOKUP(K507,Hoja1!$A$10:$B$12,2,FALSE),\"\")","v":""}]
[null,null,null,null,null,null,null,null,null,null,null,null,null,null,{"$f":"IFERROR(VLOOKUP(D508,Hoja1!$A$3:$B$7,2,FALSE),\"\")","v":""},{"$f":"IFERROR(VLOOKUP(K508,Hoja1!$A$10:$B$12,2,FALSE),\"\")","v":""}]
[null,null,null,null,null,null,null,null,null,null,null,null,null,null,{"$f":"IFERROR(VLOOKUP(D509,Hoja1!$A$3:$B$7,2,FALSE),\"\")","v":""},{"$f":"IFERROR(VLOOKUP(K509,Hoja1!$A$10:$B$12,2,FALSE),\"\")","v":""}]
[null,null,null,null,null,null,null,null,null,null,null,null,null,null,{"$f":"IFERROR(VLOOKUP(D510,Hoja1!$A$3:$B$7,2,FALSE),\"\")","v":""},{"$f":"IFERROR(VLOOKUP(K510,Hoja1!$A$10:$B$12,2,FALSE),\"\")","v":""}]
[null,null,null,null,null,null,null,null,null,null,null,null,null,null,{"$f":"IFERROR(VLOOKUP(D511,Hoja1!$A$3:$B$7,2,FALSE),\"\")","v":""},{"$f":"IFERROR(VLOOKUP(K511,Hoja1!$A$10:$B$12,2,FALSE),\"\")","v":""}]
[null,null,null,null,null,null,null,null,null,null,null,null,null,null,{"$f":"IFERROR(VLOOKUP(D512,Hoja1!$A$3:$B$7,2,FALSE),\"\")","v":""},{"$f":"IFERROR(VLOOKUP(K512,Hoja1!$A$10:$B$12,2,FALSE),\"\")","v":""}]
[null,null,null,null,null,null,null,null,null,null,null,null,null,null,{"$f":"IFERROR(VLOOKUP(D513,Hoja1!$A$3:$B$7,2,FALSE),\"\")","v":""},{"$f":"IFERROR(VLOOKUP(K513,Hoja1!$A$10:$B$12,2,FALSE),\"\")","v":""}]
[null,null,null,null,null,null,null,null,null,null,null,null,null,null,{"$f":"IFERROR(VLOOKUP(D514,Hoja1!$A$3:$B$7,2,FALSE),\"\")","v":""},{"$f":"IFERROR(VLOOKUP(K514,Hoja1!$A$10:$B$12,2,FALSE),\"\")","v":""}]
[null,null,null,null,null,null,null,null,null,null,null,null,null,null,{"$f":"IFERROR(VLOOKUP(D515,Hoja1!$A$3:$B$7,2,FALSE),\"\")","v":""},{"$f":"IFERROR(VLOOKUP(K515,Hoja1!$A$10:$B$12,2,FALSE),\"\")","v":""}]
[null,null,null,null,null,null,null,null,null,null,null,null,null,null,{"$f":"IFERROR(VLOOKUP(D516,Hoja1!$A$3:$B$7,2,FALSE),\"\")","v":""},{"$f":"IFERROR(VLOOKUP(K516,Hoja1!$A$10:$B$12,2,FALSE),\"\")","v":""}]
[null,null,null,null,null,null,null,null,null,null,null,null,null,null,{"$f":"IFERROR(VLOOKUP(D517,Hoja1!$A$3:$B$7,2,FALSE),\"\")","v":""},{"$f":"IFERROR(VLOOKUP(K517,Hoja1!$A$10:$B$12,2,FALSE),\"\")","v":""}]
[null,null,null,null,null,null,null,null,null,null,null,null,null,null,{"$f":"IFERROR(VLOOKUP(D518,Hoja1!$A$3:$B$7,2,FALSE),\"\")","v":""},{"$f":"IFERROR(VLOOKUP(K518,Hoja1!$A$10:$B$12,2,FALSE),\"\")","v":""}]
[null,null,null,null,null,null,null,null,null,null,null,null,null,null,{"$f":"IFERROR(VLOOKUP(D519,Hoja1!$A$3:$B$7,2,FALSE),\"\")","v":""},{"$f":"IFERROR(VLOOKUP(K519,Hoja1!$A$10:$B$12,2,FALSE),\"\")","v":""}]
[null,null,null,null,null,null,null,null,null,null,null,null,null,null,{"$f":"IFERROR(VLOOKUP(D520,Hoja1!$A$3:$B$7,2,FALSE),\"\")","v":""},{"$f":"IFERROR(VLOOKUP(K520,Hoja1!$A$10:$B$12,2,FALSE),\"\")","v":""}]
[null,null,null,null,null,null,null,null,null,null,null,null,null,null,{"$f":"IFERROR(VLOOKUP(D521,Hoja1!$A$3:$B$7,2,FALSE),\"\")","v":""},{"$f":"IFERROR(VLOOKUP(K521,Hoja1!$A$10:$B$12,2,FALSE),\"\")","v":""}]
[null,null,null,null,null,null,null,null,null,null,null,null,null,null,{"$f":"IFERROR(VLOOKUP(D522,Hoja1!$A$3:$B$7,2,FALSE),\"\")","v":""},{"$f":"IFERROR(VLOOKUP(K522,Hoja1!$A$10:$B$12,2,FALSE),\"\")","v":""}]
[null,null,null,null,null,null,null,null,null,null,null,null,null,null,{"$f":"IFERROR(VLOOKUP(D523,Hoja1!$A$3:$B$7,2,FALSE),\"\")","v":""},{"$f":"IFERROR(VLOOKUP(K523,Hoja1!$A$10:$B$12,2,FALSE),\"\")","v":""}]
[null,null,null,null,null,null,null,null,null,null,null,null,null,null,{"$f":"IFERROR(VLOOKUP(D524,Hoja1!$A$3:$B$7,2,FALSE),\"\")","v":""},{"$f":"IFERROR(VLOOKUP(K524,Hoja1!$A$10:$B$12,2,FALSE),\"\")","v":""}]
[null,null,null,null,null,null,null,null,null,null,null,null,null,null,{"$f":"IFERROR(VLOOKUP(D525,Hoja1!$A$3:$B$7,2,FALSE),\"\")","v":""},{"$f":"IFERROR(VLOOKUP(K525,Hoja1!$A$10:$B$12,2,FALSE),\"\")","v":""}]
[null,null,null,null,null,null,null,null,null,null,null,null,null,null,{"$f":"IFERROR(VLOOKUP(D526,Hoja1!$A$3:$B$7,2,FALSE),\"\")","v":""},{"$f":"IFERROR(VLOOKUP(K526,Hoja1!$A$10:$B$12,2,FALSE),\"\")","v":""}]
[null,null,null,null,null,null,null,null,null,null,null,null,null,null,{"$f":"IFERROR(VLOOKUP(D527,Hoja1!$A$3:$B$7,2,FALSE),\"\")","v":""},{"$f":"IFERROR(VLOOKUP(K527,Hoja1!$A$10:$B$12,2,FALSE),\"\")","v":""}]
[null,null,null,null,null,null,null,null,null,null,null,null,null,null,{"$f":"IFERROR(VLOOKUP(D528,Hoja1!$A$3:$B$7,2,FALSE),\"\")","v":""},{"$f":"IFERROR(VLOOKUP(K528,Hoja1!$A$10:$B$12,2,FALSE),\"\")","v":""}]
[null,null,null,null,null,null,null,null,null,null,null,null,null,null,{"$f":"IFERROR(VLOOKUP(D529,Hoja1!$A$3:$B$7,2,FALSE),\"\")","v":""},{"$f":"IFERROR(VLOOKUP(K529,Hoja1!$A$10:$B$12,2,FALSE),\"\")","v":""}]
[null,null,null,null,null,null,null,null,null,null,null,null,null,null,{"$f":"IFERROR(VLOOKUP(D530,Hoja1!$A$3:$B$7,2,FALSE),\"\")","v":""},{"$f":"IFERROR(VLOOKUP(K530,Hoja1!$A$10:$B$12,2,FALSE),\"\")","v":""}]
[null,null,null,null,null,null,null,null,null,null,null,null,null,null,{"$f":"IFERROR(VLOOKUP(D531,Hoja1!$A$3:$B$7,2,FALSE),\"\")","v":""},{"$f":"IFERROR(VLOOKUP(K531,Hoja1!$A$10:$B$12,2,FALSE),\"\")","v":""}]
[null,null,null,null,null,null,null,null,null,null,null,null,null,null,{"$f":"IFERROR(VLOOKUP(D532,Hoja1!$A$3:$B$7,2,FALSE),\"\")","v":""},{"$f":"IFERROR(VLOOKUP(K532,Hoja1!$A$10:$B$12,2,FALSE),\"\")","v":""}]
[null,null,null,null,null,null,null,null,null,null,null,null,null,null,{"$f":"IFERROR(VLOOKUP(D533,Hoja1!$A$3:$B$7,2,FALSE),\"\")","v":""},{"$f":"IFERROR(VLOOKUP(K533,Hoja1!$A$10:$B$12,2,FALSE),\"\")","v":""}]
[null,null,null,null,null,null,null,null,null,null,null,null,null,null,{"$f":"IFERROR(VLOOKUP(D534,Hoja1!$A$3:$B$7,2,FALSE),\"\")","v":""},{"$f":"IFERROR(VLOOKUP(K534,Hoja1!$A$10:$B$12,2,FALSE),\"\")","v":""}]
[null,null,null,null,null,null,null,null,null,null,null,null,null,null,{"$f":"IFERROR(VLOOKUP(D535,Hoja1!$A$3:$B$7,2,FALSE),\"\")","v":""},{"$f":"IFERROR(VLOOKUP(K535,Hoja1!$A$10:$B$12,2,FALSE),\"\")","v":""}]
[null,null,null,null,null,null,null,null,null,null,null,null,null,null,{"$f":"IFERROR(VLOOKUP(D536,Hoja1!$A$3:$B$7,2,FALSE),\"\")","v":""},{"$f":"IFERROR(VLOOKUP(K536,Hoja1!$A$10:$B$12,2,FALSE),\"\")","v":""}]
[null,null,null,null,null,null,null,null,null,null,null,null,null,null,{"$f":"IFERROR(VLOOKUP(D537,Hoja1!$A$3:$B$7,2,FALSE),\"\")","v":""},{"$f":"IFERROR(VLOOKUP(K537,Hoja1!$A$10:$B$12,2,FALSE),\"\")","v":""}]
[null,null,null,null,null,null,null,null,null,null,null,null,null,null,{"$f":"IFERROR(VLOOKUP(D538,Hoja1!$A$3:$B$7,2,FALSE),\"\")","v":""},{"$f":"IFERROR(VLOOKUP(K538,Hoja1!$A$10:$B$12,2,FALSE),\"\")","v":""}]
[null,null,null,null,null,null,null,null,null,null,null,null,null,null,{"$f":"IFERROR(VLOOKUP(D539,Hoja1!$A$3:$B$7,2,FALSE),\"\")","v":""},{"$f":"IFERROR(VLOOKUP(K539,Hoja1!$A$10:$B$12,2,FALSE),\"\")","v":""}]
[null,null,null,null,null,null,null,null,null,null,null,null,null,null,{"$f":"IFERROR(VLOOKUP(D540,Hoja1!$A$3:$B$7,2,FALSE),\"\")","v":""},{"$f":"IFERROR(VLOOKUP(K540,Hoja1!$A$10:$B$12,2,FALSE),\"\")","v":""}]
[null,null,null,null,null,null,null,null,null,null,null,null,null,null,{"$f":"IFERROR(VLOOKUP(D541,Hoja1!$A$3:$B$7,2,FALSE),\"\")","v":""},{"$f":"IFERROR(VLOOKUP(K541,Hoja1!$A$10:$B$12,2,FALSE),\"\")","v":""}]
[null,null,null,null,null,null,null,null,null,null,null,null,null,null,{"$f":"IFERROR(VLOOKUP(D542,Hoja1!$A$3:$B$7,2,FALSE),\"\")","v":""},{"$f":"IFERROR(VLOOKUP(K542,Hoja1!$A$10:$B$12,2,FALSE),\"\")","v":""}]
[null,null,null,null,null,null,null,null,null,null,null,null,null,null,{"$f":"IFERROR(VLOOKUP(D543,Hoja1!$A$3:$B$7,2,FALSE),\"\")","v":""},{"$f":"IFERROR(VLOOKUP(K543,Hoja1!$A$10:$B$12,2,FALSE),\"\")","v":""}]
[null,null,null,null,null,null,null,null,null,null,null,null,null,null,{"$f":"IFERROR(VLOOKUP(D544,Hoja1!$A$3:$B$7,2,FALSE),\"\")","v":""},{"$f":"IFERROR(VLOOKUP(K544,Hoja1!$A$10:$B$12,2,FALSE),\"\")","v":""}]
[null,null,null,null,null,null,null,null,null,null,null,null,null,null,{"$f":"IFERROR(VLOOKUP(D545,Hoja1!$A$3:$B$7,2,FALSE),\"\")","v":""},{"$f":"IFERROR(VLOOKUP(K545,Hoja1!$A$10:$B$12,2,FALSE),\"\")","v":""}]
[null,null,null,null,null,null,null,null,null,null,null,null,null,null,{"$f":"IFERROR(VLOOKUP(D546,Hoja1!$A$3:$B$7,2,FALSE),\"\")","v":""},{"$f":"IFERROR(VLOOKUP(K546,Hoja1!$A$10:$B$12,2,FALSE),\"\")","v":""}]
[null,null,null,null,null,null,null,null,null,null,null,null,null,null,{"$f":"IFERROR(VLOOKUP(D547,Hoja1!$A$3:$B$7,2,FALSE),\"\")","v":""},{"$f":"IFERROR(VLOOKUP(K547,Hoja1!$A$10:$B$12,2,FALSE),\"\")","v":""}]
[null,null,null,null,null,null,null,null,null,null,null,null,null,null,{"$f":"IFERROR(VLOOKUP(D548,Hoja1!$A$3:$B$7,2,FALSE),\"\")","v":""},{"$f":"IFERROR(VLOOKUP(K548,Hoja1!$A$10:$B$12,2,FALSE),\"\")","v":""}]
[null,null,null,null,null,null,null,null,null,null,null,null,null,null,{"$f":"IFERROR(VLOOKUP(D549,Hoja1!$A$3:$B$7,2,FALSE),\"\")","v":""},{"$f":"IFERROR(VLOOKUP(K549,Hoja1!$A$10:$B$12,2,FALSE),\"\")","v":""}]
[null,null,null,null,null,null,null,null,null,null,null,null,null,null,{"$f":"IFERROR(VLOOKUP(D550,Hoja1!$A$3:$B$7,2,FALSE),\"\")","v":""},{"$f":"IFERROR(VLOOKUP(K550,Hoja1!$A$10:$B$12,2,FALSE),\"\")","v":""}]
[null,null,null,null,null,null,null,null,null,null,null,null,null,null,{"$f":"IFERROR(VLOOKUP(D551,Hoja1!$A$3:$B$7,2,FALSE),\"\")","v":""},{"$f":"IFERROR(VLOOKUP(K551,Hoja1!$A$10:$B$12,2,FALSE),\"\")","v":""}]
[null,null,null,null,null,null,null,null,null,null,null,null,null,null,{"$f":"IFERROR(VLOOKUP(D552,Hoja1!$A$3:$B$7,2,FALSE),\"\")","v":""},{"$f":"IFERROR(VLOOKUP(K552,Hoja1!$A$10:$B$12,2,FALSE),\"\")","v":""}]
[null,null,null,null,null,null,null,null,null,null,null,null,null,null,{"$f":"IFERROR(VLOOKUP(D553,Hoja1!$A$3:$B$7,2,FALSE),\"\")","v":""},{"$f":"IFERROR(VLOOKUP(K553,Hoja1!$A$10:$B$12,2,FALSE),\"\")","v":""}]
[null,null,null,null,null,null,null,null,null,null,null,null,null,null,{"$f":"IFERROR(VLOOKUP(D554,Hoja1!$A$3:$B$7,2,FALSE),\"\")","v":""},{"$f":"IFERROR(VLOOKUP(K554,Hoja1!$A$10:$B$12,2,FALSE),\"\")","v":""}]
[null,null,null,null,null,null,null,null,null,null,null,null,null,null,{"$f":"IFERROR(VLOOKUP(D555,Hoja1!$A$3:$B$7,2,FALSE),\"\")","v":""},{"$f":"IFERROR(VLOOKUP(K555,Hoja1!$A$10:$B$12,2,FALSE),\"\")","v":""}]
[null,null,null,null,null,null,null,null,null,null,null,null,null,null,{"$f":"IFERROR(VLOOKUP(D556,Hoja1!$A$3:$B$7,2,FALSE),\"\")","v":""},{"$f":"IFERROR(VLOOKUP(K556,Hoja1!$A$10:$B$12,2,FALSE),\"\")","v":""}]
[null,null,null,null,null,null,null,null,null,null,null,null,null,null,{"$f":"IFERROR(VLOOKUP(D557,Hoja1!$A$3:$B$7,2,FALSE),\"\")","v":""},{"$f":"IFERROR(VLOOKUP(K557,Hoja1!$A$10:$B$12,2,FALSE),\"\")","v":""}]
[null,null,null,null,null,null,null,null,null,null,null,null,null,null,{"$f":"IFERROR(VLOOKUP(D558,Hoja1!$A$3:$B$7,2,FALSE),\"\")","v":""},{"$f":"IFERROR(VLOOKUP(K558,Hoja1!$A$10:$B$12,2,FALSE),\"\")","v":""}]
[null,null,null,null,null,null,null,null,null,null,null,null,null,null,{"$f":"IFERROR(VLOOKUP(D559,Hoja1!$A$3:$B$7,2,FALSE),\"\")","v":""},{"$f":"IFERROR(VLOOKUP(K559,Hoja1!$A$10:$B$12,2,FALSE),\"\")","v":""}]
[null,null,null,null,null,null,null,null,null,null,null,null,null,null,{"$f":"IFERROR(VLOOKUP(D560,Hoja1!$A$3:$B$7,2,FALSE),\"\")","v":""},{"$f":"IFERROR(VLOOKUP(K560,Hoja1!$A$10:$B$12,2,FALSE),\"\")","v":""}]
[null,null,null,null,null,null,null,null,null,null,null,null,null,null,{"$f":"IFERROR(VLOOKUP(D561,Hoja1!$A$3:$B$7,2,FALSE),\"\")","v":""},{"$f":"IFERROR(VLOOKUP(K561,Hoja1!$A$10:$B$12,2,FALSE),\"\")","v":""}]
[null,null,null,null,null,null,null,null,null,null,null,null,null,null,{"$f":"IFERROR(VLOOKUP(D562,Hoja1!$A$3:$B$7,2,FALSE),\"\")","v":""},{"$f":"IFERROR(VLOOKUP(K562,Hoja1!$A$10:$B$12,2,FALSE),\"\")","v":""}]
[null,null,null,null,null,null,null,null,null,null,null,null,null,null,{"$f":"IFERROR(VLOOKUP(D563,Hoja1!$A$3:$B$7,2,FALSE),\"\")","v":""},{"$f":"IFERROR(VLOOKUP(K563,Hoja1!$A$10:$B$12,2,FALSE),\"\")","v":""}]
[null,null,null,null,null,null,null,null,null,null,null,null,null,null,{"$f":"IFERROR(VLOOKUP(D564,Hoja1!$A$3:$B$7,2,FALSE),\"\")","v":""},{"$f":"IFERROR(VLOOKUP(K564,Hoja1!$A$10:$B$12,2,FALSE),\"\")","v":""}]
[null,null,null,null,null,null,null,null,null,null,null,null,null,null,{"$f":"IFERROR(VLOOKUP(D565,Hoja1!$A$3:$B$7,2,FALSE),\"\")","v":""},{"$f":"IFERROR(VLOOKUP(K565,Hoja1!$A$10:$B$12,2,FALSE),\"\")","v":""}]
[null,null,null,null,null,null,null,null,null,null,null,null,null,null,{"$f":"IFERROR(VLOOKUP(D566,Hoja1!$A$3:$B$7,2,FALSE),\"\")","v":""},{"$f":"IFERROR(VLOOKUP(K566,Hoja1!$A$10:$B$12,2,FALSE),\"\")","v":""}]
[null,null,null,null,null,null,null,null,null,null,null,null,null,null,{"$f":"IFERROR(VLOOKUP(D567,Hoja1!$A$3:$B$7,2,FALSE),\"\")","v":""},{"$f":"IFERROR(VLOOKUP(K567,Hoja1!$A$10:$B$12,2,FALSE),\"\")","v":""}]
[null,null,null,null,null,null,null,null,null,null,null,null,null,null,{"$f":"IFERROR(VLOOKUP(D568,Hoja1!$A$3:$B$7,2,FALSE),\"\")","v":""},{"$f":"IFERROR(VLOOKUP(K568,Hoja1!$A$10:$B$12,2,FALSE),\"\")","v":""}]
[null,null,null,null,null,null,null,null,null,null,null,null,null,null,{"$f":"IFERROR(VLOOKUP(D569,Hoja1!$A$3:$B$7,2,FALSE),\"\")","v":""},{"$f":"IFERROR(VLOOKUP(K569,Hoja1!$A$10:$B$12,2,FALSE),\"\")","v":""}]
[null,null,null,null,null,null,null,null,null,null,null,null,null,null,{"$f":"IFERROR(VLOOKUP(D570,Hoja1!$A$3:$B$7,2,FALSE),\"\")","v":""},{"$f":"IFERROR(VLOOKUP(K570,Hoja1!$A$10:$B$12,2,FALSE),\"\")","v":""}]
[null,null,null,null,null,null,null,null,null,null,null,null,null,null,{"$f":"IFERROR(VLOOKUP(D571,Hoja1!$A$3:$B$7,2,FALSE),\"\")","v":""},{"$f":"IFERROR(VLOOKUP(K571,Hoja1!$A$10:$B$12,2,FALSE),\"\")","v":""}]
[null,null,null,null,null,null,null,null,null,null,null,null,null,null,{"$f":"IFERROR(VLOOKUP(D572,Hoja1!$A$3:$B$7,2,FALSE),\"\")","v":""},{"$f":"IFERROR(VLOOKUP(K572,Hoja1!$A$10:$B$12,2,FALSE),\"\")","v":""}]
[null,null,null,null,null,null,null,null,null,null,null,null,null,null,{"$f":"IFERROR(VLOOKUP(D573,Hoja1!$A$3:$B$7,2,FALSE),\"\")","v":""},{"$f":"IFERROR(VLOOKUP(K573,Hoja1!$A$10:$B$12,2,FALSE),\"\")","v":""}]
[null,null,null,null,null,null,null,null,null,null,null,null,null,null,{"$f":"IFERROR(VLOOKUP(D574,Hoja1!$A$3:$B$7,2,FALSE),\"\")","v":""},{"$f":"IFERROR(VLOOKUP(K574,Hoja1!$A$10:$B$12,2,FALSE),\"\")","v":""}]
[null,null,null,null,null,null,null,null,null,null,null,null,null,null,{"$f":"IFERROR(VLOOKUP(D575,Hoja1!$A$3:$B$7,2,FALSE),\"\")","v":""},{"$f":"IFERROR(VLOOKUP(K575,Hoja1!$A$10:$B$12,2,FALSE),\"\")","v":""}]
[null,null,null,null,null,null,null,null,null,null,null,null,null,null,{"$f":"IFERROR(VLOOKUP(D576,Hoja1!$A$3:$B$7,2,FALSE),\"\")","v":""},{"$f":"IFERROR(VLOOKUP(K576,Hoja1!$A$10:$B$12,2,FALSE),\"\")","v":""}]
[null,null,null,null,null,null,null,null,null,null,null,null,null,null,{"$f":"IFERROR(VLOOKUP(D577,Hoja1!$A$3:$B$7,2,FALSE),\"\")","v":""},{"$f":"IFERROR(VLOOKUP(K577,Hoja1!$A$10:$B$12,2,FALSE),\"\")","v":""}]
[null,null,null,null,null,null,null,null,null,null,null,null,null,null,{"$f":"IFERROR(VLOOKUP(D578,Hoja1!$A$3:$B$7,2,FALSE),\"\")","v":""},{"$f":"IFERROR(VLOOKUP(K578,Hoja1!$A$10:$B$12,2,FALSE),\"\")","v":""}]
[null,null,null,null,null,null,null,null,null,null,null,null,null,null,{"$f":"IFERROR(VLOOKUP(D579,Hoja1!$A$3:$B$7,2,FALSE),\"\")","v":""},{"$f":"IFERROR(VLOOKUP(K579,Hoja1!$A$10:$B$12,2,FALSE),\"\")","v":""}]
[null,null,null,null,null,null,null,null,null,null,null,null,null,null,{"$f":"IFERROR(VLOOKUP(D580,Hoja1!$A$3:$B$7,2,FALSE),\"\")","v":""},{"$f":"IFERROR(VLOOKUP(K580,Hoja1!$A$10:$B$12,2,FALSE),\"\")","v":""}]
[null,null,null,null,null,null,null,null,null,null,null,null,null,null,{"$f":"IFERROR(VLOOKUP(D581,Hoja1!$A$3:$B$7,2,FALSE),\"\")","v":""},{"$f":"IFERROR(VLOOKUP(K581,Hoja1!$A$10:$B$12,2,FALSE),\"\")","v":""}]
[null,null,null,null,null,null,null,null,null,null,null,null,null,null,{"$f":"IFERROR(VLOOKUP(D582,Hoja1!$A$3:$B$7,2,FALSE),\"\")","v":""},{"$f":"IFERROR(VLOOKUP(K582,Hoja1!$A$10:$B$12,2,FALSE),\"\")","v":""}]
[null,null,null,null,null,null,null,null,null,null,null,null,null,null,{"$f":"IFERROR(VLOOKUP(D583,Hoja1!$A$3:$B$7,2,FALSE),\"\")","v":""},{"$f":"IFERROR(VLOOKUP(K583,Hoja1!$A$10:$B$12,2,FALSE),\"\")","v":""}]
[null,null,null,null,null,null,null,null,null,null,null,null,null,null,{"$f":"IFERROR(VLOOKUP(D584,Hoja1!$A$3:$B$7,2,FALSE),\"\")","v":""},{"$f":"IFERROR(VLOOKUP(K584,Hoja1!$A$10:$B$12,2,FALSE),\"\")","v":""}]
[null,null,null,null,null,null,null,null,null,null,null,null,null,null,{"$f":"IFERROR(VLOOKUP(D585,Hoja1!$A$3:$B$7,2,FALSE),\"\")","v":""},{"$f":"IFERROR(VLOOKUP(K585,Hoja1!$A$10:$B$12,2,FALSE),\"\")","v":""}]
[null,null,null,null,null,null,null,null,null,null,null,null,null,null,{"$f":"IFERROR(VLOOKUP(D586,Hoja1!$A$3:$B$7,2,FALSE),\"\")","v":""},{"$f":"IFERROR(VLOOKUP(K586,Hoja1!$A$10:$B$12,2,FALSE),\"\")","v":""}]
[null,null,null,null,null,null,null,null,null,null,null,null,null,null,{"$f":"IFERROR(VLOOKUP(D587,Hoja1!$A$3:$B$7,2,FALSE),\"\")","v":""},{"$f":"IFERROR(VLOOKUP(K587,Hoja1!$A$10:$B$12,2,FALSE),\"\")","v":""}]
[null,null,null,null,null,null,null,null,null,null,null,null,null,null,{"$f":"IFERROR(VLOOKUP(D588,Hoja1!$A$3:$B$7,2,FALSE),\"\")","v":""},{"$f":"IFERROR(VLOOKUP(K588,Hoja1!$A$10:$B$12,2,FALSE),\"\")","v":""}]
[null,null,null,null,null,null,null,null,null,null,null,null,null,null,{"$f":"IFERROR(VLOOKUP(D589,Hoja1!$A$3:$B$7,2,FALSE),\"\")","v":""},{"$f":"IFERROR(VLOOKUP(K589,Hoja1!$A$10:$B$12,2,FALSE),\"\")","v":""}]
[null,null,null,null,null,null,null,null,null,null,null,null,null,null,{"$f":"IFERROR(VLOOKUP(D590,Hoja1!$A$3:$B$7,2,FALSE),\"\")","v":""},{"$f":"IFERROR(VLOOKUP(K590,Hoja1!$A$10:$B$12,2,FALSE),\"\")","v":""}]
[null,null,null,null,null,null,null,null,null,null,null,null,null,null,{"$f":"IFERROR(VLOOKUP(D591,Hoja1!$A$3:$B$7,2,FALSE),\"\")","v":""},{"$f":"IFERROR(VLOOKUP(K591,Hoja1!$A$10:$B$12,2,FALSE),\"\")","v":""}]
[null,null,null,null,null,null,null,null,null,null,null,null,null,null,{"$f":"IFERROR(VLOOKUP(D592,Hoja1!$A$3:$B$7,2,FALSE),\"\")","v":""},{"$f":"IFERROR(VLOOKUP(K592,Hoja1!$A$10:$B$12,2,FALSE),\"\")","v":""}]
[null,null,null,null,null,null,null,null,null,null,null,null,null,null,{"$f":"IFERROR(VLOOKUP(D593,Hoja1!$A$3:$B$7,2,FALSE),\"\")","v":""},{"$f":"IFERROR(VLOOKUP(K593,Hoja1!$A$10:$B$12,2,FALSE),\"\")","v":""}]
[null,null,null,null,null,null,null,null,null,null,null,null,null,null,{"$f":"IFERROR(VLOOKUP(D594,Hoja1!$A$3:$B$7,2,FALSE),\"\")","v":""},{"$f":"IFERROR(VLOOKUP(K594,Hoja1!$A$10:$B$12,2,FALSE),\"\")","v":""}]
[null,null,null,null,null,null,null,null,null,null,null,null,null,null,{"$f":"IFERROR(VLOOKUP(D595,Hoja1!$A$3:$B$7,2,FALSE),\"\")","v":""},{"$f":"IFERROR(VLOOKUP(K595,Hoja1!$A$10:$B$12,2,FALSE),\"\")","v":""}]
[null,null,null,null,null,null,null,null,null,null,null,null,null,null,{"$f":"IFERROR(VLOOKUP(D596,Hoja1!$A$3:$B$7,2,FALSE),\"\")","v":""},{"$f":"IFERROR(VLOOKUP(K596,Hoja1!$A$10:$B$12,2,FALSE),\"\")","v":""}]
[null,null,null,null,null,null,null,null,null,null,null,null,null,null,{"$f":"IFERROR(VLOOKUP(D597,Hoja1!$A$3:$B$7,2,FALSE),\"\")","v":""},{"$f":"IFERROR(VLOOKUP(K597,Hoja1!$A$10:$B$12,2,FALSE),\"\")","v":""}]
[null,null,null,null,null,null,null,null,null,null,null,null,null,null,{"$f":"IFERROR(VLOOKUP(D598,Hoja1!$A$3:$B$7,2,FALSE),\"\")","v":""},{"$f":"IFERROR(VLOOKUP(K598,Hoja1!$A$10:$B$12,2,FALSE),\"\")","v":""}]
[null,null,null,null,null,null,null,null,null,null,null,null,null,null,{"$f":"IFERROR(VLOOKUP(D599,Hoja1!$A$3:$B$7,2,FALSE),\"\")","v":""},{"$f":"IFERROR(VLOOKUP(K599,Hoja1!$A$10:$B$12,2,FALSE),\"\")","v":""}]
[null,null,null,null,null,null,null,null,null,null,null,null,null,null,{"$f":"IFERROR(VLOOKUP(D600,Hoja1!$A$3:$B$7,2,FALSE),\"\")","v":""},{"$f":"IFERROR(VLOOKUP(K600,Hoja1!$A$10:$B$12,2,FALSE),\"\")","v":""}]
[null,null,null,null,null,null,null,null,null,null,null,null,null,null,{"$f":"IFERROR(VLOOKUP(D601,Hoja1!$A$3:$B$7,2,FALSE),\"\")","v":""},{"$f":"IFERROR(VLOOKUP(K601,Hoja1!$A$10:$B$12,2,FALSE),\"\")","v":""}]
[null,null,null,null,null,null,null,null,null,null,null,null,null,null,{"$f":"IFERROR(VLOOKUP(D602,Hoja1!$A$3:$B$7,2,FALSE),\"\")","v":""},{"$f":"IFERROR(VLOOKUP(K602,Hoja1!$A$10:$B$12,2,FALSE),\"\")","v":""}]
[null,null,null,null,null,null,null,null,null,null,null,null,null,null,{"$f":"IFERROR(VLOOKUP(D603,Hoja1!$A$3:$B$7,2,FALSE),\"\")","v":""},{"$f":"IFERROR(VLOOKUP(K603,Hoja1!$A$10:$B$12,2,FALSE),\"\")","v":""}]
[null,null,null,null,null,null,null,null,null,null,null,null,null,null,{"$f":"IFERROR(VLOOKUP(D604,Hoja1!$A$3:$B$7,2,FALSE),\"\")","v":""},{"$f":"IFERROR(VLOOKUP(K604,Hoja1!$A$10:$B$12,2,FALSE),\"\")","v":""}]
[null,null,null,null,null,null,null,null,null,null,null,null,null,null,{"$f":"IFERROR(VLOOKUP(D605,Hoja1!$A$3:$B$7,2,FALSE),\"\")","v":""},{"$f":"IFERROR(VLOOKUP(K605,Hoja1!$A$10:$B$12,2,FALSE),\"\")","v":""}]
[null,null,null,null,null,null,null,null,null,null,null,null,null,null,{"$f":"IFERROR(VLOOKUP(D606,Hoja1!$A$3:$B$7,2,FALSE),\"\")","v":""},{"$f":"IFERROR(VLOOKUP(K606,Hoja1!$A$10:$B$12,2,FALSE),\"\")","v":""}]
[null,null,null,null,null,null,null,null,null,null,null,null,null,null,{"$f":"IFERROR(VLOOKUP(D607,Hoja1!$A$3:$B$7,2,FALSE),\"\")","v":""},{"$f":"IFERROR(VLOOKUP(K607,Hoja1!$A$10:$B$12,2,FALSE),\"\")","v":""}]
[null,null,null,null,null,null,null,null,null,null,null,null,null,null,{"$f":"IFERROR(VLOOKUP(D608,Hoja1!$A$3:$B$7,2,FALSE),\"\")","v":""},{"$f":"IFERROR(VLOOKUP(K608,Hoja1!$A$10:$B$12,2,FALSE),\"\")","v":""}]
[null,null,null,null,null,null,null,null,null,null,null,null,null,null,{"$f":"IFERROR(VLOOKUP(D609,Hoja1!$A$3:$B$7,2,FALSE),\"\")","v":""},{"$f":"IFERROR(VLOOKUP(K609,Hoja1!$A$10:$B$12,2,FALSE),\"\")","v":""}]
[null,null,null,null,null,null,null,null,null,null,null,null,null,null,{"$f":"IFERROR(VLOOKUP(D610,Hoja1!$A$3:$B$7,2,FALSE),\"\")","v":""},{"$f":"IFERROR(VLOOKUP(K610,Hoja1!$A$10:$B$12,2,FALSE),\"\")","v":""}]
[null,null,null,null,null,null,null,null,null,null,null,null,null,null,{"$f":"IFERROR(VLOOKUP(D611,Hoja1!$A$3:$B$7,2,FALSE),\"\")","v":""},{"$f":"IFERROR(VLOOKUP(K611,Hoja1!$A$10:$B$12,2,FALSE),\"\")","v":""}]
[null,null,null,null,null,null,null,null,null,null,null,null,null,null,{"$f":"IFERROR(VLOOKUP(D612,Hoja1!$A$3:$B$7,2,FALSE),\"\")","v":""},{"$f":"IFERROR(VLOOKUP(K612,Hoja1!$A$10:$B$12,2,FALSE),\"\")","v":""}]
[null,null,null,null,null,null,null,null,null,null,null,null,null,null,{"$f":"IFERROR(VLOOKUP(D613,Hoja1!$A$3:$B$7,2,FALSE),\"\")","v":""},{"$f":"IFERROR(VLOOKUP(K613,Hoja1!$A$10:$B$12,2,FALSE),\"\")","v":""}]
[null,null,null,null,null,null,null,null,null,null,null,null,null,null,{"$f":"IFERROR(VLOOKUP(D614,Hoja1!$A$3:$B$7,2,FALSE),\"\")","v":""},{"$f":"IFERROR(VLOOKUP(K614,Hoja1!$A$10:$B$12,2,FALSE),\"\")","v":""}]
[null,null,null,null,null,null,null,null,null,null,null,null,null,null,{"$f":"IFERROR(VLOOKUP(D615,Hoja1!$A$3:$B$7,2,FALSE),\"\")","v":""},{"$f":"IFERROR(VLOOKUP(K615,Hoja1!$A$10:$B$12,2,FALSE),\"\")","v":""}]
[null,null,null,null,null,null,null,null,null,null,null,null,null,null,{"$f":"IFERROR(VLOOKUP(D616,Hoja1!$A$3:$B$7,2,FALSE),\"\")","v":""},{"$f":"IFERROR(VLOOKUP(K616,Hoja1!$A$10:$B$12,2,FALSE),\"\")","v":""}]
[null,null,null,null,null,null,null,null,null,null,null,null,null,null,{"$f":"IFERROR(VLOOKUP(D617,Hoja1!$A$3:$B$7,2,FALSE),\"\")","v":""},{"$f":"IFERROR(VLOOKUP(K617,Hoja1!$A$10:$B$12,2,FALSE),\"\")","v":""}]
[null,null,null,null,null,null,null,null,null,null,null,null,null,null,{"$f":"IFERROR(VLOOKUP(D618,Hoja1!$A$3:$B$7,2,FALSE),\"\")","v":""},{"$f":"IFERROR(VLOOKUP(K618,Hoja1!$A$10:$B$12,2,FALSE),\"\")","v":""}]
[null,null,null,null,null,null,null,null,null,null,null,null,null,null,{"$f":"IFERROR(VLOOKUP(D619,Hoja1!$A$3:$B$7,2,FALSE),\"\")","v":""},{"$f":"IFERROR(VLOOKUP(K619,Hoja1!$A$10:$B$12,2,FALSE),\"\")","v":""}]
[null,null,null,null,null,null,null,null,null,null,null,null,null,null,{"$f":"IFERROR(VLOOKUP(D620,Hoja1!$A$3:$B$7,2,FALSE),\"\")","v":""},{"$f":"IFERROR(VLOOKUP(K620,Hoja1!$A$10:$B$12,2,FALSE),\"\")","v":""}]
[null,null,null,null,null,null,null,null,null,null,null,null,null,null,{"$f":"IFERROR(VLOOKUP(D621,Hoja1!$A$3:$B$7,2,FALSE),\"\")","v":""},{"$f":"IFERROR(VLOOKUP(K621,Hoja1!$A$10:$B$12,2,FALSE),\"\")","v":""}]
[null,null,null,null,null,null,null,null,null,null,null,null,null,null,{"$f":"IFERROR(VLOOKUP(D622,Hoja1!$A$3:$B$7,2,FALSE),\"\")","v":""},{"$f":"IFERROR(VLOOKUP(K622,Hoja1!$A$10:$B$12,2,FALSE),\"\")","v":""}]
[null,null,null,null,null,null,null,null,null,null,null,null,null,null,{"$f":"IFERROR(VLOOKUP(D623,Hoja1!$A$3:$B$7,2,FALSE),\"\")","v":""},{"$f":"IFERROR(VLOOKUP(K623,Hoja1!$A$10:$B$12,2,FALSE),\"\")","v":""}]
[null,null,null,null,null,null,null,null,null,null,null,null,null,null,{"$f":"IFERROR(VLOOKUP(D624,Hoja1!$A$3:$B$7,2,FALSE),\"\")","v":""},{"$f":"IFERROR(VLOOKUP(K624,Hoja1!$A$10:$B$12,2,FALSE),\"\")","v":""}]
[null,null,null,null,null,null,null,null,null,null,null,null,null,null,{"$f":"IFERROR(VLOOKUP(D625,Hoja1!$A$3:$B$7,2,FALSE),\"\")","v":""},{"$f":"IFERROR(VLOOKUP(K625,Hoja1!$A$10:$B$12,2,FALSE),\"\")","v":""}]
[null,null,null,null,null,null,null,null,null,null,null,null,null,null,{"$f":"IFERROR(VLOOKUP(D626,Hoja1!$A$3:$B$7,2,FALSE),\"\")","v":""},{"$f":"IFERROR(VLOOKUP(K626,Hoja1!$A$10:$B$12,2,FALSE),\"\")","v":""}]
[null,null,null,null,null,null,null,null,null,null,null,null,null,null,{"$f":"IFERROR(VLOOKUP(D627,Hoja1!$A$3:$B$7,2,FALSE),\"\")","v":""},{"$f":"IFERROR(VLOOKUP(K627,Hoja1!$A$10:$B$12,2,FALSE),\"\")","v":""}]
[null,null,null,null,null,null,null,null,null,null,null,null,null,null,{"$f":"IFERROR(VLOOKUP(D628,Hoja1!$A$3:$B$7,2,FALSE),\"\")","v":""},{"$f":"IFERROR(VLOOKUP(K628,Hoja1!$A$10:$B$12,2,FALSE),\"\")","v":""}]
[null,null,null,null,null,null,null,null,null,null,null,null,null,null,{"$f":"IFERROR(VLOOKUP(D629,Hoja1!$A$3:$B$7,2,FALSE),\"\")","v":""},{"$f":"IFERROR(VLOOKUP(K629,Hoja1!$A$10:$B$12,2,FALSE),\"\")","v":""}]
[null,null,null,null,null,null,null,null,null,null,null,null,null,null,{"$f":"IFERROR(VLOOKUP(D630,Hoja1!$A$3:$B$7,2,FALSE),\"\")","v":""},{"$f":"IFERROR(VLOOKUP(K630,Hoja1!$A$10:$B$12,2,FALSE),\"\")","v":""}]
[null,null,null,null,null,null,null,null,null,null,null,null,null,null,{"$f":"IFERROR(VLOOKUP(D631,Hoja1!$A$3:$B$7,2,FALSE),\"\")","v":""},{"$f":"IFERROR(VLOOKUP(K631,Hoja1!$A$10:$B$12,2,FALSE),\"\")","v":""}]
[null,null,null,null,null,null,null,null,null,null,null,null,null,null,{"$f":"IFERROR(VLOOKUP(D632,Hoja1!$A$3:$B$7,2,FALSE),\"\")","v":""},{"$f":"IFERROR(VLOOKUP(K632,Hoja1!$A$10:$B$12,2,FALSE),\"\")","v":""}]
[null,null,null,null,null,null,null,null,null,null,null,null,null,null,{"$f":"IFERROR(VLOOKUP(D633,Hoja1!$A$3:$B$7,2,FALSE),\"\")","v":""},{"$f":"IFERROR(VLOOKUP(K633,Hoja1!$A$10:$B$12,2,FALSE),\"\")","v":""}]
[null,null,null,null,null,null,null,null,null,null,null,null,null,null,{"$f":"IFERROR(VLOOKUP(D634,Hoja1!$A$3:$B$7,2,FALSE),\"\")","v":""},{"$f":"IFERROR(VLOOKUP(K634,Hoja1!$A$10:$B$12,2,FALSE),\"\")","v":""}]
[null,null,null,null,null,null,null,null,null,null,null,null,null,null,{"$f":"IFERROR(VLOOKUP(D635,Hoja1!$A$3:$B$7,2,FALSE),\"\")","v":""},{"$f":"IFERROR(VLOOKUP(K635,Hoja1!$A$10:$B$12,2,FALSE),\"\")","v":""}]
[null,null,null,null,null,null,null,null,null,null,null,null,null,null,{"$f":"IFERROR(VLOOKUP(D636,Hoja1!$A$3:$B$7,2,FALSE),\"\")","v":""},{"$f":"IFERROR(VLOOKUP(K636,Hoja1!$A$10:$B$12,2,FALSE),\"\")","v":""}]
[null,null,null,null,null,null,null,null,null,null,null,null,null,null,{"$f":"IFERROR(VLOOKUP(D637,Hoja1!$A$3:$B$7,2,FALSE),\"\")","v":""},{"$f":"IFERROR(VLOOKUP(K637,Hoja1!$A$10:$B$12,2,FALSE),\"\")","v":""}]
[null,null,null,null,null,null,null,null,null,null,null,null,null,null,{"$f":"IFERROR(VLOOKUP(D638,Hoja1!$A$3:$B$7,2,FALSE),\"\")","v":""},{"$f":"IFERROR(VLOOKUP(K638,Hoja1!$A$10:$B$12,2,FALSE),\"\")","v":""}]
[null,null,null,null,null,null,null,null,null,null,null,null,null,null,{"$f":"IFERROR(VLOOKUP(D639,Hoja1!$A$3:$B$7,2,FALSE),\"\")","v":""},{"$f":"IFERROR(VLOOKUP(K639,Hoja1!$A$10:$B$12,2,FALSE),\"\")","v":""}]
[null,null,null,null,null,null,null,null,null,null,null,null,null,null,{"$f":"IFERROR(VLOOKUP(D640,Hoja1!$A$3:$B$7,2,FALSE),\"\")","v":""},{"$f":"IFERROR(VLOOKUP(K640,Hoja1!$A$10:$B$12,2,FALSE),\"\")","v":""}]
[null,null,null,null,null,null,null,null,null,null,null,null,null,null,{"$f":"IFERROR(VLOOKUP(D641,Hoja1!$A$3:$B$7,2,FALSE),\"\")","v":""},{"$f":"IFERROR(VLOOKUP(K641,Hoja1!$A$10:$B$12,2,FALSE),\"\")","v":""}]
[null,null,null,null,null,null,null,null,null,null,null,null,null,null,{"$f":"IFERROR(VLOOKUP(D642,Hoja1!$A$3:$B$7,2,FALSE),\"\")","v":""},{"$f":"IFERROR(VLOOKUP(K642,Hoja1!$A$10:$B$12,2,FALSE),\"\")","v":""}]
[null,null,null,null,null,null,null,null,null,null,null,null,null,null,{"$f":"IFERROR(VLOOKUP(D643,Hoja1!$A$3:$B$7,2,FALSE),\"\")","v":""},{"$f":"IFERROR(VLOOKUP(K643,Hoja1!$A$10:$B$12,2,FALSE),\"\")","v":""}]
[null,null,null,null,null,null,null,null,null,null,null,null,null,null,{"$f":"IFERROR(VLOOKUP(D644,Hoja1!$A$3:$B$7,2,FALSE),\"\")","v":""},{"$f":"IFERROR(VLOOKUP(K644,Hoja1!$A$10:$B$12,2,FALSE),\"\")","v":""}]
[null,null,null,null,null,null,null,null,null,null,null,null,null,null,{"$f":"IFERROR(VLOOKUP(D645,Hoja1!$A$3:$B$7,2,FALSE),\"\")","v":""},{"$f":"IFERROR(VLOOKUP(K645,Hoja1!$A$10:$B$12,2,FALSE),\"\")","v":""}]
[null,null,null,null,null,null,null,null,null,null,null,null,null,null,{"$f":"IFERROR(VLOOKUP(D646,Hoja1!$A$3:$B$7,2,FALSE),\"\")","v":""},{"$f":"IFERROR(VLOOKUP(K646,Hoja1!$A$10:$B$12,2,FALSE),\"\")","v":""}]
[null,null,null,null,null,null,null,null,null,null,null,null,null,null,{"$f":"IFERROR(VLOOKUP(D647,Hoja1!$A$3:$B$7,2,FALSE),\"\")","v":""},{"$f":"IFERROR(VLOOKUP(K647,Hoja1!$A$10:$B$12,2,FALSE),\"\")","v":""}]
[null,null,null,null,null,null,null,null,null,null,null,null,null,null,{"$f":"IFERROR(VLOOKUP(D648,Hoja1!$A$3:$B$7,2,FALSE),\"\")","v":""},{"$f":"IFERROR(VLOOKUP(K648,Hoja1!$A$10:$B$12,2,FALSE),\"\")","v":""}]
[null,null,null,null,null,null,null,null,null,null,null,null,null,null,{"$f":"IFERROR(VLOOKUP(D649,Hoja1!$A$3:$B$7,2,FALSE),\"\")","v":""},{"$f":"IFERROR(VLOOKUP(K649,Hoja1!$A$10:$B$12,2,FALSE),\"\")","v":""}]
[null,null,null,null,null,null,null,null,null,null,null,null,null,null,{"$f":"IFERROR(VLOOKUP(D650,Hoja1!$A$3:$B$7,2,FALSE),\"\")","v":""},{"$f":"IFERROR(VLOOKUP(K650,Hoja1!$A$10:$B$12,2,FALSE),\"\")","v":""}]
[null,null,null,null,null,null,null,null,null,null,null,null,null,null,{"$f":"IFERROR(VLOOKUP(D651,Hoja1!$A$3:$B$7,2,FALSE),\"\")","v":""},{"$f":"IFERROR(VLOOKUP(K651,Hoja1!$A$10:$B$12,2,FALSE),\"\")","v":""}]
[null,null,null,null,null,null,null,null,null,null,null,null,null,null,{"$f":"IFERROR(VLOOKUP(D652,Hoja1!$A$3:$B$7,2,FALSE),\"\")","v":""},{"$f":"IFERROR(VLOOKUP(K652,Hoja1!$A$10:$B$12,2,FALSE),\"\")","v":""}]
[null,null,null,null,null,null,null,null,null,null,null,null,null,null,{"$f":"IFERROR(VLOOKUP(D653,Hoja1!$A$3:$B$7,2,FALSE),\"\")","v":""},{"$f":"IFERROR(VLOOKUP(K653,Hoja1!$A$10:$B$12,2,FALSE),\"\")","v":""}]
[null,null,null,null,null,null,null,null,null,null,null,null,null,null,{"$f":"IFERROR(VLOOKUP(D654,Hoja1!$A$3:$B$7,2,FALSE),\"\")","v":""},{"$f":"IFERROR(VLOOKUP(K654,Hoja1!$A$10:$B$12,2,FALSE),\"\")","v":""}]
[null,null,null,null,null,null,null,null,null,null,null,null,null,null,{"$f":"IFERROR(VLOOKUP(D655,Hoja1!$A$3:$B$7,2,FALSE),\"\")","v":""},{"$f":"IFERROR(VLOOKUP(K655,Hoja1!$A$10:$B$12,2,FALSE),\"\")","v":""}]
[null,null,null,null,null,null,null,null,null,null,null,null,null,null,{"$f":"IFERROR(VLOOKUP(D656,Hoja1!$A$3:$B$7,2,FALSE),\"\")","v":""},{"$f":"IFERROR(VLOOKUP(K656,Hoja1!$A$10:$B$12,2,FALSE),\"\")","v":""}]
[null,null,null,null,null,null,null,null,null,null,null,null,null,null,{"$f":"IFERROR(VLOOKUP(D657,Hoja1!$A$3:$B$7,2,FALSE),\"\")","v":""},{"$f":"IFERROR(VLOOKUP(K657,Hoja1!$A$10:$B$12,2,FALSE),\"\")","v":""}]
[null,null,null,null,null,null,null,null,null,null,null,null,null,null,{"$f":"IFERROR(VLOOKUP(D658,Hoja1!$A$3:$B$7,2,FALSE),\"\")","v":""},{"$f":"IFERROR(VLOOKUP(K658,Hoja1!$A$10:$B$12,2,FALSE),\"\")","v":""}]
[null,null,null,null,null,null,null,null,null,null,null,null,null,null,{"$f":"IFERROR(VLOOKUP(D659,Hoja1!$A$3:$B$7,2,FALSE),\"\")","v":""},{"$f":"IFERROR(VLOOKUP(K659,Hoja1!$A$10:$B$12,2,FALSE),\"\")","v":""}]
[null,null,null,null,null,null,null,null,null,null,null,null,null,null,{"$f":"IFERROR(VLOOKUP(D660,Hoja1!$A$3:$B$7,2,FALSE),\"\")","v":""},{"$f":"IFERROR(VLOOKUP(K660,Hoja1!$A$10:$B$12,2,FALSE),\"\")","v":""}]
[null,null,null,null,null,null,null,null,null,null,null,null,null,null,{"$f":"IFERROR(VLOOKUP(D661,Hoja1!$A$3:$B$7,2,FALSE),\"\")","v":""},{"$f":"IFERROR(VLOOKUP(K661,Hoja1!$A$10:$B$12,2,FALSE),\"\")","v":""}]
[null,null,null,null,null,null,null,null,null,null,null,null,null,null,{"$f":"IFERROR(VLOOKUP(D662,Hoja1!$A$3:$B$7,2,FALSE),\"\")","v":""},{"$f":"IFERROR(VLOOKUP(K662,Hoja1!$A$10:$B$12,2,FALSE),\"\")","v":""}]
[null,null,null,null,null,null,null,null,null,null,null,null,null,null,{"$f":"IFERROR(VLOOKUP(D663,Hoja1!$A$3:$B$7,2,FALSE),\"\")","v":""},{"$f":"IFERROR(VLOOKUP(K663,Hoja1!$A$10:$B$12,2,FALSE),\"\")","v":""}]
[null,null,null,null,null,null,null,null,null,null,null,null,null,null,{"$f":"IFERROR(VLOOKUP(D664,Hoja1!$A$3:$B$7,2,FALSE),\"\")","v":""},{"$f":"IFERROR(VLOOKUP(K664,Hoja1!$A$10:$B$12,2,FALSE),\"\")","v":""}]
[null,null,null,null,null,null,null,null,null,null,null,null,null,null,{"$f":"IFERROR(VLOOKUP(D665,Hoja1!$A$3:$B$7,2,FALSE),\"\")","v":""},{"$f":"IFERROR(VLOOKUP(K665,Hoja1!$A$10:$B$12,2,FALSE),\"\")","v":""}]
[null,null,null,null,null,null,null,null,null,null,null,null,null,null,{"$f":"IFERROR(VLOOKUP(D666,Hoja1!$A$3:$B$7,2,FALSE),\"\")","v":""},{"$f":"IFERROR(VLOOKUP(K666,Hoja1!$A$10:$B$12,2,FALSE),\"\")","v":""}]
[null,null,null,null,null,null,null,null,null,null,null,null,null,null,{"$f":"IFERROR(VLOOKUP(D667,Hoja1!$A$3:$B$7,2,FALSE),\"\")","v":""},{"$f":"IFERROR(VLOOKUP(K667,Hoja1!$A$10:$B$12,2,FALSE),\"\")","v":""}]
[null,null,null,null,null,null,null,null,null,null,null,null,null,null,{"$f":"IFERROR(VLOOKUP(D668,Hoja1!$A$3:$B$7,2,FALSE),\"\")","v":""},{"$f":"IFERROR(VLOOKUP(K668,Hoja1!$A$10:$B$12,2,FALSE),\"\")","v":""}]
[null,null,null,null,null,null,null,null,null,null,null,null,null,null,{"$f":"IFERROR(VLOOKUP(D669,Hoja1!$A$3:$B$7,2,FALSE),\"\")","v":""},{"$f":"IFERROR(VLOOKUP(K669,Hoja1!$A$10:$B$12,2,FALSE),\"\")","v":""}]
[null,null,null,null,null,null,null,null,null,null,null,null,null,null,{"$f":"IFERROR(VLOOKUP(D670,Hoja1!$A$3:$B$7,2,FALSE),\"\")","v":""},{"$f":"IFERROR(VLOOKUP(K670,Hoja1!$A$10:$B$12,2,FALSE),\"\")","v":""}]
[null,null,null,null,null,null,null,null,null,null,null,null,null,null,{"$f":"IFERROR(VLOOKUP(D671,Hoja1!$A$3:$B$7,2,FALSE),\"\")","v":""},{"$f":"IFERROR(VLOOKUP(K671,Hoja1!$A$10:$B$12,2,FALSE),\"\")","v":""}]
[null,null,null,null,null,null,null,null,null,null,null,null,null,null,{"$f":"IFERROR(VLOOKUP(D672,Hoja1!$A$3:$B$7,2,FALSE),\"\")","v":""},{"$f":"IFERROR(VLOOKUP(K672,Hoja1!$A$10:$B$12,2,FALSE),\"\")","v":""}]
[null,null,null,null,null,null,null,null,null,null,null,null,null,null,{"$f":"IFERROR(VLOOKUP(D673,Hoja1!$A$3:$B$7,2,FALSE),\"\")","v":""},{"$f":"IFERROR(VLOOKUP(K673,Hoja1!$A$10:$B$12,2,FALSE),\"\")","v":""}]
[null,null,null,null,null,null,null,null,null,null,null,null,null,null,{"$f":"IFERROR(VLOOKUP(D674,Hoja1!$A$3:$B$7,2,FALSE),\"\")","v":""},{"$f":"IFERROR(VLOOKUP(K674,Hoja1!$A$10:$B$12,2,FALSE),\"\")","v":""}]
[null,null,null,null,null,null,null,null,null,null,null,null,null,null,{"$f":"IFERROR(VLOOKUP(D675,Hoja1!$A$3:$B$7,2,FALSE),\"\")","v":""},{"$f":"IFERROR(VLOOKUP(K675,Hoja1!$A$10:$B$12,2,FALSE),\"\")","v":""}]
[null,null,null,null,null,null,null,null,null,null,null,null,null,null,{"$f":"IFERROR(VLOOKUP(D676,Hoja1!$A$3:$B$7,2,FALSE),\"\")","v":""},{"$f":"IFERROR(VLOOKUP(K676,Hoja1!$A$10:$B$12,2,FALSE),\"\")","v":""}]
[null,null,null,null,null,null,null,null,null,null,null,null,null,null,{"$f":"IFERROR(VLOOKUP(D677,Hoja1!$A$3:$B$7,2,FALSE),\"\")","v":""},{"$f":"IFERROR(VLOOKUP(K677,Hoja1!$A$10:$B$12,2,FALSE),\"\")","v":""}]
[null,null,null,null,null,null,null,null,null,null,null,null,null,null,{"$f":"IFERROR(VLOOKUP(D678,Hoja1!$A$3:$B$7,2,FALSE),\"\")","v":""},{"$f":"IFERROR(VLOOKUP(K678,Hoja1!$A$10:$B$12,2,FALSE),\"\")","v":""}]
[null,null,null,null,null,null,null,null,null,null,null,null,null,null,{"$f":"IFERROR(VLOOKUP(D679,Hoja1!$A$3:$B$7,2,FALSE),\"\")","v":""},{"$f":"IFERROR(VLOOKUP(K679,Hoja1!$A$10:$B$12,2,FALSE),\"\")","v":""}]
[null,null,null,null,null,null,null,null,null,null,null,null,null,null,{"$f":"IFERROR(VLOOKUP(D680,Hoja1!$A$3:$B$7,2,FALSE),\"\")","v":""},{"$f":"IFERROR(VLOOKUP(K680,Hoja1!$A$10:$B$12,2,FALSE),\"\")","v":""}]
[null,null,null,null,null,null,null,null,null,null,null,null,null,null,{"$f":"IFERROR(VLOOKUP(D681,Hoja1!$A$3:$B$7,2,FALSE),\"\")","v":""},{"$f":"IFERROR(VLOOKUP(K681,Hoja1!$A$10:$B$12,2,FALSE),\"\")","v":""}]
[null,null,null,null,null,null,null,null,null,null,null,null,null,null,{"$f":"IFERROR(VLOOKUP(D682,Hoja1!$A$3:$B$7,2,FALSE),\"\")","v":""},{"$f":"IFERROR(VLOOKUP(K682,Hoja1!$A$10:$B$12,2,FALSE),\"\")","v":""}]
[null,null,null,null,null,null,null,null,null,null,null,null,null,null,{"$f":"IFERROR(VLOOKUP(D683,Hoja1!$A$3:$B$7,2,FALSE),\"\")","v":""},{"$f":"IFERROR(VLOOKUP(K683,Hoja1!$A$10:$B$12,2,FALSE),\"\")","v":""}]
[null,null,null,null,null,null,null,null,null,null,null,null,null,null,{"$f":"IFERROR(VLOOKUP(D684,Hoja1!$A$3:$B$7,2,FALSE),\"\")","v":""},{"$f":"IFERROR(VLOOKUP(K684,Hoja1!$A$10:$B$12,2,FALSE),\"\")","v":""}]
[null,null,null,null,null,null,null,null,null,null,null,null,null,null,{"$f":"IFERROR(VLOOKUP(D685,Hoja1!$A$3:$B$7,2,FALSE),\"\")","v":""},{"$f":"IFERROR(VLOOKUP(K685,Hoja1!$A$10:$B$12,2,FALSE),\"\")","v":""}]
[null,null,null,null,null,null,null,null,null,null,null,null,null,null,{"$f":"IFERROR(VLOOKUP(D686,Hoja1!$A$3:$B$7,2,FALSE),\"\")","v":""},{"$f":"IFERROR(VLOOKUP(K686,Hoja1!$A$10:$B$12,2,FALSE),\"\")","v":""}]
[null,null,null,null,null,null,null,null,null,null,null,null,null,null,{"$f":"IFERROR(VLOOKUP(D687,Hoja1!$A$3:$B$7,2,FALSE),\"\")","v":""},{"$f":"IFERROR(VLOOKUP(K687,Hoja1!$A$10:$B$12,2,FALSE),\"\")","v":""}]
[null,null,null,null,null,null,null,null,null,null,null,null,null,null,{"$f":"IFERROR(VLOOKUP(D688,Hoja1!$A$3:$B$7,2,FALSE),\"\")","v":""},{"$f":"IFERROR(VLOOKUP(K688,Hoja1!$A$10:$B$12,2,FALSE),\"\")","v":""}]
[null,null,null,null,null,null,null,null,null,null,null,null,null,null,{"$f":"IFERROR(VLOOKUP(D689,Hoja1!$A$3:$B$7,2,FALSE),\"\")","v":""},{"$f":"IFERROR(VLOOKUP(K689,Hoja1!$A$10:$B$12,2,FALSE),\"\")","v":""}]
[null,null,null,null,null,null,null,null,null,null,null,null,null,null,{"$f":"IFERROR(VLOOKUP(D690,Hoja1!$A$3:$B$7,2,FALSE),\"\")","v":""},{"$f":"IFERROR(VLOOKUP(K690,Hoja1!$A$10:$B$12,2,FALSE),\"\")","v":""}]
[null,null,null,null,null,null,null,null,null,null,null,null,null,null,{"$f":"IFERROR(VLOOKUP(D691,Hoja1!$A$3:$B$7,2,FALSE),\"\")","v":""},{"$f":"IFERROR(VLOOKUP(K691,Hoja1!$A$10:$B$12,2,FALSE),\"\")","v":""}]
[null,null,null,null,null,null,null,null,null,null,null,null,null,null,{"$f":"IFERROR(VLOOKUP(D692,Hoja1!$A$3:$B$7,2,FALSE),\"\")","v":""},{"$f":"IFERROR(VLOOKUP(K692,Hoja1!$A$10:$B$12,2,FALSE),\"\")","v":""}]
[null,null,null,null,null,null,null,null,null,null,null,null,null,null,{"$f":"IFERROR(VLOOKUP(D693,Hoja1!$A$3:$B$7,2,FALSE),\"\")","v":""},{"$f":"IFERROR(VLOOKUP(K693,Hoja1!$A$10:$B$12,2,FALSE),\"\")","v":""}]
[null,null,null,null,null,null,null,null,null,null,null,null,null,null,{"$f":"IFERROR(VLOOKUP(D694,Hoja1!$A$3:$B$7,2,FALSE),\"\")","v":""},{"$f":"IFERROR(VLOOKUP(K694,Hoja1!$A$10:$B$12,2,FALSE),\"\")","v":""}]
[null,null,null,null,null,null,null,null,null,null,null,null,null,null,{"$f":"IFERROR(VLOOKUP(D695,Hoja1!$A$3:$B$7,2,FALSE),\"\")","v":""},{"$f":"IFERROR(VLOOKUP(K695,Hoja1!$A$10:$B$12,2,FALSE),\"\")","v":""}]
[null,null,null,null,null,null,null,null,null,null,null,null,null,null,{"$f":"IFERROR(VLOOKUP(D696,Hoja1!$A$3:$B$7,2,FALSE),\"\")","v":""},{"$f":"IFERROR(VLOOKUP(K696,Hoja1!$A$10:$B$12,2,FALSE),\"\")","v":""}]
[null,null,null,null,null,null,null,null,null,null,null,null,null,null,{"$f":"IFERROR(VLOOKUP(D697,Hoja1!$A$3:$B$7,2,FALSE),\"\")","v":""},{"$f":"IFERROR(VLOOKUP(K697,Hoja1!$A$10:$B$12,2,FALSE),\"\")","v":""}]
[null,null,null,null,null,null,null,null,null,null,null,null,null,null,{"$f":"IFERROR(VLOOKUP(D698,Hoja1!$A$3:$B$7,2,FALSE),\"\")","v":""},{"$f":"IFERROR(VLOOKUP(K698,Hoja1!$A$10:$B$12,2,FALSE),\"\")","v":""}]
[null,null,null,null,null,null,null,null,null,null,null,null,null,null,{"$f":"IFERROR(VLOOKUP(D699,Hoja1!$A$3:$B$7,2,FALSE),\"\")","v":""},{"$f":"IFERROR(VLOOKUP(K699,Hoja1!$A$10:$B$12,2,FALSE),\"\")","v":""}]
[null,null,null,null,null,null,null,null,null,null,null,null,null,null,{"$f":"IFERROR(VLOOKUP(D700,Hoja1!$A$3:$B$7,2,FALSE),\"\")","v":""},{"$f":"IFERROR(VLOOKUP(K700,Hoja1!$A$10:$B$12,2,FALSE),\"\")","v":""}]
[null,null,null,null,null,null,null,null,null,null,null,null,null,null,{"$f":"IFERROR(VLOOKUP(D701,Hoja1!$A$3:$B$7,2,FALSE),\"\")","v":""},{"$f":"IFERROR(VLOOKUP(K701,Hoja1!$A$10:$B$12,2,FALSE),\"\")","v":""}]
[null,null,null,null,null,null,null,null,null,null,null,null,null,null,{"$f":"IFERROR(VLOOKUP(D702,Hoja1!$A$3:$B$7,2,FALSE),\"\")","v":""},{"$f":"IFERROR(VLOOKUP(K702,Hoja1!$A$10:$B$12,2,FALSE),\"\")","v":""}]
[null,null,null,null,null,null,null,null,null,null,null,null,null,null,{"$f":"IFERROR(VLOOKUP(D703,Hoja1!$A$3:$B$7,2,FALSE),\"\")","v":""},{"$f":"IFERROR(VLOOKUP(K703,Hoja1!$A$10:$B$12,2,FALSE),\"\")","v":""}]
[null,null,null,null,null,null,null,null,null,null,null,null,null,null,{"$f":"IFERROR(VLOOKUP(D704,Hoja1!$A$3:$B$7,2,FALSE),\"\")","v":""},{"$f":"IFERROR(VLOOKUP(K704,Hoja1!$A$10:$B$12,2,FALSE),\"\")","v":""}]
[null,null,null,null,null,null,null,null,null,null,null,null,null,null,{"$f":"IFERROR(VLOOKUP(D705,Hoja1!$A$3:$B$7,2,FALSE),\"\")","v":""},{"$f":"IFERROR(VLOOKUP(K705,Hoja1!$A$10:$B$12,2,FALSE),\"\")","v":""}]
[null,null,null,null,null,null,null,null,null,null,null,null,null,null,{"$f":"IFERROR(VLOOKUP(D706,Hoja1!$A$3:$B$7,2,FALSE),\"\")","v":""},{"$f":"IFERROR(VLOOKUP(K706,Hoja1!$A$10:$B$12,2,FALSE),\"\")","v":""}]
[null,null,null,null,null,null,null,null,null,null,null,null,null,null,{"$f":"IFERROR(VLOOKUP(D707,Hoja1!$A$3:$B$7,2,FALSE),\"\")","v":""},{"$f":"IFERROR(VLOOKUP(K707,Hoja1!$A$10:$B$12,2,FALSE),\"\")","v":""}]
[null,null,null,null,null,null,null,null,null,null,null,null,null,null,{"$f":"IFERROR(VLOOKUP(D708,Hoja1!$A$3:$B$7,2,FALSE),\"\")","v":""},{"$f":"IFERROR(VLOOKUP(K708,Hoja1!$A$10:$B$12,2,FALSE),\"\")","v":""}]
[null,null,null,null,null,null,null,null,null,null,null,null,null,null,{"$f":"IFERROR(VLOOKUP(D709,Hoja1!$A$3:$B$7,2,FALSE),\"\")","v":""},{"$f":"IFERROR(VLOOKUP(K709,Hoja1!$A$10:$B$12,2,FALSE),\"\")","v":""}]
[null,null,null,null,null,null,null,null,null,null,null,null,null,null,{"$f":"IFERROR(VLOOKUP(D710,Hoja1!$A$3:$B$7,2,FALSE),\"\")","v":""},{"$f":"IFERROR(VLOOKUP(K710,Hoja1!$A$10:$B$12,2,FALSE),\"\")","v":""}]
[null,null,null,null,null,null,null,null,null,null,null,null,null,null,{"$f":"IFERROR(VLOOKUP(D711,Hoja1!$A$3:$B$7,2,FALSE),\"\")","v":""},{"$f":"IFERROR(VLOOKUP(K711,Hoja1!$A$10:$B$12,2,FALSE),\"\")","v":""}]
[null,null,null,null,null,null,null,null,null,null,null,null,null,null,{"$f":"IFERROR(VLOOKUP(D712,Hoja1!$A$3:$B$7,2,FALSE),\"\")","v":""},{"$f":"IFERROR(VLOOKUP(K712,Hoja1!$A$10:$B$12,2,FALSE),\"\")","v":""}]
[null,null,null,null,null,null,null,null,null,null,null,null,null,null,{"$f":"IFERROR(VLOOKUP(D713,Hoja1!$A$3:$B$7,2,FALSE),\"\")","v":""},{"$f":"IFERROR(VLOOKUP(K713,Hoja1!$A$10:$B$12,2,FALSE),\"\")","v":""}]
[null,null,null,null,null,null,null,null,null,null,null,null,null,null,{"$f":"IFERROR(VLOOKUP(D714,Hoja1!$A$3:$B$7,2,FALSE),\"\")","v":""},{"$f":"IFERROR(VLOOKUP(K714,Hoja1!$A$10:$B$12,2,FALSE),\"\")","v":""}]
[null,null,null,null,null,null,null,null,null,null,null,null,null,null,{"$f":"IFERROR(VLOOKUP(D715,Hoja1!$A$3:$B$7,2,FALSE),\"\")","v":""},{"$f":"IFERROR(VLOOKUP(K715,Hoja1!$A$10:$B$12,2,FALSE),\"\")","v":""}]
[null,null,null,null,null,null,null,null,null,null,null,null,null,null,{"$f":"IFERROR(VLOOKUP(D716,Hoja1!$A$3:$B$7,2,FALSE),\"\")","v":""},{"$f":"IFERROR(VLOOKUP(K716,Hoja1!$A$10:$B$12,2,FALSE),\"\")","v":""}]
[null,null,null,null,null,null,null,null,null,null,null,null,null,null,{"$f":"IFERROR(VLOOKUP(D717,Hoja1!$A$3:$B$7,2,FALSE),\"\")","v":""},{"$f":"IFERROR(VLOOKUP(K717,Hoja1!$A$10:$B$12,2,FALSE),\"\")","v":""}]
[null,null,null,null,null,null,null,null,null,null,null,null,null,null,{"$f":"IFERROR(VLOOKUP(D718,Hoja1!$A$3:$B$7,2,FALSE),\"\")","v":""},{"$f":"IFERROR(VLOOKUP(K718,Hoja1!$A$10:$B$12,2,FALSE),\"\")","v":""}]
[null,null,null,null,null,null,null,null,null,null,null,null,null,null,{"$f":"IFERROR(VLOOKUP(D719,Hoja1!$A$3:$B$7,2,FALSE),\"\")","v":""},{"$f":"IFERROR(VLOOKUP(K719,Hoja1!$A$10:$B$12,2,FALSE),\"\")","v":""}]
[null,null,null,null,null,null,null,null,null,null,null,null,null,null,{"$f":"IFERROR(VLOOKUP(D720,Hoja1!$A$3:$B$7,2,FALSE),\"\")","v":""},{"$f":"IFERROR(VLOOKUP(K720,Hoja1!$A$10:$B$12,2,FALSE),\"\")","v":""}]
[null,null,null,null,null,null,null,null,null,null,null,null,null,null,{"$f":"IFERROR(VLOOKUP(D721,Hoja1!$A$3:$B$7,2,FALSE),\"\")","v":""},{"$f":"IFERROR(VLOOKUP(K721,Hoja1!$A$10:$B$12,2,FALSE),\"\")","v":""}]
[null,null,null,null,null,null,null,null,null,null,null,null,null,null,{"$f":"IFERROR(VLOOKUP(D722,Hoja1!$A$3:$B$7,2,FALSE),\"\")","v":""},{"$f":"IFERROR(VLOOKUP(K722,Hoja1!$A$10:$B$12,2,FALSE),\"\")","v":""}]
[null,null,null,null,null,null,null,null,null,null,null,null,null,null,{"$f":"IFERROR(VLOOKUP(D723,Hoja1!$A$3:$B$7,2,FALSE),\"\")","v":""},{"$f":"IFERROR(VLOOKUP(K723,Hoja1!$A$10:$B$12,2,FALSE),\"\")","v":""}]
[null,null,null,null,null,null,null,null,null,null,null,null,null,null,{"$f":"IFERROR(VLOOKUP(D724,Hoja1!$A$3:$B$7,2,FALSE),\"\")","v":""},{"$f":"IFERROR(VLOOKUP(K724,Hoja1!$A$10:$B$12,2,FALSE),\"\")","v":""}]
[null,null,null,null,null,null,null,null,null,null,null,null,null,null,{"$f":"IFERROR(VLOOKUP(D725,Hoja1!$A$3:$B$7,2,FALSE),\"\")","v":""},{"$f":"IFERROR(VLOOKUP(K725,Hoja1!$A$10:$B$12,2,FALSE),\"\")","v":""}]
[null,null,null,null,null,null,null,null,null,null,null,null,null,null,{"$f":"IFERROR(VLOOKUP(D726,Hoja1!$A$3:$B$7,2,FALSE),\"\")","v":""},{"$f":"IFERROR(VLOOKUP(K726,Hoja1!$A$10:$B$12,2,FALSE),\"\")","v":""}]
[null,null,null,null,null,null,null,null,null,null,null,null,null,null,{"$f":"IFERROR(VLOOKUP(D727,Hoja1!$A$3:$B$7,2,FALSE),\"\")","v":""},{"$f":"IFERROR(VLOOKUP(K727,Hoja1!$A$10:$B$12,2,FALSE),\"\")","v":""}]
[null,null,null,null,null,null,null,null,null,null,null,null,null,null,{"$f":"IFERROR(VLOOKUP(D728,Hoja1!$A$3:$B$7,2,FALSE),\"\")","v":""},{"$f":"IFERROR(VLOOKUP(K728,Hoja1!$A$10:$B$12,2,FALSE),\"\")","v":""}]
[null,null,null,null,null,null,null,null,null,null,null,null,null,null,{"$f":"IFERROR(VLOOKUP(D729,Hoja1!$A$3:$B$7,2,FALSE),\"\")","v":""},{"$f":"IFERROR(VLOOKUP(K729,Hoja1!$A$10:$B$12,2,FALSE),\"\")","v":""}]
[null,null,null,null,null,null,null,null,null,null,null,null,null,null,{"$f":"IFERROR(VLOOKUP(D730,Hoja1!$A$3:$B$7,2,FALSE),\"\")","v":""},{"$f":"IFERROR(VLOOKUP(K730,Hoja1!$A$10:$B$12,2,FALSE),\"\")","v":""}]
[null,null,null,null,null,null,null,null,null,null,null,null,null,null,{"$f":"IFERROR(VLOOKUP(D731,Hoja1!$A$3:$B$7,2,FALSE),\"\")","v":""},{"$f":"IFERROR(VLOOKUP(K731,Hoja1!$A$10:$B$12,2,FALSE),\"\")","v":""}]
[null,null,null,null,null,null,null,null,null,null,null,null,null,null,{"$f":"IFERROR(VLOOKUP(D732,Hoja1!$A$3:$B$7,2,FALSE),\"\")","v":""},{"$f":"IFERROR(VLOOKUP(K732,Hoja1!$A$10:$B$12,2,FALSE),\"\")","v":""}]
[null,null,null,null,null,null,null,null,null,null,null,null,null,null,{"$f":"IFERROR(VLOOKUP(D733,Hoja1!$A$3:$B$7,2,FALSE),\"\")","v":""},{"$f":"IFERROR(VLOOKUP(K733,Hoja1!$A$10:$B$12,2,FALSE),\"\")","v":""}]
[null,null,null,null,null,null,null,null,null,null,null,null,null,null,{"$f":"IFERROR(VLOOKUP(D734,Hoja1!$A$3:$B$7,2,FALSE),\"\")","v":""},{"$f":"IFERROR(VLOOKUP(K734,Hoja1!$A$10:$B$12,2,FALSE),\"\")","v":""}]
[null,null,null,null,null,null,null,null,null,null,null,null,null,null,{"$f":"IFERROR(VLOOKUP(D735,Hoja1!$A$3:$B$7,2,FALSE),\"\")","v":""},{"$f":"IFERROR(VLOOKUP(K735,Hoja1!$A$10:$B$12,2,FALSE),\"\")","v":""}]
[null,null,null,null,null,null,null,null,null,null,null,null,null,null,{"$f":"IFERROR(VLOOKUP(D736,Hoja1!$A$3:$B$7,2,FALSE),\"\")","v":""},{"$f":"IFERROR(VLOOKUP(K736,Hoja1!$A$10:$B$12,2,FALSE),\"\")","v":""}]
[null,null,null,null,null,null,null,null,null,null,null,null,null,null,{"$f":"IFERROR(VLOOKUP(D737,Hoja1!$A$3:$B$7,2,FALSE),\"\")","v":""},{"$f":"IFERROR(VLOOKUP(K737,Hoja1!$A$10:$B$12,2,FALSE),\"\")","v":""}]
[null,null,null,null,null,null,null,null,null,null,null,null,null,null,{"$f":"IFERROR(VLOOKUP(D738,Hoja1!$A$3:$B$7,2,FALSE),\"\")","v":""},{"$f":"IFERROR(VLOOKUP(K738,Hoja1!$A$10:$B$12,2,FALSE),\"\")","v":""}]
[null,null,null,null,null,null,null,null,null,null,null,null,null,null,{"$f":"IFERROR(VLOOKUP(D739,Hoja1!$A$3:$B$7,2,FALSE),\"\")","v":""},{"$f":"IFERROR(VLOOKUP(K739,Hoja1!$A$10:$B$12,2,FALSE),\"\")","v":""}]
[null,null,null,null,null,null,null,null,null,null,null,null,null,null,{"$f":"IFERROR(VLOOKUP(D740,Hoja1!$A$3:$B$7,2,FALSE),\"\")","v":""},{"$f":"IFERROR(VLOOKUP(K740,Hoja1!$A$10:$B$12,2,FALSE),\"\")","v":""}]
[null,null,null,null,null,null,null,null,null,null,null,null,null,null,{"$f":"IFERROR(VLOOKUP(D741,Hoja1!$A$3:$B$7,2,FALSE),\"\")","v":""},{"$f":"IFERROR(VLOOKUP(K741,Hoja1!$A$10:$B$12,2,FALSE),\"\")","v":""}]
[null,null,null,null,null,null,null,null,null,null,null,null,null,null,{"$f":"IFERROR(VLOOKUP(D742,Hoja1!$A$3:$B$7,2,FALSE),\"\")","v":""},{"$f":"IFERROR(VLOOKUP(K742,Hoja1!$A$10:$B$12,2,FALSE),\"\")","v":""}]
[null,null,null,null,null,null,null,null,null,null,null,null,null,null,{"$f":"IFERROR(VLOOKUP(D743,Hoja1!$A$3:$B$7,2,FALSE),\"\")","v":""},{"$f":"IFERROR(VLOOKUP(K743,Hoja1!$A$10:$B$12,2,FALSE),\"\")","v":""}]
[null,null,null,null,null,null,null,null,null,null,null,null,null,null,{"$f":"IFERROR(VLOOKUP(D744,Hoja1!$A$3:$B$7,2,FALSE),\"\")","v":""},{"$f":"IFERROR(VLOOKUP(K744,Hoja1!$A$10:$B$12,2,FALSE),\"\")","v":""}]
[null,null,null,null,null,null,null,null,null,null,null,null,null,null,{"$f":"IFERROR(VLOOKUP(D745,Hoja1!$A$3:$B$7,2,FALSE),\"\")","v":""},{"$f":"IFERROR(VLOOKUP(K745,Hoja1!$A$10:$B$12,2,FALSE),\"\")","v":""}]
[null,null,null,null,null,null,null,null,null,null,null,null,null,null,{"$f":"IFERROR(VLOOKUP(D746,Hoja1!$A$3:$B$7,2,FALSE),\"\")","v":""},{"$f":"IFERROR(VLOOKUP(K746,Hoja1!$A$10:$B$12,2,FALSE),\"\")","v":""}]
[null,null,null,null,null,null,null,null,null,null,null,null,null,null,{"$f":"IFERROR(VLOOKUP(D747,Hoja1!$A$3:$B$7,2,FALSE),\"\")","v":""},{"$f":"IFERROR(VLOOKUP(K747,Hoja1!$A$10:$B$12,2,FALSE),\"\")","v":""}]
[null,null,null,null,null,null,null,null,null,null,null,null,null,null,{"$f":"IFERROR(VLOOKUP(D748,Hoja1!$A$3:$B$7,2,FALSE),\"\")","v":""},{"$f":"IFERROR(VLOOKUP(K748,Hoja1!$A$10:$B$12,2,FALSE),\"\")","v":""}]
[null,null,null,null,null,null,null,null,null,null,null,null,null,null,{"$f":"IFERROR(VLOOKUP(D749,Hoja1!$A$3:$B$7,2,FALSE),\"\")","v":""},{"$f":"IFERROR(VLOOKUP(K749,Hoja1!$A$10:$B$12,2,FALSE),\"\")","v":""}]
[null,null,null,null,null,null,null,null,null,null,null,null,null,null,{"$f":"IFERROR(VLOOKUP(D750,Hoja1!$A$3:$B$7,2,FALSE),\"\")","v":""},{"$f":"IFERROR(VLOOKUP(K750,Hoja1!$A$10:$B$12,2,FALSE),\"\")","v":""}]
[null,null,null,null,null,null,null,null,null,null,null,null,null,null,{"$f":"IFERROR(VLOOKUP(D751,Hoja1!$A$3:$B$7,2,FALSE),\"\")","v":""},{"$f":"IFERROR(VLOOKUP(K751,Hoja1!$A$10:$B$12,2,FALSE),\"\")","v":""}]
[null,null,null,null,null,null,null,null,null,null,null,null,null,null,{"$f":"IFERROR(VLOOKUP(D752,Hoja1!$A$3:$B$7,2,FALSE),\"\")","v":""},{"$f":"IFERROR(VLOOKUP(K752,Hoja1!$A$10:$B$12,2,FALSE),\"\")","v":""}]
[null,null,null,null,null,null,null,null,null,null,null,null,null,null,{"$f":"IFERROR(VLOOKUP(D753,Hoja1!$A$3:$B$7,2,FALSE),\"\")","v":""},{"$f":"IFERROR(VLOOKUP(K753,Hoja1!$A$10:$B$12,2,FALSE),\"\")","v":""}]
[null,null,null,null,null,null,null,null,null,null,null,null,null,null,{"$f":"IFERROR(VLOOKUP(D754,Hoja1!$A$3:$B$7,2,FALSE),\"\")","v":""},{"$f":"IFERROR(VLOOKUP(K754,Hoja1!$A$10:$B$12,2,FALSE),\"\")","v":""}]
[null,null,null,null,null,null,null,null,null,null,null,null,null,null,{"$f":"IFERROR(VLOOKUP(D755,Hoja1!$A$3:$B$7,2,FALSE),\"\")","v":""},{"$f":"IFERROR(VLOOKUP(K755,Hoja1!$A$10:$B$12,2,FALSE),\"\")","v":""}]
[null,null,null,null,null,null,null,null,null,null,null,null,null,null,{"$f":"IFERROR(VLOOKUP(D756,Hoja1!$A$3:$B$7,2,FALSE),\"\")","v":""},{"$f":"IFERROR(VLOOKUP(K756,Hoja1!$A$10:$B$12,2,FALSE),\"\")","v":""}]
[null,null,null,null,null,null,null,null,null,null,null,null,null,null,{"$f":"IFERROR(VLOOKUP(D757,Hoja1!$A$3:$B$7,2,FALSE),\"\")","v":""},{"$f":"IFERROR(VLOOKUP(K757,Hoja1!$A$10:$B$12,2,FALSE),\"\")","v":""}]
[null,null,null,null,null,null,null,null,null,null,null,null,null,null,{"$f":"IFERROR(VLOOKUP(D758,Hoja1!$A$3:$B$7,2,FALSE),\"\")","v":""},{"$f":"IFERROR(VLOOKUP(K758,Hoja1!$A$10:$B$12,2,FALSE),\"\")","v":""}]
[null,null,null,null,null,null,null,null,null,null,null,null,null,null,{"$f":"IFERROR(VLOOKUP(D759,Hoja1!$A$3:$B$7,2,FALSE),\"\")","v":""},{"$f":"IFERROR(VLOOKUP(K759,Hoja1!$A$10:$B$12,2,FALSE),\"\")","v":""}]
[null,null,null,null,null,null,null,null,null,null,null,null,null,null,{"$f":"IFERROR(VLOOKUP(D760,Hoja1!$A$3:$B$7,2,FALSE),\"\")","v":""},{"$f":"IFERROR(VLOOKUP(K760,Hoja1!$A$10:$B$12,2,FALSE),\"\")","v":""}]
[null,null,null,null,null,null,null,null,null,null,null,null,null,null,{"$f":"IFERROR(VLOOKUP(D761,Hoja1!$A$3:$B$7,2,FALSE),\"\")","v":""},{"$f":"IFERROR(VLOOKUP(K761,Hoja1!$A$10:$B$12,2,FALSE),\"\")","v":""}]
[null,null,null,null,null,null,null,null,null,null,null,null,null,null,{"$f":"IFERROR(VLOOKUP(D762,Hoja1!$A$3:$B$7,2,FALSE),\"\")","v":""},{"$f":"IFERROR(VLOOKUP(K762,Hoja1!$A$10:$B$12,2,FALSE),\"\")","v":""}]
[null,null,null,null,null,null,null,null,null,null,null,null,null,null,{"$f":"IFERROR(VLOOKUP(D763,Hoja1!$A$3:$B$7,2,FALSE),\"\")","v":""},{"$f":"IFERROR(VLOOKUP(K763,Hoja1!$A$10:$B$12,2,FALSE),\"\")","v":""}]
[null,null,null,null,null,null,null,null,null,null,null,null,null,null,{"$f":"IFERROR(VLOOKUP(D764,Hoja1!$A$3:$B$7,2,FALSE),\"\")","v":""},{"$f":"IFERROR(VLOOKUP(K764,Hoja1!$A$10:$B$12,2,FALSE),\"\")","v":""}]
[null,null,null,null,null,null,null,null,null,null,null,null,null,null,{"$f":"IFERROR(VLOOKUP(D765,Hoja1!$A$3:$B$7,2,FALSE),\"\")","v":""},{"$f":"IFERROR(VLOOKUP(K765,Hoja1!$A$10:$B$12,2,FALSE),\"\")","v":""}]
[null,null,null,null,null,null,null,null,null,null,null,null,null,null,{"$f":"IFERROR(VLOOKUP(D766,Hoja1!$A$3:$B$7,2,FALSE),\"\")","v":""},{"$f":"IFERROR(VLOOKUP(K766,Hoja1!$A$10:$B$12,2,FALSE),\"\")","v":""}]
[null,null,null,null,null,null,null,null,null,null,null,null,null,null,{"$f":"IFERROR(VLOOKUP(D767,Hoja1!$A$3:$B$7,2,FALSE),\"\")","v":""},{"$f":"IFERROR(VLOOKUP(K767,Hoja1!$A$10:$B$12,2,FALSE),\"\")","v":""}]
[null,null,null,null,null,null,null,null,null,null,null,null,null,null,{"$f":"IFERROR(VLOOKUP(D768,Hoja1!$A$3:$B$7,2,FALSE),\"\")","v":""},{"$f":"IFERROR(VLOOKUP(K768,Hoja1!$A$10:$B$12,2,FALSE),\"\")","v":""}]
[null,null,null,null,null,null,null,null,null,null,null,null,null,null,{"$f":"IFERROR(VLOOKUP(D769,Hoja1!$A$3:$B$7,2,FALSE),\"\")","v":""},{"$f":"IFERROR(VLOOKUP(K769,Hoja1!$A$10:$B$12,2,FALSE),\"\")","v":""}]
[null,null,null,null,null,null,null,null,null,null,null,null,null,null,{"$f":"IFERROR(VLOOKUP(D770,Hoja1!$A$3:$B$7,2,FALSE),\"\")","v":""},{"$f":"IFERROR(VLOOKUP(K770,Hoja1!$A$10:$B$12,2,FALSE),\"\")","v":""}]
[null,null,null,null,null,null,null,null,null,null,null,null,null,null,{"$f":"IFERROR(VLOOKUP(D771,Hoja1!$A$3:$B$7,2,FALSE),\"\")","v":""},{"$f":"IFERROR(VLOOKUP(K771,Hoja1!$A$10:$B$12,2,FALSE),\"\")","v":""}]
[null,null,null,null,null,null,null,null,null,null,null,null,null,null,{"$f":"IFERROR(VLOOKUP(D772,Hoja1!$A$3:$B$7,2,FALSE),\"\")","v":""},{"$f":"IFERROR(VLOOKUP(K772,Hoja1!$A$10:$B$12,2,FALSE),\"\")","v":""}]
[null,null,null,null,null,null,null,null,null,null,null,null,null,null,{"$f":"IFERROR(VLOOKUP(D773,Hoja1!$A$3:$B$7,2,FALSE),\"\")","v":""},{"$f":"IFERROR(VLOOKUP(K773,Hoja1!$A$10:$B$12,2,FALSE),\"\")","v":""}]
[null,null,null,null,null,null,null,null,null,null,null,null,null,null,{"$f":"IFERROR(VLOOKUP(D774,Hoja1!$A$3:$B$7,2,FALSE),\"\")","v":""},{"$f":"IFERROR(VLOOKUP(K774,Hoja1!$A$10:$B$12,2,FALSE),\"\")","v":""}]
[null,null,null,null,null,null,null,null,null,null,null,null,null,null,{"$f":"IFERROR(VLOOKUP(D775,Hoja1!$A$3:$B$7,2,FALSE),\"\")","v":""},{"$f":"IFERROR(VLOOKUP(K775,Hoja1!$A$10:$B$12,2,FALSE),\"\")","v":""}]
[null,null,null,null,null,null,null,null,null,null,null,null,null,null,{"$f":"IFERROR(VLOOKUP(D776,Hoja1!$A$3:$B$7,2,FALSE),\"\")","v":""},{"$f":"IFERROR(VLOOKUP(K776,Hoja1!$A$10:$B$12,2,FALSE),\"\")","v":""}]
[null,null,null,null,null,null,null,null,null,null,null,null,null,null,{"$f":"IFERROR(VLOOKUP(D777,Hoja1!$A$3:$B$7,2,FALSE),\"\")","v":""},{"$f":"IFERROR(VLOOKUP(K777,Hoja1!$A$10:$B$12,2,FALSE),\"\")","v":""}]
[null,null,null,null,null,null,null,null,null,null,null,null,null,null,{"$f":"IFERROR(VLOOKUP(D778,Hoja1!$A$3:$B$7,2,FALSE),\"\")","v":""},{"$f":"IFERROR(VLOOKUP(K778,Hoja1!$A$10:$B$12,2,FALSE),\"\")","v":""}]
[null,null,null,null,null,null,null,null,null,null,null,null,null,null,{"$f":"IFERROR(VLOOKUP(D779,Hoja1!$A$3:$B$7,2,FALSE),\"\")","v":""},{"$f":"IFERROR(VLOOKUP(K779,Hoja1!$A$10:$B$12,2,FALSE),\"\")","v":""}]
[null,null,null,null,null,null,null,null,null,null,null,null,null,null,{"$f":"IFERROR(VLOOKUP(D780,Hoja1!$A$3:$B$7,2,FALSE),\"\")","v":""},{"$f":"IFERROR(VLOOKUP(K780,Hoja1!$A$10:$B$12,2,FALSE),\"\")","v":""}]
[null,null,null,null,null,null,null,null,null,null,null,null,null,null,{"$f":"IFERROR(VLOOKUP(D781,Hoja1!$A$3:$B$7,2,FALSE),\"\")","v":""},{"$f":"IFERROR(VLOOKUP(K781,Hoja1!$A$10:$B$12,2,FALSE),\"\")","v":""}]
[null,null,null,null,null,null,null,null,null,null,null,null,null,null,{"$f":"IFERROR(VLOOKUP(D782,Hoja1!$A$3:$B$7,2,FALSE),\"\")","v":""},{"$f":"IFERROR(VLOOKUP(K782,Hoja1!$A$10:$B$12,2,FALSE),\"\")","v":""}]
[null,null,null,null,null,null,null,null,null,null,null,null,null,null,{"$f":"IFERROR(VLOOKUP(D783,Hoja1!$A$3:$B$7,2,FALSE),\"\")","v":""},{"$f":"IFERROR(VLOOKUP(K783,Hoja1!$A$10:$B$12,2,FALSE),\"\")","v":""}]
[null,null,null,null,null,null,null,null,null,null,null,null,null,null,{"$f":"IFERROR(VLOOKUP(D784,Hoja1!$A$3:$B$7,2,FALSE),\"\")","v":""},{"$f":"IFERROR(VLOOKUP(K784,Hoja1!$A$10:$B$12,2,FALSE),\"\")","v":""}]
[null,null,null,null,null,null,null,null,null,null,null,null,null,null,{"$f":"IFERROR(VLOOKUP(D785,Hoja1!$A$3:$B$7,2,FALSE),\"\")","v":""},{"$f":"IFERROR(VLOOKUP(K785,Hoja1!$A$10:$B$12,2,FALSE),\"\")","v":""}]
[null,null,null,null,null,null,null,null,null,null,null,null,null,null,{"$f":"IFERROR(VLOOKUP(D786,Hoja1!$A$3:$B$7,2,FALSE),\"\")","v":""},{"$f":"IFERROR(VLOOKUP(K786,Hoja1!$A$10:$B$12,2,FALSE),\"\")","v":""}]
[null,null,null,null,null,null,null,null,null,null,null,null,null,null,{"$f":"IFERROR(VLOOKUP(D787,Hoja1!$A$3:$B$7,2,FALSE),\"\")","v":""},{"$f":"IFERROR(VLOOKUP(K787,Hoja1!$A$10:$B$12,2,FALSE),\"\")","v":""}]
[null,null,null,null,null,null,null,null,null,null,null,null,null,null,{"$f":"IFERROR(VLOOKUP(D788,Hoja1!$A$3:$B$7,2,FALSE),\"\")","v":""},{"$f":"IFERROR(VLOOKUP(K788,Hoja1!$A$10:$B$12,2,FALSE),\"\")","v":""}]
[null,null,null,null,null,null,null,null,null,null,null,null,null,null,{"$f":"IFERROR(VLOOKUP(D789,Hoja1!$A$3:$B$7,2,FALSE),\"\")","v":""},{"$f":"IFERROR(VLOOKUP(K789,Hoja1!$A$10:$B$12,2,FALSE),\"\")","v":""}]
[null,null,null,null,null,null,null,null,null,null,null,null,null,null,{"$f":"IFERROR(VLOOKUP(D790,Hoja1!$A$3:$B$7,2,FALSE),\"\")","v":""},{"$f":"IFERROR(VLOOKUP(K790,Hoja1!$A$10:$B$12,2,FALSE),\"\")","v":""}]
[null,null,null,null,null,null,null,null,null,null,null,null,null,null,{"$f":"IFERROR(VLOOKUP(D791,Hoja1!$A$3:$B$7,2,FALSE),\"\")","v":""},{"$f":"IFERROR(VLOOKUP(K791,Hoja1!$A$10:$B$12,2,FALSE),\"\")","v":""}]
[null,null,null,null,null,null,null,null,null,null,null,null,null,null,{"$f":"IFERROR(VLOOKUP(D792,Hoja1!$A$3:$B$7,2,FALSE),\"\")","v":""},{"$f":"IFERROR(VLOOKUP(K792,Hoja1!$A$10:$B$12,2,FALSE),\"\")","v":""}]
[null,null,null,null,null,null,null,null,null,null,null,null,null,null,{"$f":"IFERROR(VLOOKUP(D793,Hoja1!$A$3:$B$7,2,FALSE),\"\")","v":""},{"$f":"IFERROR(VLOOKUP(K793,Hoja1!$A$10:$B$12,2,FALSE),\"\")","v":""}]
[null,null,null,null,null,null,null,null,null,null,null,null,null,null,{"$f":"IFERROR(VLOOKUP(D794,Hoja1!$A$3:$B$7,2,FALSE),\"\")","v":""},{"$f":"IFERROR(VLOOKUP(K794,Hoja1!$A$10:$B$12,2,FALSE),\"\")","v":""}]
[null,null,null,null,null,null,null,null,null,null,null,null,null,null,{"$f":"IFERROR(VLOOKUP(D795,Hoja1!$A$3:$B$7,2,FALSE),\"\")","v":""},{"$f":"IFERROR(VLOOKUP(K795,Hoja1!$A$10:$B$12,2,FALSE),\"\")","v":""}]
[null,null,null,null,null,null,null,null,null,null,null,null,null,null,{"$f":"IFERROR(VLOOKUP(D796,Hoja1!$A$3:$B$7,2,FALSE),\"\")","v":""},{"$f":"IFERROR(VLOOKUP(K796,Hoja1!$A$10:$B$12,2,FALSE),\"\")","v":""}]
[null,null,null,null,null,null,null,null,null,null,null,null,null,null,{"$f":"IFERROR(VLOOKUP(D797,Hoja1!$A$3:$B$7,2,FALSE),\"\")","v":""},{"$f":"IFERROR(VLOOKUP(K797,Hoja1!$A$10:$B$12,2,FALSE),\"\")","v":""}]
[null,null,null,null,null,null,null,null,null,null,null,null,null,null,{"$f":"IFERROR(VLOOKUP(D798,Hoja1!$A$3:$B$7,2,FALSE),\"\")","v":""},{"$f":"IFERROR(VLOOKUP(K798,Hoja1!$A$10:$B$12,2,FALSE),\"\")","v":""}]
[null,null,null,null,null,null,null,null,null,null,null,null,null,null,{"$f":"IFERROR(VLOOKUP(D799,Hoja1!$A$3:$B$7,2,FALSE),\"\")","v":""},{"$f":"IFERROR(VLOOKUP(K799,Hoja1!$A$10:$B$12,2,FALSE),\"\")","v":""}]
[null,null,null,null,null,null,null,null,null,null,null,null,null,null,{"$f":"IFERROR(VLOOKUP(D800,Hoja1!$A$3:$B$7,2,FALSE),\"\")","v":""},{"$f":"IFERROR(VLOOKUP(K800,Hoja1!$A$10:$B$12,2,FALSE),\"\")","v":""}]
[null,null,null,null,null,null,null,null,null,null,null,null,null,null,{"$f":"IFERROR(VLOOKUP(D801,Hoja1!$A$3:$B$7,2,FALSE),\"\")","v":""},{"$f":"IFERROR(VLOOKUP(K801,Hoja1!$A$10:$B$12,2,FALSE),\"\")","v":""}]
[null,null,null,null,null,null,null,null,null,null,null,null,null,null,{"$f":"IFERROR(VLOOKUP(D802,Hoja1!$A$3:$B$7,2,FALSE),\"\")","v":""},{"$f":"IFERROR(VLOOKUP(K802,Hoja1!$A$10:$B$12,2,FALSE),\"\")","v":""}]
[null,null,null,null,null,null,null,null,null,null,null,null,null,null,{"$f":"IFERROR(VLOOKUP(D803,Hoja1!$A$3:$B$7,2,FALSE),\"\")","v":""},{"$f":"IFERROR(VLOOKUP(K803,Hoja1!$A$10:$B$12,2,FALSE),\"\")","v":""}]
[null,null,null,null,null,null,null,null,null,null,null,null,null,null,{"$f":"IFERROR(VLOOKUP(D804,Hoja1!$A$3:$B$7,2,FALSE),\"\")","v":""},{"$f":"IFERROR(VLOOKUP(K804,Hoja1!$A$10:$B$12,2,FALSE),\"\")","v":""}]
[null,null,null,null,null,null,null,null,null,null,null,null,null,null,{"$f":"IFERROR(VLOOKUP(D805,Hoja1!$A$3:$B$7,2,FALSE),\"\")","v":""},{"$f":"IFERROR(VLOOKUP(K805,Hoja1!$A$10:$B$12,2,FALSE),\"\")","v":""}]
[null,null,null,null,null,null,null,null,null,null,null,null,null,null,{"$f":"IFERROR(VLOOKUP(D806,Hoja1!$A$3:$B$7,2,FALSE),\"\")","v":""},{"$f":"IFERROR(VLOOKUP(K806,Hoja1!$A$10:$B$12,2,FALSE),\"\")","v":""}]
[null,null,null,null,null,null,null,null,null,null,null,null,null,null,{"$f":"IFERROR(VLOOKUP(D807,Hoja1!$A$3:$B$7,2,FALSE),\"\")","v":""},{"$f":"IFERROR(VLOOKUP(K807,Hoja1!$A$10:$B$12,2,FALSE),\"\")","v":""}]
[null,null,null,null,null,null,null,null,null,null,null,null,null,null,{"$f":"IFERROR(VLOOKUP(D808,Hoja1!$A$3:$B$7,2,FALSE),\"\")","v":""},{"$f":"IFERROR(VLOOKUP(K808,Hoja1!$A$10:$B$12,2,FALSE),\"\")","v":""}]
[null,null,null,null,null,null,null,null,null,null,null,null,null,null,{"$f":"IFERROR(VLOOKUP(D809,Hoja1!$A$3:$B$7,2,FALSE),\"\")","v":""},{"$f":"IFERROR(VLOOKUP(K809,Hoja1!$A$10:$B$12,2,FALSE),\"\")","v":""}]
[null,null,null,null,null,null,null,null,null,null,null,null,null,null,{"$f":"IFERROR(VLOOKUP(D810,Hoja1!$A$3:$B$7,2,FALSE),\"\")","v":""},{"$f":"IFERROR(VLOOKUP(K810,Hoja1!$A$10:$B$12,2,FALSE),\"\")","v":""}]
[null,null,null,null,null,null,null,null,null,null,null,null,null,null,{"$f":"IFERROR(VLOOKUP(D811,Hoja1!$A$3:$B$7,2,FALSE),\"\")","v":""},{"$f":"IFERROR(VLOOKUP(K811,Hoja1!$A$10:$B$12,2,FALSE),\"\")","v":""}]
[null,null,null,null,null,null,null,null,null,null,null,null,null,null,{"$f":"IFERROR(VLOOKUP(D812,Hoja1!$A$3:$B$7,2,FALSE),\"\")","v":""},{"$f":"IFERROR(VLOOKUP(K812,Hoja1!$A$10:$B$12,2,FALSE),\"\")","v":""}]
[null,null,null,null,null,null,null,null,null,null,null,null,null,null,{"$f":"IFERROR(VLOOKUP(D813,Hoja1!$A$3:$B$7,2,FALSE),\"\")","v":""},{"$f":"IFERROR(VLOOKUP(K813,Hoja1!$A$10:$B$12,2,FALSE),\"\")","v":""}]
[null,null,null,null,null,null,null,null,null,null,null,null,null,null,{"$f":"IFERROR(VLOOKUP(D814,Hoja1!$A$3:$B$7,2,FALSE),\"\")","v":""},{"$f":"IFERROR(VLOOKUP(K814,Hoja1!$A$10:$B$12,2,FALSE),\"\")","v":""}]
[null,null,null,null,null,null,null,null,null,null,null,null,null,null,{"$f":"IFERROR(VLOOKUP(D815,Hoja1!$A$3:$B$7,2,FALSE),\"\")","v":""},{"$f":"IFERROR(VLOOKUP(K815,Hoja1!$A$10:$B$12,2,FALSE),\"\")","v":""}]
[null,null,null,null,null,null,null,null,null,null,null,null,null,null,{"$f":"IFERROR(VLOOKUP(D816,Hoja1!$A$3:$B$7,2,FALSE),\"\")","v":""},{"$f":"IFERROR(VLOOKUP(K816,Hoja1!$A$10:$B$12,2,FALSE),\"\")","v":""}]
[null,null,null,null,null,null,null,null,null,null,null,null,null,null,{"$f":"IFERROR(VLOOKUP(D817,Hoja1!$A$3:$B$7,2,FALSE),\"\")","v":""},{"$f":"IFERROR(VLOOKUP(K817,Hoja1!$A$10:$B$12,2,FALSE),\"\")","v":""}]
[null,null,null,null,null,null,null,null,null,null,null,null,null,null,{"$f":"IFERROR(VLOOKUP(D818,Hoja1!$A$3:$B$7,2,FALSE),\"\")","v":""},{"$f":"IFERROR(VLOOKUP(K818,Hoja1!$A$10:$B$12,2,FALSE),\"\")","v":""}]
[null,null,null,null,null,null,null,null,null,null,null,null,null,null,{"$f":"IFERROR(VLOOKUP(D819,Hoja1!$A$3:$B$7,2,FALSE),\"\")","v":""},{"$f":"IFERROR(VLOOKUP(K819,Hoja1!$A$10:$B$12,2,FALSE),\"\")","v":""}]
[null,null,null,null,null,null,null,null,null,null,null,null,null,null,{"$f":"IFERROR(VLOOKUP(D820,Hoja1!$A$3:$B$7,2,FALSE),\"\")","v":""},{"$f":"IFERROR(VLOOKUP(K820,Hoja1!$A$10:$B$12,2,FALSE),\"\")","v":""}]
[null,null,null,null,null,null,null,null,null,null,null,null,null,null,{"$f":"IFERROR(VLOOKUP(D821,Hoja1!$A$3:$B$7,2,FALSE),\"\")","v":""},{"$f":"IFERROR(VLOOKUP(K821,Hoja1!$A$10:$B$12,2,FALSE),\"\")","v":""}]
[null,null,null,null,null,null,null,null,null,null,null,null,null,null,{"$f":"IFERROR(VLOOKUP(D822,Hoja1!$A$3:$B$7,2,FALSE),\"\")","v":""},{"$f":"IFERROR(VLOOKUP(K822,Hoja1!$A$10:$B$12,2,FALSE),\"\")","v":""}]
[null,null,null,null,null,null,null,null,null,null,null,null,null,null,{"$f":"IFERROR(VLOOKUP(D823,Hoja1!$A$3:$B$7,2,FALSE),\"\")","v":""},{"$f":"IFERROR(VLOOKUP(K823,Hoja1!$A$10:$B$12,2,FALSE),\"\")","v":""}]
[null,null,null,null,null,null,null,null,null,null,null,null,null,null,{"$f":"IFERROR(VLOOKUP(D824,Hoja1!$A$3:$B$7,2,FALSE),\"\")","v":""},{"$f":"IFERROR(VLOOKUP(K824,Hoja1!$A$10:$B$12,2,FALSE),\"\")","v":""}]
[null,null,null,null,null,null,null,null,null,null,null,null,null,null,{"$f":"IFERROR(VLOOKUP(D825,Hoja1!$A$3:$B$7,2,FALSE),\"\")","v":""},{"$f":"IFERROR(VLOOKUP(K825,Hoja1!$A$10:$B$12,2,FALSE),\"\")","v":""}]
[null,null,null,null,null,null,null,null,null,null,null,null,null,null,{"$f":"IFERROR(VLOOKUP(D826,Hoja1!$A$3:$B$7,2,FALSE),\"\")","v":""},{"$f":"IFERROR(VLOOKUP(K826,Hoja1!$A$10:$B$12,2,FALSE),\"\")","v":""}]
[null,null,null,null,null,null,null,null,null,null,null,null,null,null,{"$f":"IFERROR(VLOOKUP(D827,Hoja1!$A$3:$B$7,2,FALSE),\"\")","v":""},{"$f":"IFERROR(VLOOKUP(K827,Hoja1!$A$10:$B$12,2,FALSE),\"\")","v":""}]
[null,null,null,null,null,null,null,null,null,null,null,null,null,null,{"$f":"IFERROR(VLOOKUP(D828,Hoja1!$A$3:$B$7,2,FALSE),\"\")","v":""},{"$f":"IFERROR(VLOOKUP(K828,Hoja1!$A$10:$B$12,2,FALSE),\"\")","v":""}]
[null,null,null,null,null,null,null,null,null,null,null,null,null,null,{"$f":"IFERROR(VLOOKUP(D829,Hoja1!$A$3:$B$7,2,FALSE),\"\")","v":""},{"$f":"IFERROR(VLOOKUP(K829,Hoja1!$A$10:$B$12,2,FALSE),\"\")","v":""}]
[null,null,null,null,null,null,null,null,null,null,null,null,null,null,{"$f":"IFERROR(VLOOKUP(D830,Hoja1!$A$3:$B$7,2,FALSE),\"\")","v":""},{"$f":"IFERROR(VLOOKUP(K830,Hoja1!$A$10:$B$12,2,FALSE),\"\")","v":""}]
[null,null,null,null,null,null,null,null,null,null,null,null,null,null,{"$f":"IFERROR(VLOOKUP(D831,Hoja1!$A$3:$B$7,2,FALSE),\"\")","v":""},{"$f":"IFERROR(VLOOKUP(K831,Hoja1!$A$10:$B$12,2,FALSE),\"\")","v":""}]
[null,null,null,null,null,null,null,null,null,null,null,null,null,null,{"$f":"IFERROR(VLOOKUP(D832,Hoja1!$A$3:$B$7,2,FALSE),\"\")","v":""},{"$f":"IFERROR(VLOOKUP(K832,Hoja1!$A$10:$B$12,2,FALSE),\"\")","v":""}]
[null,null,null,null,null,null,null,null,null,null,null,null,null,null,{"$f":"IFERROR(VLOOKUP(D833,Hoja1!$A$3:$B$7,2,FALSE),\"\")","v":""},{"$f":"IFERROR(VLOOKUP(K833,Hoja1!$A$10:$B$12,2,FALSE),\"\")","v":""}]
[null,null,null,null,null,null,null,null,null,null,null,null,null,null,{"$f":"IFERROR(VLOOKUP(D834,Hoja1!$A$3:$B$7,2,FALSE),\"\")","v":""},{"$f":"IFERROR(VLOOKUP(K834,Hoja1!$A$10:$B$12,2,FALSE),\"\")","v":""}]
[null,null,null,null,null,null,null,null,null,null,null,null,null,null,{"$f":"IFERROR(VLOOKUP(D835,Hoja1!$A$3:$B$7,2,FALSE),\"\")","v":""},{"$f":"IFERROR(VLOOKUP(K835,Hoja1!$A$10:$B$12,2,FALSE),\"\")","v":""}]
[null,null,null,null,null,null,null,null,null,null,null,null,null,null,{"$f":"IFERROR(VLOOKUP(D836,Hoja1!$A$3:$B$7,2,FALSE),\"\")","v":""},{"$f":"IFERROR(VLOOKUP(K836,Hoja1!$A$10:$B$12,2,FALSE),\"\")","v":""}]
[null,null,null,null,null,null,null,null,null,null,null,null,null,null,{"$f":"IFERROR(VLOOKUP(D837,Hoja1!$A$3:$B$7,2,FALSE),\"\")","v":""},{"$f":"IFERROR(VLOOKUP(K837,Hoja1!$A$10:$B$12,2,FALSE),\"\")","v":""}]
[null,null,null,null,null,null,null,null,null,null,null,null,null,null,{"$f":"IFERROR(VLOOKUP(D838,Hoja1!$A$3:$B$7,2,FALSE),\"\")","v":""},{"$f":"IFERROR(VLOOKUP(K838,Hoja1!$A$10:$B$12,2,FALSE),\"\")","v":""}]
[null,null,null,null,null,null,null,null,null,null,null,null,null,null,{"$f":"IFERROR(VLOOKUP(D839,Hoja1!$A$3:$B$7,2,FALSE),\"\")","v":""},{"$f":"IFERROR(VLOOKUP(K839,Hoja1!$A$10:$B$12,2,FALSE),\"\")","v":""}]
[null,null,null,null,null,null,null,null,null,null,null,null,null,null,{"$f":"IFERROR(VLOOKUP(D840,Hoja1!$A$3:$B$7,2,FALSE),\"\")","v":""},{"$f":"IFERROR(VLOOKUP(K840,Hoja1!$A$10:$B$12,2,FALSE),\"\")","v":""}]
[null,null,null,null,null,null,null,null,null,null,null,null,null,null,{"$f":"IFERROR(VLOOKUP(D841,Hoja1!$A$3:$B$7,2,FALSE),\"\")","v":""},{"$f":"IFERROR(VLOOKUP(K841,Hoja1!$A$10:$B$12,2,FALSE),\"\")","v":""}]
[null,null,null,null,null,null,null,null,null,null,null,null,null,null,{"$f":"IFERROR(VLOOKUP(D842,Hoja1!$A$3:$B$7,2,FALSE),\"\")","v":""},{"$f":"IFERROR(VLOOKUP(K842,Hoja1!$A$10:$B$12,2,FALSE),\"\")","v":""}]
[null,null,null,null,null,null,null,null,null,null,null,null,null,null,{"$f":"IFERROR(VLOOKUP(D843,Hoja1!$A$3:$B$7,2,FALSE),\"\")","v":""},{"$f":"IFERROR(VLOOKUP(K843,Hoja1!$A$10:$B$12,2,FALSE),\"\")","v":""}]
[null,null,null,null,null,null,null,null,null,null,null,null,null,null,{"$f":"IFERROR(VLOOKUP(D844,Hoja1!$A$3:$B$7,2,FALSE),\"\")","v":""},{"$f":"IFERROR(VLOOKUP(K844,Hoja1!$A$10:$B$12,2,FALSE),\"\")","v":""}]
[null,null,null,null,null,null,null,null,null,null,null,null,null,null,{"$f":"IFERROR(VLOOKUP(D845,Hoja1!$A$3:$B$7,2,FALSE),\"\")","v":""},{"$f":"IFERROR(VLOOKUP(K845,Hoja1!$A$10:$B$12,2,FALSE),\"\")","v":""}]
[null,null,null,null,null,null,null,null,null,null,null,null,null,null,{"$f":"IFERROR(VLOOKUP(D846,Hoja1!$A$3:$B$7,2,FALSE),\"\")","v":""},{"$f":"IFERROR(VLOOKUP(K846,Hoja1!$A$10:$B$12,2,FALSE),\"\")","v":""}]
[null,null,null,null,null,null,null,null,null,null,null,null,null,null,{"$f":"IFERROR(VLOOKUP(D847,Hoja1!$A$3:$B$7,2,FALSE),\"\")","v":""},{"$f":"IFERROR(VLOOKUP(K847,Hoja1!$A$10:$B$12,2,FALSE),\"\")","v":""}]
[null,null,null,null,null,null,null,null,null,null,null,null,null,null,{"$f":"IFERROR(VLOOKUP(D848,Hoja1!$A$3:$B$7,2,FALSE),\"\")","v":""},{"$f":"IFERROR(VLOOKUP(K848,Hoja1!$A$10:$B$12,2,FALSE),\"\")","v":""}]
[null,null,null,null,null,null,null,null,null,null,null,null,null,null,{"$f":"IFERROR(VLOOKUP(D849,Hoja1!$A$3:$B$7,2,FALSE),\"\")","v":""},{"$f":"IFERROR(VLOOKUP(K849,Hoja1!$A$10:$B$12,2,FALSE),\"\")","v":""}]
[null,null,null,null,null,null,null,null,null,null,null,null,null,null,{"$f":"IFERROR(VLOOKUP(D850,Hoja1!$A$3:$B$7,2,FALSE),\"\")","v":""},{"$f":"IFERROR(VLOOKUP(K850,Hoja1!$A$10:$B$12,2,FALSE),\"\")","v":""}]
[null,null,null,null,null,null,null,null,null,null,null,null,null,null,{"$f":"IFERROR(VLOOKUP(D851,Hoja1!$A$3:$B$7,2,FALSE),\"\")","v":""},{"$f":"IFERROR(VLOOKUP(K851,Hoja1!$A$10:$B$12,2,FALSE),\"\")","v":""}]
[null,null,null,null,null,null,null,null,null,null,null,null,null,null,{"$f":"IFERROR(VLOOKUP(D852,Hoja1!$A$3:$B$7,2,FALSE),\"\")","v":""},{"$f":"IFERROR(VLOOKUP(K852,Hoja1!$A$10:$B$12,2,FALSE),\"\")","v":""}]
[null,null,null,null,null,null,null,null,null,null,null,null,null,null,{"$f":"IFERROR(VLOOKUP(D853,Hoja1!$A$3:$B$7,2,FALSE),\"\")","v":""},{"$f":"IFERROR(VLOOKUP(K853,Hoja1!$A$10:$B$12,2,FALSE),\"\")","v":""}]
[null,null,null,null,null,null,null,null,null,null,null,null,null,null,{"$f":"IFERROR(VLOOKUP(D854,Hoja1!$A$3:$B$7,2,FALSE),\"\")","v":""},{"$f":"IFERROR(VLOOKUP(K854,Hoja1!$A$10:$B$12,2,FALSE),\"\")","v":""}]
[null,null,null,null,null,null,null,null,null,null,null,null,null,null,{"$f":"IFERROR(VLOOKUP(D855,Hoja1!$A$3:$B$7,2,FALSE),\"\")","v":""},{"$f":"IFERROR(VLOOKUP(K855,Hoja1!$A$10:$B$12,2,FALSE),\"\")","v":""}]
[null,null,null,null,null,null,null,null,null,null,null,null,null,null,{"$f":"IFERROR(VLOOKUP(D856,Hoja1!$A$3:$B$7,2,FALSE),\"\")","v":""},{"$f":"IFERROR(VLOOKUP(K856,Hoja1!$A$10:$B$12,2,FALSE),\"\")","v":""}]
[null,null,null,null,null,null,null,null,null,null,null,null,null,null,{"$f":"IFERROR(VLOOKUP(D857,Hoja1!$A$3:$B$7,2,FALSE),\"\")","v":""},{"$f":"IFERROR(VLOOKUP(K857,Hoja1!$A$10:$B$12,2,FALSE),\"\")","v":""}]
[null,null,null,null,null,null,null,null,null,null,null,null,null,null,{"$f":"IFERROR(VLOOKUP(D858,Hoja1!$A$3:$B$7,2,FALSE),\"\")","v":""},{"$f":"IFERROR(VLOOKUP(K858,Hoja1!$A$10:$B$12,2,FALSE),\"\")","v":""}]
[null,null,null,null,null,null,null,null,null,null,null,null,null,null,{"$f":"IFERROR(VLOOKUP(D859,Hoja1!$A$3:$B$7,2,FALSE),\"\")","v":""},{"$f":"IFERROR(VLOOKUP(K859,Hoja1!$A$10:$B$12,2,FALSE),\"\")","v":""}]
[null,null,null,null,null,null,null,null,null,null,null,null,null,null,{"$f":"IFERROR(VLOOKUP(D860,Hoja1!$A$3:$B$7,2,FALSE),\"\")","v":""},{"$f":"IFERROR(VLOOKUP(K860,Hoja1!$A$10:$B$12,2,FALSE),\"\")","v":""}]
[null,null,null,null,null,null,null,null,null,null,null,null,null,null,{"$f":"IFERROR(VLOOKUP(D861,Hoja1!$A$3:$B$7,2,FALSE),\"\")","v":""},{"$f":"IFERROR(VLOOKUP(K861,Hoja1!$A$10:$B$12,2,FALSE),\"\")","v":""}]
[null,null,null,null,null,null,null,null,null,null,null,null,null,null,{"$f":"IFERROR(VLOOKUP(D862,Hoja1!$A$3:$B$7,2,FALSE),\"\")","v":""},{"$f":"IFERROR(VLOOKUP(K862,Hoja1!$A$10:$B$12,2,FALSE),\"\")","v":""}]
[null,null,null,null,null,null,null,null,null,null,null,null,null,null,{"$f":"IFERROR(VLOOKUP(D863,Hoja1!$A$3:$B$7,2,FALSE),\"\")","v":""},{"$f":"IFERROR(VLOOKUP(K863,Hoja1!$A$10:$B$12,2,FALSE),\"\")","v":""}]
[null,null,null,null,null,null,null,null,null,null,null,null,null,null,{"$f":"IFERROR(VLOOKUP(D864,Hoja1!$A$3:$B$7,2,FALSE),\"\")","v":""},{"$f":"IFERROR(VLOOKUP(K864,Hoja1!$A$10:$B$12,2,FALSE),\"\")","v":""}]
[null,null,null,null,null,null,null,null,null,null,null,null,null,null,{"$f":"IFERROR(VLOOKUP(D865,Hoja1!$A$3:$B$7,2,FALSE),\"\")","v":""},{"$f":"IFERROR(VLOOKUP(K865,Hoja1!$A$10:$B$12,2,FALSE),\"\")","v":""}]
[null,null,null,null,null,null,null,null,null,null,null,null,null,null,{"$f":"IFERROR(VLOOKUP(D866,Hoja1!$A$3:$B$7,2,FALSE),\"\")","v":""},{"$f":"IFERROR(VLOOKUP(K866,Hoja1!$A$10:$B$12,2,FALSE),\"\")","v":""}]
[null,null,null,null,null,null,null,null,null,null,null,null,null,null,{"$f":"IFERROR(VLOOKUP(D867,Hoja1!$A$3:$B$7,2,FALSE),\"\")","v":""},{"$f":"IFERROR(VLOOKUP(K867,Hoja1!$A$10:$B$12,2,FALSE),\"\")","v":""}]
[null,null,null,null,null,null,null,null,null,null,null,null,null,null,{"$f":"IFERROR(VLOOKUP(D868,Hoja1!$A$3:$B$7,2,FALSE),\"\")","v":""},{"$f":"IFERROR(VLOOKUP(K868,Hoja1!$A$10:$B$12,2,FALSE),\"\")","v":""}]
[null,null,null,null,null,null,null,null,null,null,null,null,null,null,{"$f":"IFERROR(VLOOKUP(D869,Hoja1!$A$3:$B$7,2,FALSE),\"\")","v":""},{"$f":"IFERROR(VLOOKUP(K869,Hoja1!$A$10:$B$12,2,FALSE),\"\")","v":""}]
[null,null,null,null,null,null,null,null,null,null,null,null,null,null,{"$f":"IFERROR(VLOOKUP(D870,Hoja1!$A$3:$B$7,2,FALSE),\"\")","v":""},{"$f":"IFERROR(VLOOKUP(K870,Hoja1!$A$10:$B$12,2,FALSE),\"\")","v":""}]
[null,null,null,null,null,null,null,null,null,null,null,null,null,null,{"$f":"IFERROR(VLOOKUP(D871,Hoja1!$A$3:$B$7,2,FALSE),\"\")","v":""},{"$f":"IFERROR(VLOOKUP(K871,Hoja1!$A$10:$B$12,2,FALSE),\"\")","v":""}]
[null,null,null,null,null,null,null,null,null,null,null,null,null,null,{"$f":"IFERROR(VLOOKUP(D872,Hoja1!$A$3:$B$7,2,FALSE),\"\")","v":""},{"$f":"IFERROR(VLOOKUP(K872,Hoja1!$A$10:$B$12,2,FALSE),\"\")","v":""}]
[null,null,null,null,null,null,null,null,null,null,null,null,null,null,{"$f":"IFERROR(VLOOKUP(D873,Hoja1!$A$3:$B$7,2,FALSE),\"\")","v":""},{"$f":"IFERROR(VLOOKUP(K873,Hoja1!$A$10:$B$12,2,FALSE),\"\")","v":""}]
[null,null,null,null,null,null,null,null,null,null,null,null,null,null,{"$f":"IFERROR(VLOOKUP(D874,Hoja1!$A$3:$B$7,2,FALSE),\"\")","v":""},{"$f":"IFERROR(VLOOKUP(K874,Hoja1!$A$10:$B$12,2,FALSE),\"\")","v":""}]
[null,null,null,null,null,null,null,null,null,null,null,null,null,null,{"$f":"IFERROR(VLOOKUP(D875,Hoja1!$A$3:$B$7,2,FALSE),\"\")","v":""},{"$f":"IFERROR(VLOOKUP(K875,Hoja1!$A$10:$B$12,2,FALSE),\"\")","v":""}]
[null,null,null,null,null,null,null,null,null,null,null,null,null,null,{"$f":"IFERROR(VLOOKUP(D876,Hoja1!$A$3:$B$7,2,FALSE),\"\")","v":""},{"$f":"IFERROR(VLOOKUP(K876,Hoja1!$A$10:$B$12,2,FALSE),\"\")","v":""}]
[null,null,null,null,null,null,null,null,null,null,null,null,null,null,{"$f":"IFERROR(VLOOKUP(D877,Hoja1!$A$3:$B$7,2,FALSE),\"\")","v":""},{"$f":"IFERROR(VLOOKUP(K877,Hoja1!$A$10:$B$12,2,FALSE),\"\")","v":""}]
[null,null,null,null,null,null,null,null,null,null,null,null,null,null,{"$f":"IFERROR(VLOOKUP(D878,Hoja1!$A$3:$B$7,2,FALSE),\"\")","v":""},{"$f":"IFERROR(VLOOKUP(K878,Hoja1!$A$10:$B$12,2,FALSE),\"\")","v":""}]
[null,null,null,null,null,null,null,null,null,null,null,null,null,null,{"$f":"IFERROR(VLOOKUP(D879,Hoja1!$A$3:$B$7,2,FALSE),\"\")","v":""},{"$f":"IFERROR(VLOOKUP(K879,Hoja1!$A$10:$B$12,2,FALSE),\"\")","v":""}]
[null,null,null,null,null,null,null,null,null,null,null,null,null,null,{"$f":"IFERROR(VLOOKUP(D880,Hoja1!$A$3:$B$7,2,FALSE),\"\")","v":""},{"$f":"IFERROR(VLOOKUP(K880,Hoja1!$A$10:$B$12,2,FALSE),\"\")","v":""}]
[null,null,null,null,null,null,null,null,null,null,null,null,null,null,{"$f":"IFERROR(VLOOKUP(D881,Hoja1!$A$3:$B$7,2,FALSE),\"\")","v":""},{"$f":"IFERROR(VLOOKUP(K881,Hoja1!$A$10:$B$12,2,FALSE),\"\")","v":""}]
[null,null,null,null,null,null,null,null,null,null,null,null,null,null,{"$f":"IFERROR(VLOOKUP(D882,Hoja1!$A$3:$B$7,2,FALSE),\"\")","v":""},{"$f":"IFERROR(VLOOKUP(K882,Hoja1!$A$10:$B$12,2,FALSE),\"\")","v":""}]
[null,null,null,null,null,null,null,null,null,null,null,null,null,null,{"$f":"IFERROR(VLOOKUP(D883,Hoja1!$A$3:$B$7,2,FALSE),\"\")","v":""},{"$f":"IFERROR(VLOOKUP(K883,Hoja1!$A$10:$B$12,2,FALSE),\"\")","v":""}]
[null,null,null,null,null,null,null,null,null,null,null,null,null,null,{"$f":"IFERROR(VLOOKUP(D884,Hoja1!$A$3:$B$7,2,FALSE),\"\")","v":""},{"$f":"IFERROR(VLOOKUP(K884,Hoja1!$A$10:$B$12,2,FALSE),\"\")","v":""}]
[null,null,null,null,null,null,null,null,null,null,null,null,null,null,{"$f":"IFERROR(VLOOKUP(D885,Hoja1!$A$3:$B$7,2,FALSE),\"\")","v":""},{"$f":"IFERROR(VLOOKUP(K885,Hoja1!$A$10:$B$12,2,FALSE),\"\")","v":""}]
[null,null,null,null,null,null,null,null,null,null,null,null,null,null,{"$f":"IFERROR(VLOOKUP(D886,Hoja1!$A$3:$B$7,2,FALSE),\"\")","v":""},{"$f":"IFERROR(VLOOKUP(K886,Hoja1!$A$10:$B$12,2,FALSE),\"\")","v":""}]
[null,null,null,null,null,null,null,null,null,null,null,null,null,null,{"$f":"IFERROR(VLOOKUP(D887,Hoja1!$A$3:$B$7,2,FALSE),\"\")","v":""},{"$f":"IFERROR(VLOOKUP(K887,Hoja1!$A$10:$B$12,2,FALSE),\"\")","v":""}]
[null,null,null,null,null,null,null,null,null,null,null,null,null,null,{"$f":"IFERROR(VLOOKUP(D888,Hoja1!$A$3:$B$7,2,FALSE),\"\")","v":""},{"$f":"IFERROR(VLOOKUP(K888,Hoja1!$A$10:$B$12,2,FALSE),\"\")","v":""}]
[null,null,null,null,null,null,null,null,null,null,null,null,null,null,{"$f":"IFERROR(VLOOKUP(D889,Hoja1!$A$3:$B$7,2,FALSE),\"\")","v":""},{"$f":"IFERROR(VLOOKUP(K889,Hoja1!$A$10:$B$12,2,FALSE),\"\")","v":""}]
[null,null,null,null,null,null,null,null,null,null,null,null,null,null,{"$f":"IFERROR(VLOOKUP(D890,Hoja1!$A$3:$B$7,2,FALSE),\"\")","v":""},{"$f":"IFERROR(VLOOKUP(K890,Hoja1!$A$10:$B$12,2,FALSE),\"\")","v":""}]
[null,null,null,null,null,null,null,null,null,null,null,null,null,null,{"$f":"IFERROR(VLOOKUP(D891,Hoja1!$A$3:$B$7,2,FALSE),\"\")","v":""},{"$f":"IFERROR(VLOOKUP(K891,Hoja1!$A$10:$B$12,2,FALSE),\"\")","v":""}]
[null,null,null,null,null,null,null,null,null,null,null,null,null,null,{"$f":"IFERROR(VLOOKUP(D892,Hoja1!$A$3:$B$7,2,FALSE),\"\")","v":""},{"$f":"IFERROR(VLOOKUP(K892,Hoja1!$A$10:$B$12,2,FALSE),\"\")","v":""}]
[null,null,null,null,null,null,null,null,null,null,null,null,null,null,{"$f":"IFERROR(VLOOKUP(D893,Hoja1!$A$3:$B$7,2,FALSE),\"\")","v":""},{"$f":"IFERROR(VLOOKUP(K893,Hoja1!$A$10:$B$12,2,FALSE),\"\")","v":""}]
[null,null,null,null,null,null,null,null,null,null,null,null,null,null,{"$f":"IFERROR(VLOOKUP(D894,Hoja1!$A$3:$B$7,2,FALSE),\"\")","v":""},{"$f":"IFERROR(VLOOKUP(K894,Hoja1!$A$10:$B$12,2,FALSE),\"\")","v":""}]
[null,null,null,null,null,null,null,null,null,null,null,null,null,null,{"$f":"IFERROR(VLOOKUP(D895,Hoja1!$A$3:$B$7,2,FALSE),\"\")","v":""},{"$f":"IFERROR(VLOOKUP(K895,Hoja1!$A$10:$B$12,2,FALSE),\"\")","v":""}]
[null,null,null,null,null,null,null,null,null,null,null,null,null,null,{"$f":"IFERROR(VLOOKUP(D896,Hoja1!$A$3:$B$7,2,FALSE),\"\")","v":""},{"$f":"IFERROR(VLOOKUP(K896,Hoja1!$A$10:$B$12,2,FALSE),\"\")","v":""}]
[null,null,null,null,null,null,null,null,null,null,null,null,null,null,{"$f":"IFERROR(VLOOKUP(D897,Hoja1!$A$3:$B$7,2,FALSE),\"\")","v":""},{"$f":"IFERROR(VLOOKUP(K897,Hoja1!$A$10:$B$12,2,FALSE),\"\")","v":""}]
[null,null,null,null,null,null,null,null,null,null,null,null,null,null,{"$f":"IFERROR(VLOOKUP(D898,Hoja1!$A$3:$B$7,2,FALSE),\"\")","v":""},{"$f":"IFERROR(VLOOKUP(K898,Hoja1!$A$10:$B$12,2,FALSE),\"\")","v":""}]
[null,null,null,null,null,null,null,null,null,null,null,null,null,null,{"$f":"IFERROR(VLOOKUP(D899,Hoja1!$A$3:$B$7,2,FALSE),\"\")","v":""},{"$f":"IFERROR(VLOOKUP(K899,Hoja1!$A$10:$B$12,2,FALSE),\"\")","v":""}]
[null,null,null,null,null,null,null,null,null,null,null,null,null,null,{"$f":"IFERROR(VLOOKUP(D900,Hoja1!$A$3:$B$7,2,FALSE),\"\")","v":""},{"$f":"IFERROR(VLOOKUP(K900,Hoja1!$A$10:$B$12,2,FALSE),\"\")","v":""}]
[null,null,null,null,null,null,null,null,null,null,null,null,null,null,{"$f":"IFERROR(VLOOKUP(D901,Hoja1!$A$3:$B$7,2,FALSE),\"\")","v":""},{"$f":"IFERROR(VLOOKUP(K901,Hoja1!$A$10:$B$12,2,FALSE),\"\")","v":""}]
[null,null,null,null,null,null,null,null,null,null,null,null,null,null,{"$f":"IFERROR(VLOOKUP(D902,Hoja1!$A$3:$B$7,2,FALSE),\"\")","v":""},{"$f":"IFERROR(VLOOKUP(K902,Hoja1!$A$10:$B$12,2,FALSE),\"\")","v":""}]
[null,null,null,null,null,null,null,null,null,null,null,null,null,null,{"$f":"IFERROR(VLOOKUP(D903,Hoja1!$A$3:$B$7,2,FALSE),\"\")","v":""},{"$f":"IFERROR(VLOOKUP(K903,Hoja1!$A$10:$B$12,2,FALSE),\"\")","v":""}]
[null,null,null,null,null,null,null,null,null,null,null,null,null,null,{"$f":"IFERROR(VLOOKUP(D904,Hoja1!$A$3:$B$7,2,FALSE),\"\")","v":""},{"$f":"IFERROR(VLOOKUP(K904,Hoja1!$A$10:$B$12,2,FALSE),\"\")","v":""}]
[null,null,null,null,null,null,null,null,null,null,null,null,null,null,{"$f":"IFERROR(VLOOKUP(D905,Hoja1!$A$3:$B$7,2,FALSE),\"\")","v":""},{"$f":"IFERROR(VLOOKUP(K905,Hoja1!$A$10:$B$12,2,FALSE),\"\")","v":""}]
[null,null,null,null,null,null,null,null,null,null,null,null,null,null,{"$f":"IFERROR(VLOOKUP(D906,Hoja1!$A$3:$B$7,2,FALSE),\"\")","v":""},{"$f":"IFERROR(VLOOKUP(K906,Hoja1!$A$10:$B$12,2,FALSE),\"\")","v":""}]
[null,null,null,null,null,null,null,null,null,null,null,null,null,null,{"$f":"IFERROR(VLOOKUP(D907,Hoja1!$A$3:$B$7,2,FALSE),\"\")","v":""},{"$f":"IFERROR(VLOOKUP(K907,Hoja1!$A$10:$B$12,2,FALSE),\"\")","v":""}]
[null,null,null,null,null,null,null,null,null,null,null,null,null,null,{"$f":"IFERROR(VLOOKUP(D908,Hoja1!$A$3:$B$7,2,FALSE),\"\")","v":""},{"$f":"IFERROR(VLOOKUP(K908,Hoja1!$A$10:$B$12,2,FALSE),\"\")","v":""}]
[null,null,null,null,null,null,null,null,null,null,null,null,null,null,{"$f":"IFERROR(VLOOKUP(D909,Hoja1!$A$3:$B$7,2,FALSE),\"\")","v":""},{"$f":"IFERROR(VLOOKUP(K909,Hoja1!$A$10:$B$12,2,FALSE),\"\")","v":""}]
[null,null,null,null,null,null,null,null,null,null,null,null,null,null,{"$f":"IFERROR(VLOOKUP(D910,Hoja1!$A$3:$B$7,2,FALSE),\"\")","v":""},{"$f":"IFERROR(VLOOKUP(K910,Hoja1!$A$10:$B$12,2,FALSE),\"\")","v":""}]
[null,null,null,null,null,null,null,null,null,null,null,null,null,null,{"$f":"IFERROR(VLOOKUP(D911,Hoja1!$A$3:$B$7,2,FALSE),\"\")","v":""},{"$f":"IFERROR(VLOOKUP(K911,Hoja1!$A$10:$B$12,2,FALSE),\"\")","v":""}]
[null,null,null,null,null,null,null,null,null,null,null,null,null,null,{"$f":"IFERROR(VLOOKUP(D912,Hoja1!$A$3:$B$7,2,FALSE),\"\")","v":""},{"$f":"IFERROR(VLOOKUP(K912,Hoja1!$A$10:$B$12,2,FALSE),\"\")","v":""}]
[null,null,null,null,null,null,null,null,null,null,null,null,null,null,{"$f":"IFERROR(VLOOKUP(D913,Hoja1!$A$3:$B$7,2,FALSE),\"\")","v":""},{"$f":"IFERROR(VLOOKUP(K913,Hoja1!$A$10:$B$12,2,FALSE),\"\")","v":""}]
[null,null,null,null,null,null,null,null,null,null,null,null,null,null,{"$f":"IFERROR(VLOOKUP(D914,Hoja1!$A$3:$B$7,2,FALSE),\"\")","v":""},{"$f":"IFERROR(VLOOKUP(K914,Hoja1!$A$10:$B$12,2,FALSE),\"\")","v":""}]
[null,null,null,null,null,null,null,null,null,null,null,null,null,null,{"$f":"IFERROR(VLOOKUP(D915,Hoja1!$A$3:$B$7,2,FALSE),\"\")","v":""},{"$f":"IFERROR(VLOOKUP(K915,Hoja1!$A$10:$B$12,2,FALSE),\"\")","v":""}]
[null,null,null,null,null,null,null,null,null,null,null,null,null,null,{"$f":"IFERROR(VLOOKUP(D916,Hoja1!$A$3:$B$7,2,FALSE),\"\")","v":""},{"$f":"IFERROR(VLOOKUP(K916,Hoja1!$A$10:$B$12,2,FALSE),\"\")","v":""}]
[null,null,null,null,null,null,null,null,null,null,null,null,null,null,{"$f":"IFERROR(VLOOKUP(D917,Hoja1!$A$3:$B$7,2,FALSE),\"\")","v":""},{"$f":"IFERROR(VLOOKUP(K917,Hoja1!$A$10:$B$12,2,FALSE),\"\")","v":""}]
[null,null,null,null,null,null,null,null,null,null,null,null,null,null,{"$f":"IFERROR(VLOOKUP(D918,Hoja1!$A$3:$B$7,2,FALSE),\"\")","v":""},{"$f":"IFERROR(VLOOKUP(K918,Hoja1!$A$10:$B$12,2,FALSE),\"\")","v":""}]
[null,null,null,null,null,null,null,null,null,null,null,null,null,null,{"$f":"IFERROR(VLOOKUP(D919,Hoja1!$A$3:$B$7,2,FALSE),\"\")","v":""},{"$f":"IFERROR(VLOOKUP(K919,Hoja1!$A$10:$B$12,2,FALSE),\"\")","v":""}]
[null,null,null,null,null,null,null,null,null,null,null,null,null,null,{"$f":"IFERROR(VLOOKUP(D920,Hoja1!$A$3:$B$7,2,FALSE),\"\")","v":""},{"$f":"IFERROR(VLOOKUP(K920,Hoja1!$A$10:$B$12,2,FALSE),\"\")","v":""}]
[null,null,null,null,null,null,null,null,null,null,null,null,null,null,{"$f":"IFERROR(VLOOKUP(D921,Hoja1!$A$3:$B$7,2,FALSE),\"\")","v":""},{"$f":"IFERROR(VLOOKUP(K921,Hoja1!$A$10:$B$12,2,FALSE),\"\")","v":""}]
[null,null,null,null,null,null,null,null,null,null,null,null,null,null,{"$f":"IFERROR(VLOOKUP(D922,Hoja1!$A$3:$B$7,2,FALSE),\"\")","v":""},{"$f":"IFERROR(VLOOKUP(K922,Hoja1!$A$10:$B$12,2,FALSE),\"\")","v":""}]
[null,null,null,null,null,null,null,null,null,null,null,null,null,null,{"$f":"IFERROR(VLOOKUP(D923,Hoja1!$A$3:$B$7,2,FALSE),\"\")","v":""},{"$f":"IFERROR(VLOOKUP(K923,Hoja1!$A$10:$B$12,2,FALSE),\"\")","v":""}]
[null,null,null,null,null,null,null,null,null,null,null,null,null,null,{"$f":"IFERROR(VLOOKUP(D924,Hoja1!$A$3:$B$7,2,FALSE),\"\")","v":""},{"$f":"IFERROR(VLOOKUP(K924,Hoja1!$A$10:$B$12,2,FALSE),\"\")","v":""}]
[null,null,null,null,null,null,null,null,null,null,null,null,null,null,{"$f":"IFERROR(VLOOKUP(D925,Hoja1!$A$3:$B$7,2,FALSE),\"\")","v":""},{"$f":"IFERROR(VLOOKUP(K925,Hoja1!$A$10:$B$12,2,FALSE),\"\")","v":""}]
[null,null,null,null,null,null,null,null,null,null,null,null,null,null,{"$f":"IFERROR(VLOOKUP(D926,Hoja1!$A$3:$B$7,2,FALSE),\"\")","v":""},{"$f":"IFERROR(VLOOKUP(K926,Hoja1!$A$10:$B$12,2,FALSE),\"\")","v":""}]
[null,null,null,null,null,null,null,null,null,null,null,null,null,null,{"$f":"IFERROR(VLOOKUP(D927,Hoja1!$A$3:$B$7,2,FALSE),\"\")","v":""},{"$f":"IFERROR(VLOOKUP(K927,Hoja1!$A$10:$B$12,2,FALSE),\"\")","v":""}]
[null,null,null,null,null,null,null,null,null,null,null,null,null,null,{"$f":"IFERROR(VLOOKUP(D928,Hoja1!$A$3:$B$7,2,FALSE),\"\")","v":""},{"$f":"IFERROR(VLOOKUP(K928,Hoja1!$A$10:$B$12,2,FALSE),\"\")","v":""}]
[null,null,null,null,null,null,null,null,null,null,null,null,null,null,{"$f":"IFERROR(VLOOKUP(D929,Hoja1!$A$3:$B$7,2,FALSE),\"\")","v":""},{"$f":"IFERROR(VLOOKUP(K929,Hoja1!$A$10:$B$12,2,FALSE),\"\")","v":""}]
[null,null,null,null,null,null,null,null,null,null,null,null,null,null,{"$f":"IFERROR(VLOOKUP(D930,Hoja1!$A$3:$B$7,2,FALSE),\"\")","v":""},{"$f":"IFERROR(VLOOKUP(K930,Hoja1!$A$10:$B$12,2,FALSE),\"\")","v":""}]
[null,null,null,null,null,null,null,null,null,null,null,null,null,null,{"$f":"IFERROR(VLOOKUP(D931,Hoja1!$A$3:$B$7,2,FALSE),\"\")","v":""},{"$f":"IFERROR(VLOOKUP(K931,Hoja1!$A$10:$B$12,2,FALSE),\"\")","v":""}]
[null,null,null,null,null,null,null,null,null,null,null,null,null,null,{"$f":"IFERROR(VLOOKUP(D932,Hoja1!$A$3:$B$7,2,FALSE),\"\")","v":""},{"$f":"IFERROR(VLOOKUP(K932,Hoja1!$A$10:$B$12,2,FALSE),\"\")","v":""}]
[null,null,null,null,null,null,null,null,null,null,null,null,null,null,{"$f":"IFERROR(VLOOKUP(D933,Hoja1!$A$3:$B$7,2,FALSE),\"\")","v":""},{"$f":"IFERROR(VLOOKUP(K933,Hoja1!$A$10:$B$12,2,FALSE),\"\")","v":""}]
[null,null,null,null,null,null,null,null,null,null,null,null,null,null,{"$f":"IFERROR(VLOOKUP(D934,Hoja1!$A$3:$B$7,2,FALSE),\"\")","v":""},{"$f":"IFERROR(VLOOKUP(K934,Hoja1!$A$10:$B$12,2,FALSE),\"\")","v":""}]
[null,null,null,null,null,null,null,null,null,null,null,null,null,null,{"$f":"IFERROR(VLOOKUP(D935,Hoja1!$A$3:$B$7,2,FALSE),\"\")","v":""},{"$f":"IFERROR(VLOOKUP(K935,Hoja1!$A$10:$B$12,2,FALSE),\"\")","v":""}]
[null,null,null,null,null,null,null,null,null,null,null,null,null,null,{"$f":"IFERROR(VLOOKUP(D936,Hoja1!$A$3:$B$7,2,FALSE),\"\")","v":""},{"$f":"IFERROR(VLOOKUP(K936,Hoja1!$A$10:$B$12,2,FALSE),\"\")","v":""}]
[null,null,null,null,null,null,null,null,null,null,null,null,null,null,{"$f":"IFERROR(VLOOKUP(D937,Hoja1!$A$3:$B$7,2,FALSE),\"\")","v":""},{"$f":"IFERROR(VLOOKUP(K937,Hoja1!$A$10:$B$12,2,FALSE),\"\")","v":""}]
[null,null,null,null,null,null,null,null,null,null,null,null,null,null,{"$f":"IFERROR(VLOOKUP(D938,Hoja1!$A$3:$B$7,2,FALSE),\"\")","v":""},{"$f":"IFERROR(VLOOKUP(K938,Hoja1!$A$10:$B$12,2,FALSE),\"\")","v":""}]
[null,null,null,null,null,null,null,null,null,null,null,null,null,null,{"$f":"IFERROR(VLOOKUP(D939,Hoja1!$A$3:$B$7,2,FALSE),\"\")","v":""},{"$f":"IFERROR(VLOOKUP(K939,Hoja1!$A$10:$B$12,2,FALSE),\"\")","v":""}]
[null,null,null,null,null,null,null,null,null,null,null,null,null,null,{"$f":"IFERROR(VLOOKUP(D940,Hoja1!$A$3:$B$7,2,FALSE),\"\")","v":""},{"$f":"IFERROR(VLOOKUP(K940,Hoja1!$A$10:$B$12,2,FALSE),\"\")","v":""}]
[null,null,null,null,null,null,null,null,null,null,null,null,null,null,{"$f":"IFERROR(VLOOKUP(D941,Hoja1!$A$3:$B$7,2,FALSE),\"\")","v":""},{"$f":"IFERROR(VLOOKUP(K941,Hoja1!$A$10:$B$12,2,FALSE),\"\")","v":""}]
[null,null,null,null,null,null,null,null,null,null,null,null,null,null,{"$f":"IFERROR(VLOOKUP(D942,Hoja1!$A$3:$B$7,2,FALSE),\"\")","v":""},{"$f":"IFERROR(VLOOKUP(K942,Hoja1!$A$10:$B$12,2,FALSE),\"\")","v":""}]
[null,null,null,null,null,null,null,null,null,null,null,null,null,null,{"$f":"IFERROR(VLOOKUP(D943,Hoja1!$A$3:$B$7,2,FALSE),\"\")","v":""},{"$f":"IFERROR(VLOOKUP(K943,Hoja1!$A$10:$B$12,2,FALSE),\"\")","v":""}]
[null,null,null,null,null,null,null,null,null,null,null,null,null,null,{"$f":"IFERROR(VLOOKUP(D944,Hoja1!$A$3:$B$7,2,FALSE),\"\")","v":""},{"$f":"IFERROR(VLOOKUP(K944,Hoja1!$A$10:$B$12,2,FALSE),\"\")","v":""}]
[null,null,null,null,null,null,null,null,null,null,null,null,null,null,{"$f":"IFERROR(VLOOKUP(D945,Hoja1!$A$3:$B$7,2,FALSE),\"\")","v":""},{"$f":"IFERROR(VLOOKUP(K945,Hoja1!$A$10:$B$12,2,FALSE),\"\")","v":""}]
[null,null,null,null,null,null,null,null,null,null,null,null,null,null,{"$f":"IFERROR(VLOOKUP(D946,Hoja1!$A$3:$B$7,2,FALSE),\"\")","v":""},{"$f":"IFERROR(VLOOKUP(K946,Hoja1!$A$10:$B$12,2,FALSE),\"\")","v":""}]
[null,null,null,null,null,null,null,null,null,null,null,null,null,null,{"$f":"IFERROR(VLOOKUP(D947,Hoja1!$A$3:$B$7,2,FALSE),\"\")","v":""},{"$f":"IFERROR(VLOOKUP(K947,Hoja1!$A$10:$B$12,2,FALSE),\"\")","v":""}]
[null,null,null,null,null,null,null,null,null,null,null,null,null,null,{"$f":"IFERROR(VLOOKUP(D948,Hoja1!$A$3:$B$7,2,FALSE),\"\")","v":""},{"$f":"IFERROR(VLOOKUP(K948,Hoja1!$A$10:$B$12,2,FALSE),\"\")","v":""}]
[null,null,null,null,null,null,null,null,null,null,null,null,null,null,{"$f":"IFERROR(VLOOKUP(D949,Hoja1!$A$3:$B$7,2,FALSE),\"\")","v":""},{"$f":"IFERROR(VLOOKUP(K949,Hoja1!$A$10:$B$12,2,FALSE),\"\")","v":""}]
[null,null,null,null,null,null,null,null,null,null,null,null,null,null,{"$f":"IFERROR(VLOOKUP(D950,Hoja1!$A$3:$B$7,2,FALSE),\"\")","v":""},{"$f":"IFERROR(VLOOKUP(K950,Hoja1!$A$10:$B$12,2,FALSE),\"\")","v":""}]
[null,null,null,null,null,null,null,null,null,null,null,null,null,null,{"$f":"IFERROR(VLOOKUP(D951,Hoja1!$A$3:$B$7,2,FALSE),\"\")","v":""},{"$f":"IFERROR(VLOOKUP(K951,Hoja1!$A$10:$B$12,2,FALSE),\"\")","v":""}]
[null,null,null,null,null,null,null,null,null,null,null,null,null,null,{"$f":"IFERROR(VLOOKUP(D952,Hoja1!$A$3:$B$7,2,FALSE),\"\")","v":""},{"$f":"IFERROR(VLOOKUP(K952,Hoja1!$A$10:$B$12,2,FALSE),\"\")","v":""}]
[null,null,null,null,null,null,null,null,null,null,null,null,null,null,{"$f":"IFERROR(VLOOKUP(D953,Hoja1!$A$3:$B$7,2,FALSE),\"\")","v":""},{"$f":"IFERROR(VLOOKUP(K953,Hoja1!$A$10:$B$12,2,FALSE),\"\")","v":""}]
[null,null,null,null,null,null,null,null,null,null,null,null,null,null,{"$f":"IFERROR(VLOOKUP(D954,Hoja1!$A$3:$B$7,2,FALSE),\"\")","v":""},{"$f":"IFERROR(VLOOKUP(K954,Hoja1!$A$10:$B$12,2,FALSE),\"\")","v":""}]
[null,null,null,null,null,null,null,null,null,null,null,null,null,null,{"$f":"IFERROR(VLOOKUP(D955,Hoja1!$A$3:$B$7,2,FALSE),\"\")","v":""},{"$f":"IFERROR(VLOOKUP(K955,Hoja1!$A$10:$B$12,2,FALSE),\"\")","v":""}]
[null,null,null,null,null,null,null,null,null,null,null,null,null,null,{"$f":"IFERROR(VLOOKUP(D956,Hoja1!$A$3:$B$7,2,FALSE),\"\")","v":""},{"$f":"IFERROR(VLOOKUP(K956,Hoja1!$A$10:$B$12,2,FALSE),\"\")","v":""}]
[null,null,null,null,null,null,null,null,null,null,null,null,null,null,{"$f":"IFERROR(VLOOKUP(D957,Hoja1!$A$3:$B$7,2,FALSE),\"\")","v":""},{"$f":"IFERROR(VLOOKUP(K957,Hoja1!$A$10:$B$12,2,FALSE),\"\")","v":""}]
[null,null,null,null,null,null,null,null,null,null,null,null,null,null,{"$f":"IFERROR(VLOOKUP(D958,Hoja1!$A$3:$B$7,2,FALSE),\"\")","v":""},{"$f":"IFERROR(VLOOKUP(K958,Hoja1!$A$10:$B$12,2,FALSE),\"\")","v":""}]
[null,null,null,null,null,null,null,null,null,null,null,null,null,null,{"$f":"IFERROR(VLOOKUP(D959,Hoja1!$A$3:$B$7,2,FALSE),\"\")","v":""},{"$f":"IFERROR(VLOOKUP(K959,Hoja1!$A$10:$B$12,2,FALSE),\"\")","v":""}]
[null,null,null,null,null,null,null,null,null,null,null,null,null,null,{"$f":"IFERROR(VLOOKUP(D960,Hoja1!$A$3:$B$7,2,FALSE),\"\")","v":""},{"$f":"IFERROR(VLOOKUP(K960,Hoja1!$A$10:$B$12,2,FALSE),\"\")","v":""}]
[null,null,null,null,null,null,null,null,null,null,null,null,null,null,{"$f":"IFERROR(VLOOKUP(D961,Hoja1!$A$3:$B$7,2,FALSE),\"\")","v":""},{"$f":"IFERROR(VLOOKUP(K961,Hoja1!$A$10:$B$12,2,FALSE),\"\")","v":""}]
[null,null,null,null,null,null,null,null,null,null,null,null,null,null,{"$f":"IFERROR(VLOOKUP(D962,Hoja1!$A$3:$B$7,2,FALSE),\"\")","v":""},{"$f":"IFERROR(VLOOKUP(K962,Hoja1!$A$10:$B$12,2,FALSE),\"\")","v":""}]
[null,null,null,null,null,null,null,null,null,null,null,null,null,null,{"$f":"IFERROR(VLOOKUP(D963,Hoja1!$A$3:$B$7,2,FALSE),\"\")","v":""},{"$f":"IFERROR(VLOOKUP(K963,Hoja1!$A$10:$B$12,2,FALSE),\"\")","v":""}]
[null,null,null,null,null,null,null,null,null,null,null,null,null,null,{"$f":"IFERROR(VLOOKUP(D964,Hoja1!$A$3:$B$7,2,FALSE),\"\")","v":""},{"$f":"IFERROR(VLOOKUP(K964,Hoja1!$A$10:$B$12,2,FALSE),\"\")","v":""}]
[null,null,null,null,null,null,null,null,null,null,null,null,null,null,{"$f":"IFERROR(VLOOKUP(D965,Hoja1!$A$3:$B$7,2,FALSE),\"\")","v":""},{"$f":"IFERROR(VLOOKUP(K965,Hoja1!$A$10:$B$12,2,FALSE),\"\")","v":""}]
[null,null,null,null,null,null,null,null,null,null,null,null,null,null,{"$f":"IFERROR(VLOOKUP(D966,Hoja1!$A$3:$B$7,2,FALSE),\"\")","v":""},{"$f":"IFERROR(VLOOKUP(K966,Hoja1!$A$10:$B$12,2,FALSE),\"\")","v":""}]
[null,null,null,null,null,null,null,null,null,null,null,null,null,null,{"$f":"IFERROR(VLOOKUP(D967,Hoja1!$A$3:$B$7,2,FALSE),\"\")","v":""},{"$f":"IFERROR(VLOOKUP(K967,Hoja1!$A$10:$B$12,2,FALSE),\"\")","v":""}]
[null,null,null,null,null,null,null,null,null,null,null,null,null,null,{"$f":"IFERROR(VLOOKUP(D968,Hoja1!$A$3:$B$7,2,FALSE),\"\")","v":""},{"$f":"IFERROR(VLOOKUP(K968,Hoja1!$A$10:$B$12,2,FALSE),\"\")","v":""}]
[null,null,null,null,null,null,null,null,null,null,null,null,null,null,{"$f":"IFERROR(VLOOKUP(D969,Hoja1!$A$3:$B$7,2,FALSE),\"\")","v":""},{"$f":"IFERROR(VLOOKUP(K969,Hoja1!$A$10:$B$12,2,FALSE),\"\")","v":""}]
[null,null,null,null,null,null,null,null,null,null,null,null,null,null,{"$f":"IFERROR(VLOOKUP(D970,Hoja1!$A$3:$B$7,2,FALSE),\"\")","v":""},{"$f":"IFERROR(VLOOKUP(K970,Hoja1!$A$10:$B$12,2,FALSE),\"\")","v":""}]
[null,null,null,null,null,null,null,null,null,null,null,null,null,null,{"$f":"IFERROR(VLOOKUP(D971,Hoja1!$A$3:$B$7,2,FALSE),\"\")","v":""},{"$f":"IFERROR(VLOOKUP(K971,Hoja1!$A$10:$B$12,2,FALSE),\"\")","v":""}]
[null,null,null,null,null,null,null,null,null,null,null,null,null,null,{"$f":"IFERROR(VLOOKUP(D972,Hoja1!$A$3:$B$7,2,FALSE),\"\")","v":""},{"$f":"IFERROR(VLOOKUP(K972,Hoja1!$A$10:$B$12,2,FALSE),\"\")","v":""}]
[null,null,null,null,null,null,null,null,null,null,null,null,null,null,{"$f":"IFERROR(VLOOKUP(D973,Hoja1!$A$3:$B$7,2,FALSE),\"\")","v":""},{"$f":"IFERROR(VLOOKUP(K973,Hoja1!$A$10:$B$12,2,FALSE),\"\")","v":""}]
[null,null,null,null,null,null,null,null,null,null,null,null,null,null,{"$f":"IFERROR(VLOOKUP(D974,Hoja1!$A$3:$B$7,2,FALSE),\"\")","v":""},{"$f":"IFERROR(VLOOKUP(K974,Hoja1!$A$10:$B$12,2,FALSE),\"\")","v":""}]
[null,null,null,null,null,null,null,null,null,null,null,null,null,null,{"$f":"IFERROR(VLOOKUP(D975,Hoja1!$A$3:$B$7,2,FALSE),\"\")","v":""},{"$f":"IFERROR(VLOOKUP(K975,Hoja1!$A$10:$B$12,2,FALSE),\"\")","v":""}]
[null,null,null,null,null,null,null,null,null,null,null,null,null,null,{"$f":"IFERROR(VLOOKUP(D976,Hoja1!$A$3:$B$7,2,FALSE),\"\")","v":""},{"$f":"IFERROR(VLOOKUP(K976,Hoja1!$A$10:$B$12,2,FALSE),\"\")","v":""}]
[null,null,null,null,null,null,null,null,null,null,null,null,null,null,{"$f":"IFERROR(VLOOKUP(D977,Hoja1!$A$3:$B$7,2,FALSE),\"\")","v":""},{"$f":"IFERROR(VLOOKUP(K977,Hoja1!$A$10:$B$12,2,FALSE),\"\")","v":""}]
[null,null,null,null,null,null,null,null,null,null,null,null,null,null,{"$f":"IFERROR(VLOOKUP(D978,Hoja1!$A$3:$B$7,2,FALSE),\"\")","v":""},{"$f":"IFERROR(VLOOKUP(K978,Hoja1!$A$10:$B$12,2,FALSE),\"\")","v":""}]
[null,null,null,null,null,null,null,null,null,null,null,null,null,null,{"$f":"IFERROR(VLOOKUP(D979,Hoja1!$A$3:$B$7,2,FALSE),\"\")","v":""},{"$f":"IFERROR(VLOOKUP(K979,Hoja1!$A$10:$B$12,2,FALSE),\"\")","v":""}]
[null,null,null,null,null,null,null,null,null,null,null,null,null,null,{"$f":"IFERROR(VLOOKUP(D980,Hoja1!$A$3:$B$7,2,FALSE),\"\")","v":""},{"$f":"IFERROR(VLOOKUP(K980,Hoja1!$A$10:$B$12,2,FALSE),\"\")","v":""}]
[null,null,null,null,null,null,null,null,null,null,null,null,null,null,{"$f":"IFERROR(VLOOKUP(D981,Hoja1!$A$3:$B$7,2,FALSE),\"\")","v":""},{"$f":"IFERROR(VLOOKUP(K981,Hoja1!$A$10:$B$12,2,FALSE),\"\")","v":""}]
[null,null,null,null,null,null,null,null,null,null,null,null,null,null,{"$f":"IFERROR(VLOOKUP(D982,Hoja1!$A$3:$B$7,2,FALSE),\"\")","v":""},{"$f":"IFERROR(VLOOKUP(K982,Hoja1!$A$10:$B$12,2,FALSE),\"\")","v":""}]
[null,null,null,null,null,null,null,null,null,null,null,null,null,null,{"$f":"IFERROR(VLOOKUP(D983,Hoja1!$A$3:$B$7,2,FALSE),\"\")","v":""},{"$f":"IFERROR(VLOOKUP(K983,Hoja1!$A$10:$B$12,2,FALSE),\"\")","v":""}]
[null,null,null,null,null,null,null,null,null,null,null,null,null,null,{"$f":"IFERROR(VLOOKUP(D984,Hoja1!$A$3:$B$7,2,FALSE),\"\")","v":""},{"$f":"IFERROR(VLOOKUP(K984,Hoja1!$A$10:$B$12,2,FALSE),\"\")","v":""}]
[null,null,null,null,null,null,null,null,null,null,null,null,null,null,{"$f":"IFERROR(VLOOKUP(D985,Hoja1!$A$3:$B$7,2,FALSE),\"\")","v":""},{"$f":"IFERROR(VLOOKUP(K985,Hoja1!$A$10:$B$12,2,FALSE),\"\")","v":""}]
[null,null,null,null,null,null,null,null,null,null,null,null,null,null,{"$f":"IFERROR(VLOOKUP(D986,Hoja1!$A$3:$B$7,2,FALSE),\"\")","v":""},{"$f":"IFERROR(VLOOKUP(K986,Hoja1!$A$10:$B$12,2,FALSE),\"\")","v":""}]
[null,null,null,null,null,null,null,null,null,null,null,null,null,null,{"$f":"IFERROR(VLOOKUP(D987,Hoja1!$A$3:$B$7,2,FALSE),\"\")","v":""},{"$f":"IFERROR(VLOOKUP(K987,Hoja1!$A$10:$B$12,2,FALSE),\"\")","v":""}]
[null,null,null,null,null,null,null,null,null,null,null,null,null,null,{"$f":"IFERROR(VLOOKUP(D988,Hoja1!$A$3:$B$7,2,FALSE),\"\")","v":""},{"$f":"IFERROR(VLOOKUP(K988,Hoja1!$A$10:$B$12,2,FALSE),\"\")","v":""}]
[null,null,null,null,null,null,null,null,null,null,null,null,null,null,{"$f":"IFERROR(VLOOKUP(D989,Hoja1!$A$3:$B$7,2,FALSE),\"\")","v":""},{"$f":"IFERROR(VLOOKUP(K989,Hoja1!$A$10:$B$12,2,FALSE),\"\")","v":""}]
[null,null,null,null,null,null,null,null,null,null,null,null,null,null,{"$f":"IFERROR(VLOOKUP(D990,Hoja1!$A$3:$B$7,2,FALSE),\"\")","v":""},{"$f":"IFERROR(VLOOKUP(K990,Hoja1!$A$10:$B$12,2,FALSE),\"\")","v":""}]
[null,null,null,null,null,null,null,null,null,null,null,null,null,null,{"$f":"IFERROR(VLOOKUP(D991,Hoja1!$A$3:$B$7,2,FALSE),\"\")","v":""},{"$f":"IFERROR(VLOOKUP(K991,Hoja1!$A$10:$B$12,2,FALSE),\"\")","v":""}]
[null,null,null,null,null,null,null,null,null,null,null,null,null,null,{"$f":"IFERROR(VLOOKUP(D992,Hoja1!$A$3:$B$7,2,FALSE),\"\")","v":""},{"$f":"IFERROR(VLOOKUP(K992,Hoja1!$A$10:$B$12,2,FALSE),\"\")","v":""}]
[null,null,null,null,null,null,null,null,null,null,null,null,null,null,{"$f":"IFERROR(VLOOKUP(D993,Hoja1!$A$3:$B$7,2,FALSE),\"\")","v":""},{"$f":"IFERROR(VLOOKUP(K993,Hoja1!$A$10:$B$12,2,FALSE),\"\")","v":""}]
[null,null,null,null,null,null,null,null,null,null,null,null,null,null,{"$f":"IFERROR(VLOOKUP(D994,Hoja1!$A$3:$B$7,2,FALSE),\"\")","v":""},{"$f":"IFERROR(VLOOKUP(K994,Hoja1!$A$10:$B$12,2,FALSE),\"\")","v":""}]
[null,null,null,null,null,null,null,null,null,null,null,null,null,null,{"$f":"IFERROR(VLOOKUP(D995,Hoja1!$A$3:$B$7,2,FALSE),\"\")","v":""},{"$f":"IFERROR(VLOOKUP(K995,Hoja1!$A$10:$B$12,2,FALSE),\"\")","v":""}]
[null,null,null,null,null,null,null,null,null,null,null,null,null,null,{"$f":"IFERROR(VLOOKUP(D996,Hoja1!$A$3:$B$7,2,FALSE),\"\")","v":""},{"$f":"IFERROR(VLOOKUP(K996,Hoja1!$A$10:$B$12,2,FALSE),\"\")","v":""}]
[null,null,null,null,null,null,null,null,null,null,null,null,null,null,{"$f":"IFERROR(VLOOKUP(D997,Hoja1!$A$3:$B$7,2,FALSE),\"\")","v":""},{"$f":"IFERROR(VLOOKUP(K997,Hoja1!$A$10:$B$12,2,FALSE),\"\")","v":""}]
[null,null,null,null,null,null,null,null,null,null,null,null,null,null,{"$f":"IFERROR(VLOOKUP(D998,Hoja1!$A$3:$B$7,2,FALSE),\"\")","v":""},{"$f":"IFERROR(VLOOKUP(K998,Hoja1!$A$10:$B$12,2,FALSE),\"\")","v":""}]
[null,null,null,null,null,null,null,null,null,null,null,null,null,null,{"$f":"IFERROR(VLOOKUP(D999,Hoja1!$A$3:$B$7,2,FALSE),\"\")","v":""},{"$f":"IFERROR(VLOOKUP(K999,Hoja1!$A$10:$B$12,2,FALSE),\"\")","v":""}]
[null,null,null,null,null,null,null,null,null,null,null,null,null,null,{"$f":"IFERROR(VLOOKUP(D1000,Hoja1!$A$3:$B$7,2,FALSE),\"\")","v":""},{"$f":"IFERROR(VLOOKUP(K1000,Hoja1!$A$10:$B$12,2,FALSE),\"\")","v":""}]
[null,null,null,null,null,null,null,null,null,null,null,null,null,null,{"$f":"IFERROR(VLOOKUP(D1001,Hoja1!$A$3:$B$7,2,FALSE),\"\")","v":""},{"$f":"IFERROR(VLOOKUP(K1001,Hoja1!$A$10:$B$12,2,FALSE),\"\")","v":""}]
[null,null,null,null,null,null,null,null,null,null,null,null,null,null,{"$f":"IFERROR(VLOOKUP(D1002,Hoja1!$A$3:$B$7,2,FALSE),\"\")","v":""},{"$f":"IFERROR(VLOOKUP(K1002,Hoja1!$A$10:$B$12,2,FALSE),\"\")","v":""}]
[null,null,null,null,null,null,null,null,null,null,null,null,null,null,{"$f":"IFERROR(VLOOKUP(D1003,Hoja1!$A$3:$B$7,2,FALSE),\"\")","v":""},{"$f":"IFERROR(VLOOKUP(K1003,Hoja1!$A$10:$B$12,2,FALSE),\"\")","v":""}]
[null,null,null,null,null,null,null,null,null,null,null,null,null,null,{"$f":"IFERROR(VLOOKUP(D1004,Hoja1!$A$3:$B$7,2,FALSE),\"\")","v":""},{"$f":"IFERROR(VLOOKUP(K1004,Hoja1!$A$10:$B$12,2,FALSE),\"\")","v":""}]
[null,null,null,null,null,null,null,null,null,null,null,null,null,null,{"$f":"IFERROR(VLOOKUP(D1005,Hoja1!$A$3:$B$7,2,FALSE),\"\")","v":""},{"$f":"IFERROR(VLOOKUP(K1005,Hoja1!$A$10:$B$12,2,FALSE),\"\")","v":""}]
[null,null,null,null,null,null,null,null,null,null,null,null,null,null,{"$f":"IFERROR(VLOOKUP(D1006,Hoja1!$A$3:$B$7,2,FALSE),\"\")","v":""},{"$f":"IFERROR(VLOOKUP(K1006,Hoja1!$A$10:$B$12,2,FALSE),\"\")","v":""}]

{"sheet":"Hoja1","index":1,"n_rows":17,"n_cols":2,"rows_kept":17,"cut":false,"hidden":false,"merged":[]}
[]
["GRUPO PROFESIONAL DEL TRABAJADOR","CÓDIGO DEL GRUPO"]
["Grupo 1",1]
["Grupo 2",2]
["Grupo 3",3]
["Grupo 4",4]
["Grupo 5",5]
[]
["TIPOLOGÍA DE LA ACTIVIDAD","CÓDIGO DE LA ACTIVIDAD"]
["Asesoramiento Integral","AS_INTEGRAL"]
["Asesoramiento Especifico","AS_ESPECIFICO"]
["Asesoramiento Básico","AS_BASICO"]
[]
["LIMITE ANEXO"]
["Personal de asesoría"]
["Personal técnico"]
["Personal administrativo"]